Body name,Service Area,Dept,Expenses Type,Detailed Expenses Type,Transaction number,Expense Code,Date,Amount,Capital/Revenue,Supplier Name,Supplier ID
WANDSWORTH COUNCIL,CS,ADMINISTRATION,DIRECT2,AGENCY STAFF,20271162,100300510,24-Feb-14,"1,487.15",Revenue,MATRIX SCM LIMITED,2014926
WANDSWORTH COUNCIL,CS,ENVIRONMENT & COMMUNITY,COMMUNICATIONS & COMP,I.T. SOFTWARE,20267892,100336240,05-Feb-14,594.61,Revenue,NORTHGATE INFORMATION SOLUTIONS UK LTD,2006359
WANDSWORTH COUNCIL,CS,FINANCE,"REPAIRS, ALTERATIONS & MTCE","REPS, ALTS & MTCE-BUILDINGS",345478,100410000,06-Feb-14,644.62,Revenue,D H CROFTS LTD,SP0000076
WANDSWORTH COUNCIL,CS,FINANCE,"REPAIRS, ALTERATIONS & MTCE","REPS, ALTS & MTCE-BUILDINGS",345603,100410000,06-Feb-14,548.77,Revenue,T BROWN GROUP LTD,SP0001050
WANDSWORTH COUNCIL,CS,ADMINISTRATION,"REPAIRS, ALTERATIONS & MTCE","REPS, ALTS & MTCE-BUILDINGS",20268648,10051000K0002V,06-Feb-14,523.75,Revenue,CAMELOT PROPERTY MANAGEMENT LTD,2009040
WANDSWORTH COUNCIL,CS,ADMINISTRATION,SERVICES,CONSULTANTS FEES,20268649,100534200,06-Feb-14,"3,400.00",Revenue,RIGHT OF LIGHT CONSULTING LTD,2007824
WANDSWORTH COUNCIL,CS,ADMINISTRATION,SERVICES,CONSULTANTS FEES,20270287,100534200,18-Feb-14,"1,227.00",Revenue,J S LEWIS,2014245
WANDSWORTH COUNCIL,CS,ADMINISTRATION,SERVICES,CONSULTANTS FEES,20271603,100534200,26-Feb-14,"12,204.97",Revenue,BOYER PLANNING LTD,2017827
WANDSWORTH COUNCIL,CS,ADMINISTRATION,SERVICES,CONSULTANTS FEES,20268650,100534200,06-Feb-14,"5,000.00",Revenue,MLM Consulting Engineers Ltd,2991000
WANDSWORTH COUNCIL,CS,ADMINISTRATION,SERVICES,CONSULTANTS FEES,20268652,100534200,06-Feb-14,"55,249.17",Revenue,Feilden Clegg Bradley Studios,2991000
WANDSWORTH COUNCIL,CS,ADMINISTRATION,SERVICES,CONSULTANTS FEES,20270564,100534200,19-Feb-14,"1,275.00",Revenue,Randall Surveys LLP,2991000
WANDSWORTH COUNCIL,CS,ADMINISTRATION,SERVICES,CONSULTANTS FEES,20271604,100534200,26-Feb-14,"5,280.00",Revenue,Alan Baxter & Associates LLP,2991000
WANDSWORTH COUNCIL,CS,ADMINISTRATION,SERVICES,PROJECT WORK,20270585,102034800,19-Feb-14,"3,799.00",Revenue,WANDSWORTH CARE ALLIANCE,2006618
WANDSWORTH COUNCIL,CS,ADMINISTRATION,DIRECT2,AGENCY STAFF,20269949,103000510,18-Feb-14,"3,001.87",Revenue,MATRIX SCM LIMITED,2014926
WANDSWORTH COUNCIL,CS,ADMINISTRATION,DIRECT2,AGENCY STAFF,20269954,103000510,18-Feb-14,"3,146.91",Revenue,MATRIX SCM LIMITED,2014926
WANDSWORTH COUNCIL,CS,ADMINISTRATION,DIRECT2,AGENCY STAFF,20271162,103000510,24-Feb-14,"1,276.22",Revenue,MATRIX SCM LIMITED,2014926
WANDSWORTH COUNCIL,CS,ADMINISTRATION,INDIRECT,STAFF ADVERTISING - VACANCIES,20272104,103000960,28-Feb-14,439,Revenue,THE ASSOCIATION OF ELECTORAL ADMINISTRATORS,2005404
WANDSWORTH COUNCIL,CS,ENVIRONMENT & COMMUNITY,PRINTING STAT & GEN OFFICE EXP,PRINTING AND STATIONERY,344312,103033420,07-Feb-14,340,Revenue,RICOH UK LTD,SP0002316
WANDSWORTH COUNCIL,CS,ENVIRONMENT & COMMUNITY,PRINTING STAT & GEN OFFICE EXP,PRINTING AND STATIONERY,344312,103033420,07-Feb-14,288,Revenue,RICOH UK LTD,SP0002316
WANDSWORTH COUNCIL,CS,ADMINISTRATION,COMMUNICATIONS & COMP,COMMUNICATIONS - POSTAGE,20268398,103036000,05-Feb-14,"1,732.60",Revenue,ROYAL MAIL,2009044
WANDSWORTH COUNCIL,CS,ADMINISTRATION,COMMUNICATIONS & COMP,COMMUNICATIONS - POSTAGE,20270644,103036000,19-Feb-14,"1,156.04",Revenue,ROYAL MAIL,2009044
WANDSWORTH COUNCIL,CS,ADMINISTRATION,"EQUIPMENT, FURNITURE & MATS",FLOWERS,20268349,103130170,05-Feb-14,816,Revenue,PATRICIA WONG,2001370
WANDSWORTH COUNCIL,CS,ADMINISTRATION,"EQUIPMENT, FURNITURE & MATS",FLOWERS,20270281,103130170,18-Feb-14,543,Revenue,PATRICIA WONG,2001370
WANDSWORTH COUNCIL,CS,ADMINISTRATION,MISC,MISCELLANEOUS EXPENSES,20269865,103138500,14-Feb-14,"3,180.00",Revenue,STOPFORD INFORMATION SYSTEMS LTD,2991000
WANDSWORTH COUNCIL,CS,ADMINISTRATION,COMMUNICATIONS & COMP,I.T. DEVELOPMENTS,20271310,103436200,25-Feb-14,"8,568.00",Revenue,DELL CORPORATION LTD,2009246
WANDSWORTH COUNCIL,ASC,ADMINISTRATION,SERVICES,PROJECT WORK,20269340,105134800,12-Feb-14,"5,000.00",Revenue,TERRENCE HIGGINS TRUST,2016903
WANDSWORTH COUNCIL,ASC,ADMINISTRATION,HEALTH,THIRD PARTY PYMT - HEALTH,20271162,105141130,24-Feb-14,13.89,Revenue,MATRIX SCM LIMITED,2014926
WANDSWORTH COUNCIL,ASC,ADMINISTRATION,HEALTH,THIRD PARTY PYMT - HEALTH,20271177,105141130,24-Feb-14,"3,750.00",Revenue,HIGHTREES COMMUNITY DEVELOPMENT TRUST,2991000
WANDSWORTH COUNCIL,ASC,ADMINISTRATION,HEALTH,CHLAMYDIA SCREENING OFFICE,20269339,105141240,12-Feb-14,"14,078.34",Revenue,TERRENCE HIGGINS TRUST,2016903
WANDSWORTH COUNCIL,ASC,ADMINISTRATION,HEALTH,HIV RAPID TESTING PILOT,20268842,105141710,10-Feb-14,488,Revenue,PASSANTE HEALTHCARE LTD,2016795
WANDSWORTH COUNCIL,ASC,ADMINISTRATION,HEALTH,CHLAMYDIA SCREENING,20269335,105141760,12-Feb-14,"2,378.00",Revenue,PREVENTX LTD,2016936
WANDSWORTH COUNCIL,ASC,ADMINISTRATION,HEALTH,CHLAMYDIA SCREENING,20269900,105141760,17-Feb-14,"1,050.00",Revenue,MARKEY PRIMARY SERVICES LTD,2991000
WANDSWORTH COUNCIL,ASC,ADMINISTRATION,HEALTH,CONDOM CARD SCHEME,20268843,105241690,10-Feb-14,"6,610.52",Revenue,METRO CENTRE LTD,2016990
WANDSWORTH COUNCIL,ASC,ADMINISTRATION,HEALTH,WGHT MGT/HLTHY LIFESTYLE SCHS,20269894,105641200,17-Feb-14,"13,333.33",Revenue,MORE LIFE (UK) LTD,2017101
WANDSWORTH COUNCIL,ASC,ADMINISTRATION,HEALTH,ADULT WEIGHT MGT SERVICE,20270786,105641230,20-Feb-14,"4,739.00",Revenue,Slimming World,2991000
WANDSWORTH COUNCIL,ASC,ADMINISTRATION,DIRECT2,AGENCY STAFF,20269949,106000510,18-Feb-14,530.77,Revenue,MATRIX SCM LIMITED,2014926
WANDSWORTH COUNCIL,ASC,ADMINISTRATION,DIRECT2,AGENCY STAFF,20269954,106000510,18-Feb-14,745.52,Revenue,MATRIX SCM LIMITED,2014926
WANDSWORTH COUNCIL,ASC,ADMINISTRATION,DIRECT2,AGENCY STAFF,20271162,106000510,24-Feb-14,854.9,Revenue,MATRIX SCM LIMITED,2014926
WANDSWORTH COUNCIL,ASC,ADMINISTRATION,HEALTH,TIER 2&3 COMMUNITY SERVICES,20271021,106041250,24-Feb-14,"253,661.66",Revenue,KCA,2017193
WANDSWORTH COUNCIL,ASC,ADMINISTRATION,HEALTH,TIER 4 INPATIENT DETOX,20271103,106041270,24-Feb-14,"39,818.00",Revenue,EQUINOX CARE,2015280
WANDSWORTH COUNCIL,ASC,ADMINISTRATION,HEALTH,TIER 4 INPATIENT DETOX,20269144,106041270,11-Feb-14,"117,093.00",Revenue,SUSSEX PARTNERSHIP NHS TRUST,2017200
WANDSWORTH COUNCIL,ASC,ADMINISTRATION,PRIVATE,GENERAL CONTRACT WORK,20269145,10604537K01863,11-Feb-14,"22,500.00",Revenue,BLENHEIM CDP,2006252
WANDSWORTH COUNCIL,ASC,ADMINISTRATION,HEALTH,SUB/ACHL MISUSE CARERS SERVICE,20268837,106141460,10-Feb-14,"43,120.00",Revenue,WANDSWORTH CARERS CENTRE,2013942
WANDSWORTH COUNCIL,ASC,ADMINISTRATION,"EQUIPMENT, FURNITURE & MATS",PURCHASE OF EQUIPMENT - HEALTH,20270301,106330490,18-Feb-14,540.5,Revenue,GASP,2016862
WANDSWORTH COUNCIL,ASC,ADMINISTRATION,"EQUIPMENT, FURNITURE & MATS",PURCHASE OF EQUIPMENT - HEALTH,20268334,106330490,05-Feb-14,889.5,Revenue,INTERMEDICAL (UK) LTD,2016961
WANDSWORTH COUNCIL,ASC,ADMINISTRATION,MISC,MISCELLANEOUS EXPENSES,20271513,106338500,26-Feb-14,775.5,Revenue,GASP,2016862
WANDSWORTH COUNCIL,ASC,ADMINISTRATION,HEALTH,PHARMACY LES,20268235,106341410,05-Feb-14,493.47,Revenue,PEARL CHEMIST LTD,2015428
WANDSWORTH COUNCIL,ASC,ADMINISTRATION,HEALTH,PHARMACY LES,20268235,106341410,05-Feb-14,28,Revenue,PEARL CHEMIST LTD,2015428
WANDSWORTH COUNCIL,ASC,ADMINISTRATION,HEALTH,PHARMACY LES,20268241,106341410,05-Feb-14,42,Revenue,PEARL CHEMIST LTD,2015428
WANDSWORTH COUNCIL,ASC,ADMINISTRATION,HEALTH,PHARMACY LES,20268241,106341410,05-Feb-14,449.53,Revenue,PEARL CHEMIST LTD,2015428
WANDSWORTH COUNCIL,ASC,ADMINISTRATION,HEALTH,PHARMACY LES,20270325,106341410,18-Feb-14,64,Revenue,PEARL CHEMIST LTD,2015428
WANDSWORTH COUNCIL,ASC,ADMINISTRATION,HEALTH,PHARMACY LES,20270325,106341410,18-Feb-14,761.68,Revenue,PEARL CHEMIST LTD,2015428
WANDSWORTH COUNCIL,ASC,ADMINISTRATION,HEALTH,PHARMACY LES,20270321,106341410,18-Feb-14,480.82,Revenue,AMICHEM LTD,2015447
WANDSWORTH COUNCIL,ASC,ADMINISTRATION,HEALTH,PHARMACY LES,20270321,106341410,18-Feb-14,36,Revenue,AMICHEM LTD,2015447
WANDSWORTH COUNCIL,ASC,ADMINISTRATION,HEALTH,PHARMACY LES,20270313,106341410,18-Feb-14,605.47,Revenue,R WALJI PHARMACY,2016860
WANDSWORTH COUNCIL,ASC,ADMINISTRATION,HEALTH,PHARMACY LES,20270313,106341410,18-Feb-14,50,Revenue,R WALJI PHARMACY,2016860
WANDSWORTH COUNCIL,ASC,ADMINISTRATION,HEALTH,PHARMACY LES,20270317,106341410,18-Feb-14,68,Revenue,FAZAL PHARMACY,2016874
WANDSWORTH COUNCIL,ASC,ADMINISTRATION,HEALTH,PHARMACY LES,20270317,106341410,18-Feb-14,616.14,Revenue,FAZAL PHARMACY,2016874
WANDSWORTH COUNCIL,ASC,ADMINISTRATION,HEALTH,PHARMACY LES,20270318,106341410,18-Feb-14,60,Revenue,FAZAL PHARMACY,2016874
WANDSWORTH COUNCIL,ASC,ADMINISTRATION,HEALTH,PHARMACY LES,20270318,106341410,18-Feb-14,486.73,Revenue,FAZAL PHARMACY,2016874
WANDSWORTH COUNCIL,ASC,ADMINISTRATION,HEALTH,YOUNG PEOPLES HEALTH AGENCY,20271014,106341980,21-Feb-14,"35,121.00",Revenue,CATCH 22,2005902
WANDSWORTH COUNCIL,ASC,ADMINISTRATION,SERVICES,PROJECT WORK,20269901,107034800,17-Feb-14,"1,200.00",Revenue,THE LAST WORD PARTNERSHIP LTD,2991000
WANDSWORTH COUNCIL,ASC,ADMINISTRATION,SERVICES,PROJECT WORK,20269902,107034800,17-Feb-14,"1,100.00",Revenue,DISCHRO CREATIVE,2991000
WANDSWORTH COUNCIL,ASC,ADMINISTRATION,SERVICES,PROJECT WORK,20269336,107134800,12-Feb-14,"2,260.00",Revenue,1 UP HIRE LTD,2018418
WANDSWORTH COUNCIL,ASC,ADMINISTRATION,SERVICES,PROJECT WORK,20270291,107134800,18-Feb-14,"5,766.25",Revenue,WILLIAMS AND ASSOCIATES,2991000
WANDSWORTH COUNCIL,ASC,ADMINISTRATION,SERVICES,PROJECT WORK,20269342,108034800,12-Feb-14,"4,281.48",Revenue,PLACES FOR THE PEOPLE GROUP LTD T/A DC LEISURE,2000117
WANDSWORTH COUNCIL,ASC,ADMINISTRATION,SERVICES,PROJECT WORK,20269898,108034800,17-Feb-14,"4,485.36",Revenue,PLACES FOR THE PEOPLE GROUP LTD T/A DC LEISURE,2000117
WANDSWORTH COUNCIL,ASC,ADMINISTRATION,SERVICES,PROJECT WORK,20271315,108034800,25-Feb-14,"5,963.49",Revenue,PLACES FOR THE PEOPLE GROUP LTD T/A DC LEISURE,2000117
WANDSWORTH COUNCIL,ASC,ADMINISTRATION,SERVICES,PROJECT WORK,20271314,108034800,25-Feb-14,"5,456.00",Revenue,REGENERATE.COM,2004407
WANDSWORTH COUNCIL,ASC,ADMINISTRATION,SERVICES,PROJECT WORK,20269341,108034800,12-Feb-14,"4,830.00",Revenue,SOUND MINDS,2005526
WANDSWORTH COUNCIL,ASC,ADMINISTRATION,SERVICES,PROJECT WORK,20269889,108034800,17-Feb-14,"2,500.00",Revenue,ST MARY�S UNIVERSITY COLLEGE,2010390
WANDSWORTH COUNCIL,ASC,ADMINISTRATION,SERVICES,PROJECT WORK,20269890,108034800,17-Feb-14,"15,000.00",Revenue,ST MARY�S UNIVERSITY COLLEGE,2010390
WANDSWORTH COUNCIL,ASC,ADMINISTRATION,SERVICES,PROJECT WORK,20269891,108034800,17-Feb-14,800,Revenue,THE KIDS COOKERY SCHOOL LTD,2017417
WANDSWORTH COUNCIL,ASC,ADMINISTRATION,SERVICES,PROJECT WORK,20269357,108034800,12-Feb-14,"3,063.00",Revenue,PLUNKETT FOUNDATION,2018131
WANDSWORTH COUNCIL,ASC,ADMINISTRATION,SERVICES,PROJECT WORK,20269358,108034800,12-Feb-14,"1,880.00",Revenue,AMS INTERNATIONAL,2991000
WANDSWORTH COUNCIL,ASC,ADMINISTRATION,SERVICES,PROJECT WORK,20269892,108134800,17-Feb-14,"2,160.00",Revenue,FORWARD,2991000
WANDSWORTH COUNCIL,NGF HS,ADMINISTRATION,DIRECT2,AGENCY STAFF,20269949,110000510,18-Feb-14,283.4,Revenue,MATRIX SCM LIMITED,2014926
WANDSWORTH COUNCIL,NGF HS,ADMINISTRATION,DIRECT2,AGENCY STAFF,20269954,110000510,18-Feb-14,259.78,Revenue,MATRIX SCM LIMITED,2014926
WANDSWORTH COUNCIL,NGF HS,ADMINISTRATION,DIRECT2,AGENCY STAFF,20271162,110000510,24-Feb-14,295.2,Revenue,MATRIX SCM LIMITED,2014926
WANDSWORTH COUNCIL,NGF HS,ADMINISTRATION,"EQUIPMENT, FURNITURE & MATS",EQUIP.FURN & MATS-REPS & MTCE,20268769,110030010,10-Feb-14,50,Revenue,CLOCKWORK REMOVALS LTD,2001348
WANDSWORTH COUNCIL,NGF HS,ADMINISTRATION,PRINTING STAT & GEN OFFICE EXP,PHOTOCOPYING,20270817,110033380,21-Feb-14,432.66,Revenue,RICOH UK LTD,2002588
WANDSWORTH COUNCIL,NGF HS,ADMINISTRATION,SERVICES,HIPS,20268304,110034460,05-Feb-14,420,Revenue,GORDON BROWN,2001802
WANDSWORTH COUNCIL,NGF HS,ADMINISTRATION,SERVICES,HIPS,20268319,110034460,05-Feb-14,600,Revenue,GORDON BROWN,2001802
WANDSWORTH COUNCIL,NGF HS,ADMINISTRATION,SERVICES,HIPS,20268344,110034460,05-Feb-14,660,Revenue,GORDON BROWN,2001802
WANDSWORTH COUNCIL,NGF CS,ADMINISTRATION,"REPAIRS, ALTERATIONS & MTCE",MINOR REPAIRS TO BUILDINGS,20270882,111010030,21-Feb-14,904.76,Revenue,ELECTROLOK COMPANY (SECURITY) LTD,2008283
WANDSWORTH COUNCIL,NGF CS,ADMINISTRATION,PRIVATE,GENERAL CONTRACT WORK,20270176,111045370,18-Feb-14,"1,125.43",Revenue,SITA UK LTD,2003271
WANDSWORTH COUNCIL,NGF CS,ADMINISTRATION,PRIVATE,GENERAL CONTRACT WORK,20270177,111045370,18-Feb-14,417.12,Revenue,SITA UK LTD,2003271
WANDSWORTH COUNCIL,NGF CS,ENVIRONMENT & COMMUNITY,PRIVATE,GENERAL CONTRACT WORK,20269006,111045370,13-Feb-14,780,Revenue,WINDOWFLOWERS LTD,2007546
WANDSWORTH COUNCIL,NGF CS,ADMINISTRATION,GROUNDS MAINTENANCE,CONSULTANTS FEE-LA TREE SURVEY,20270180,111512160,18-Feb-14,583.52,Revenue,SITA UK LTD,2003271
WANDSWORTH COUNCIL,NGF CS,FINANCE,"REPAIRS, ALTERATIONS & MTCE","REPS, ALTS & MTCE-BUILDINGS",345459,11181000L08301,06-Feb-14,"3,769.88",Revenue,D H CROFTS LTD,SP0000076
WANDSWORTH COUNCIL,NGF CS,FINANCE,"REPAIRS, ALTERATIONS & MTCE","REPS, ALTS & MTCE-BUILDINGS",345635,11181000L08301,06-Feb-14,"5,457.01",Revenue,D H CROFTS LTD,SP0000076
WANDSWORTH COUNCIL,NGF CS,FINANCE,"REPAIRS, ALTERATIONS & MTCE","REPS, ALTS & MTCE-BUILDINGS",351399,11181000L08301,17-Feb-14,465.07,Revenue,D H CROFTS LTD,SP0000076
WANDSWORTH COUNCIL,NGF CS,FINANCE,"REPAIRS, ALTERATIONS & MTCE","REPS, ALTS & MTCE-BUILDINGS",345510,11181000L08301,06-Feb-14,456.55,Revenue,T BROWN GROUP LTD,SP0001050
WANDSWORTH COUNCIL,NGF CS,FINANCE,"REPAIRS, ALTERATIONS & MTCE","REPS, ALTS & MTCE-BUILDINGS",358940,11181000L08307,27-Feb-14,486.5,Revenue,T BROWN GROUP LTD,SP0001050
WANDSWORTH COUNCIL,NGF CS,FINANCE,"REPAIRS, ALTERATIONS & MTCE","REPS, ALTS & MTCE-BUILDINGS",358864,11181000L0830A,27-Feb-14,560.56,Revenue,D H CROFTS LTD,SP0000076
WANDSWORTH COUNCIL,NGF CS,FINANCE,"REPAIRS, ALTERATIONS & MTCE","REPS, ALTS & MTCE-BUILDINGS",351236,11181000L0830A,17-Feb-14,880,Revenue,PHOENIX ECS LTD,SP0001284
WANDSWORTH COUNCIL,NGF CS,FINANCE,"REPAIRS, ALTERATIONS & MTCE","REPS, ALTS & MTCE-BUILDINGS",351237,11181000L0830A,17-Feb-14,"1,496.22",Revenue,PHOENIX ECS LTD,SP0001284
WANDSWORTH COUNCIL,NGF CS,FINANCE,"REPAIRS, ALTERATIONS & MTCE","REPS, ALTS & MTCE-BUILDINGS",351177,11181000L0830B,17-Feb-14,"3,262.40",Revenue,B.L.L. ASSOCIATES LTD,SP0000714
WANDSWORTH COUNCIL,NGF CS,FINANCE,"REPAIRS, ALTERATIONS & MTCE","REPS, ALTS & MTCE-BUILDINGS",345512,11181000L0830C,06-Feb-14,717.63,Revenue,T BROWN GROUP LTD,SP0001050
WANDSWORTH COUNCIL,NGF CS,FINANCE,"REPAIRS, ALTERATIONS & MTCE","REPS, ALTS & MTCE-BUILDINGS",349651,11181000L0830D,13-Feb-14,"1,913.34",Revenue,B.L.L. ASSOCIATES LTD,SP0000714
WANDSWORTH COUNCIL,NGF CS,FINANCE,"REPAIRS, ALTERATIONS & MTCE","REPS, ALTS & MTCE-BUILDINGS",357545,11181000L0830V,25-Feb-14,765.6,Revenue,T BROWN GROUP LTD,SP0001050
WANDSWORTH COUNCIL,NGF CS,FINANCE,"REPAIRS, ALTERATIONS & MTCE","REPS, ALTS & MTCE-BUILDINGS",351233,11181000L0830X,17-Feb-14,570,Revenue,PHOENIX ECS LTD,SP0001284
WANDSWORTH COUNCIL,NGF CS,FINANCE,"REPAIRS, ALTERATIONS & MTCE","REPS, ALTS & MTCE-BUILDINGS",345479,11181000L08331,06-Feb-14,"4,701.89",Revenue,D H CROFTS LTD,SP0000076
WANDSWORTH COUNCIL,NGF CS,FINANCE,"REPAIRS, ALTERATIONS & MTCE","REPS, ALTS & MTCE-BUILDINGS",345513,11181000L08331,06-Feb-14,797.5,Revenue,T BROWN GROUP LTD,SP0001050
WANDSWORTH COUNCIL,NGF CS,FINANCE,"REPAIRS, ALTERATIONS & MTCE","REPS, ALTS & MTCE-BUILDINGS",345525,11181000L08331,06-Feb-14,691.18,Revenue,T BROWN GROUP LTD,SP0001050
WANDSWORTH COUNCIL,NGF CS,FINANCE,"REPAIRS, ALTERATIONS & MTCE","REPS, ALTS & MTCE-BUILDINGS",351277,11181000L08331,17-Feb-14,"1,371.99",Revenue,T BROWN GROUP LTD,SP0001050
WANDSWORTH COUNCIL,NGF CS,FINANCE,"REPAIRS, ALTERATIONS & MTCE","REPS, ALTS & MTCE-BUILDINGS",354998,11181000L08337,20-Feb-14,512,Revenue,NATIONAL CRADLE MAINTENANCE LTD,SP0000407
WANDSWORTH COUNCIL,NGF CS,FINANCE,"REPAIRS, ALTERATIONS & MTCE","REPS, ALTS & MTCE-BUILDINGS",343801,11181000L0833A,05-Feb-14,"3,413.10",Revenue,D H CROFTS LTD,SP0000076
WANDSWORTH COUNCIL,NGF CS,FINANCE,"REPAIRS, ALTERATIONS & MTCE","REPS, ALTS & MTCE-BUILDINGS",343807,11181000L0833A,05-Feb-14,691.18,Revenue,T BROWN GROUP LTD,SP0001050
WANDSWORTH COUNCIL,NGF CS,FINANCE,"REPAIRS, ALTERATIONS & MTCE","REPS, ALTS & MTCE-BUILDINGS",351247,11181000L0833T,17-Feb-14,637.74,Revenue,T BROWN GROUP LTD,SP0001050
WANDSWORTH COUNCIL,NGF CS,ADMINISTRATION,GROUNDS MAINTENANCE,CONSULTANTS FEE-LA TREE SURVEY,20270184,112012160,18-Feb-14,150.57,Revenue,SITA UK LTD,2003271
WANDSWORTH COUNCIL,NGF CS,ADMINISTRATION,GROUNDS MAINTENANCE,CONSULTANTS FEE-LA TREE SURVEY,20270184,112112160,18-Feb-14,150.57,Revenue,SITA UK LTD,2003271
WANDSWORTH COUNCIL,NGF CS,ADMINISTRATION,GROUNDS MAINTENANCE,CONSULTANTS FEE-LA TREE SURVEY,20270184,112212160,18-Feb-14,150.57,Revenue,SITA UK LTD,2003271
WANDSWORTH COUNCIL,NGF CS,ADMINISTRATION,GROUNDS MAINTENANCE,CONSULTANTS FEE-LA TREE SURVEY,20270184,112312160,18-Feb-14,150.56,Revenue,SITA UK LTD,2003271
WANDSWORTH COUNCIL,NGF CS,ADMINISTRATION,GROUNDS MAINTENANCE,CONSULTANTS FEE-LA TREE SURVEY,20270183,112912160,18-Feb-14,602.27,Revenue,SITA UK LTD,2003271
WANDSWORTH COUNCIL,NGF CS,ADMINISTRATION,CLEANING & DOMESTIC SUPPLIES,CLEANING CONTRACT,20270174,113813020,18-Feb-14,"43,754.50",Revenue,OCEAN INTEGRATED SERVICES LTD,2009026
WANDSWORTH COUNCIL,NGF CS,ADMINISTRATION,"EQUIPMENT, FURNITURE & MATS","EQUIPMENT, FURNITURE & MATS",20268618,114030000,06-Feb-14,940,Revenue,SUNA COMMUNICATION LTD,2003083
WANDSWORTH COUNCIL,NGF CDC,ADMINISTRATION,"REPAIRS, ALTERATIONS & MTCE",REMOVALS & REORGANISATIONS,20270872,11421014K07207,21-Feb-14,498.84,Revenue,OFFICE DEPOT UK LTD,2000101
WANDSWORTH COUNCIL,NGF CDC,ADMINISTRATION,"REPAIRS, ALTERATIONS & MTCE",REMOVALS & REORGANISATIONS,20268769,11421014K07207,10-Feb-14,528.06,Revenue,CLOCKWORK REMOVALS LTD,2001348
WANDSWORTH COUNCIL,NGF CDC,ADMINISTRATION,"REPAIRS, ALTERATIONS & MTCE",REMOVALS & REORGANISATIONS,20270873,11421014K07207,21-Feb-14,443.66,Revenue,CLOCKWORK REMOVALS LTD,2001348
WANDSWORTH COUNCIL,NGF CDC,ADMINISTRATION,"REPAIRS, ALTERATIONS & MTCE",REMOVALS & REORGANISATIONS,20268901,11421014K07207,10-Feb-14,"3,646.23",Revenue,WAGSTAFF INTERIORS GROUP,2004128
WANDSWORTH COUNCIL,NGF CDC,ADMINISTRATION,COMMUNICATIONS & COMP,TELECOMMUNICATIONS SLA,20269840,11423652K07115,14-Feb-14,217.11,Revenue,SUNA COMMUNICATION LTD,2003083
WANDSWORTH COUNCIL,NGF CDC,ADMINISTRATION,COMMUNICATIONS & COMP,TELECOMMUNICATIONS SLA,20269840,11423652K07115,14-Feb-14,"1,176.00",Revenue,SUNA COMMUNICATION LTD,2003083
WANDSWORTH COUNCIL,NGF CDC,ADMINISTRATION,COMMUNICATIONS & COMP,TELECOMMUNICATIONS SLA,20269840,11423652K07115,14-Feb-14,397.5,Revenue,SUNA COMMUNICATION LTD,2003083
WANDSWORTH COUNCIL,NGF CDC,ADMINISTRATION,COMMUNICATIONS & COMP,TELECOMMUNICATIONS SLA,20269840,11423652K07115,14-Feb-14,"6,931.90",Revenue,SUNA COMMUNICATION LTD,2003083
WANDSWORTH COUNCIL,NGF CDC,ADMINISTRATION,COMMUNICATIONS & COMP,TELECOMMUNICATIONS SLA,20268618,11423652K07195,06-Feb-14,"4,196.10",Revenue,SUNA COMMUNICATION LTD,2003083
WANDSWORTH COUNCIL,NGF CDC,ADMINISTRATION,COMMUNICATIONS & COMP,TELECOMMUNICATIONS SLA,20269840,11423652K07195,14-Feb-14,310,Revenue,SUNA COMMUNICATION LTD,2003083
WANDSWORTH COUNCIL,NGF CDC,FINANCE,COMMUNICATIONS & COMP,TELECOMMUNICATIONS SLA,351397,11423652K07195,17-Feb-14,"1,652.50",Revenue,D H CROFTS LTD,SP0000076
WANDSWORTH COUNCIL,NGF CDC,ADMINISTRATION,COMMUNICATIONS & COMP,TELECOMMUNICATIONS SLA,20268618,11423652K07215,06-Feb-14,42,Revenue,SUNA COMMUNICATION LTD,2003083
WANDSWORTH COUNCIL,NGF CDC,ADMINISTRATION,COMMUNICATIONS & COMP,TELECOMMUNICATIONS SLA,20268618,11423652K07235,06-Feb-14,40,Revenue,SUNA COMMUNICATION LTD,2003083
WANDSWORTH COUNCIL,NGF CDC,ADMINISTRATION,COMMUNICATIONS & COMP,TELECOMMUNICATIONS SLA,20268618,11423652K07235,06-Feb-14,100,Revenue,SUNA COMMUNICATION LTD,2003083
WANDSWORTH COUNCIL,NGF CDC,ADMINISTRATION,COMMUNICATIONS & COMP,TELECOMMUNICATIONS SLA,20268618,11423652K07235,06-Feb-14,21,Revenue,SUNA COMMUNICATION LTD,2003083
WANDSWORTH COUNCIL,NGF CDC,ADMINISTRATION,COMMUNICATIONS & COMP,TELECOMMUNICATIONS SLA,20268618,11423652K07235,06-Feb-14,21,Revenue,SUNA COMMUNICATION LTD,2003083
WANDSWORTH COUNCIL,NGF CDC,ADMINISTRATION,COMMUNICATIONS & COMP,TELECOMMUNICATIONS SLA,20269840,11423652K07235,14-Feb-14,210,Revenue,SUNA COMMUNICATION LTD,2003083
WANDSWORTH COUNCIL,NGF CDC,ADMINISTRATION,COMMUNICATIONS & COMP,TELECOMMUNICATIONS SLA,20269840,11423652K07235,14-Feb-14,650,Revenue,SUNA COMMUNICATION LTD,2003083
WANDSWORTH COUNCIL,NGF CDC,FINANCE,PRIVATE,GENERAL CONTRACT WORK,351194,11424537K07171,17-Feb-14,962.88,Revenue,D H CROFTS LTD,SP0000076
WANDSWORTH COUNCIL,NGF CDC,ENVIRONMENT & COMMUNITY,PRIVATE,GENERAL CONTRACT WORK,342846,11424537K07191,03-Feb-14,"120,470.44",Revenue,D H CROFTS LTD,SP0000076
WANDSWORTH COUNCIL,NGF CDC,FINANCE,PRIVATE,GENERAL CONTRACT WORK,345467,11424537K07191,06-Feb-14,"6,663.72",Revenue,D H CROFTS LTD,SP0000076
WANDSWORTH COUNCIL,NGF CDC,FINANCE,PRIVATE,GENERAL CONTRACT WORK,358929,11424537K07191,27-Feb-14,"1,797.34",Revenue,D H CROFTS LTD,SP0000076
WANDSWORTH COUNCIL,NGF CDC,FINANCE,PRIVATE,GENERAL CONTRACT WORK,345480,11424537K07191,06-Feb-14,200,Revenue,DOWNS FLOORING SPECIALIST,SP0000833
WANDSWORTH COUNCIL,NGF CDC,FINANCE,PRIVATE,GENERAL CONTRACT WORK,345480,11424537K07191,06-Feb-14,345,Revenue,DOWNS FLOORING SPECIALIST,SP0000833
WANDSWORTH COUNCIL,NGF CDC,FINANCE,PRIVATE,GENERAL CONTRACT WORK,345481,11424537K07191,06-Feb-14,924,Revenue,DOWNS FLOORING SPECIALIST,SP0000833
WANDSWORTH COUNCIL,NGF CDC,FINANCE,PRIVATE,GENERAL CONTRACT WORK,345481,11424537K07191,06-Feb-14,300,Revenue,DOWNS FLOORING SPECIALIST,SP0000833
WANDSWORTH COUNCIL,NGF CDC,FINANCE,PRIVATE,GENERAL CONTRACT WORK,345482,11424537K07191,06-Feb-14,300,Revenue,DOWNS FLOORING SPECIALIST,SP0000833
WANDSWORTH COUNCIL,NGF CDC,FINANCE,PRIVATE,GENERAL CONTRACT WORK,345482,11424537K07191,06-Feb-14,482,Revenue,DOWNS FLOORING SPECIALIST,SP0000833
WANDSWORTH COUNCIL,NGF CDC,FINANCE,PRIVATE,GENERAL CONTRACT WORK,351234,11424537K07191,17-Feb-14,"1,292.63",Revenue,PHOENIX ECS LTD,SP0001284
WANDSWORTH COUNCIL,NGF CDC,FINANCE,PRIVATE,GENERAL CONTRACT WORK,351235,11424537K07191,17-Feb-14,"1,389.12",Revenue,PHOENIX ECS LTD,SP0001284
WANDSWORTH COUNCIL,NGF CDC,FINANCE,PRIVATE,GENERAL CONTRACT WORK,345461,11424537K07231,06-Feb-14,"1,061.41",Revenue,D H CROFTS LTD,SP0000076
WANDSWORTH COUNCIL,NGF CDC,FINANCE,PRIVATE,GENERAL CONTRACT WORK,345462,11424537K07231,06-Feb-14,"5,530.99",Revenue,D H CROFTS LTD,SP0000076
WANDSWORTH COUNCIL,NGF CDC,FINANCE,PRIVATE,GENERAL CONTRACT WORK,345463,11424537K07231,06-Feb-14,969.44,Revenue,D H CROFTS LTD,SP0000076
WANDSWORTH COUNCIL,NGF CDC,FINANCE,PRIVATE,GENERAL CONTRACT WORK,345464,11424537K07231,06-Feb-14,"2,253.26",Revenue,D H CROFTS LTD,SP0000076
WANDSWORTH COUNCIL,NGF CDC,FINANCE,PRIVATE,GENERAL CONTRACT WORK,345465,11424537K07231,06-Feb-14,"3,453.20",Revenue,D H CROFTS LTD,SP0000076
WANDSWORTH COUNCIL,NGF CDC,FINANCE,PRIVATE,GENERAL CONTRACT WORK,345466,11424537K07231,06-Feb-14,"1,571.50",Revenue,D H CROFTS LTD,SP0000076
WANDSWORTH COUNCIL,NGF CS,ADMINISTRATION,DIRECT2,AGENCY STAFF,20269949,120100510,18-Feb-14,141.71,Revenue,MATRIX SCM LIMITED,2014926
WANDSWORTH COUNCIL,NGF CS,ADMINISTRATION,DIRECT2,AGENCY STAFF,20269949,120100510,18-Feb-14,"2,145.54",Revenue,MATRIX SCM LIMITED,2014926
WANDSWORTH COUNCIL,NGF CS,ADMINISTRATION,DIRECT2,AGENCY STAFF,20269954,120100510,18-Feb-14,"1,500.73",Revenue,MATRIX SCM LIMITED,2014926
WANDSWORTH COUNCIL,NGF CS,ADMINISTRATION,DIRECT2,AGENCY STAFF,20271162,120100510,24-Feb-14,"1,387.82",Revenue,MATRIX SCM LIMITED,2014926
WANDSWORTH COUNCIL,NGF CS,ADMINISTRATION,INDIRECT,TRAINING - APPROVED QUALS,20270998,120100760,21-Feb-14,"4,375.00",Revenue,CENTRAL LAW TRAINING LTD,2003321
WANDSWORTH COUNCIL,NGF CS,ADMINISTRATION,INDIRECT,TRAINING - EXTERNAL COURSES,20270562,120100770,19-Feb-14,650,Revenue,CENTRAL LAW TRAINING LTD,2003321
WANDSWORTH COUNCIL,NGF CS,ADMINISTRATION,INDIRECT,TRAINING - EXTERNAL COURSES,20269122,120100770,10-Feb-14,480,Revenue,MBL (SEMINARS),2991000
WANDSWORTH COUNCIL,NGF CS,ADMINISTRATION,GRANTS & SUBSCRIPTIONS,SUBSCRIPTIONS,20270865,120137640,21-Feb-14,"6,207.00",Revenue,THOMPSON REUTERS,2013886
WANDSWORTH COUNCIL,NGF CS,ADMINISTRATION,DIRECT2,AGENCY STAFF,20269949,120400510,18-Feb-14,200.17,Revenue,MATRIX SCM LIMITED,2014926
WANDSWORTH COUNCIL,NGF CS,ADMINISTRATION,DIRECT2,AGENCY STAFF,20269949,120400510,18-Feb-14,846.23,Revenue,MATRIX SCM LIMITED,2014926
WANDSWORTH COUNCIL,NGF CS,ADMINISTRATION,DIRECT2,AGENCY STAFF,20271162,120400510,24-Feb-14,153.86,Revenue,MATRIX SCM LIMITED,2014926
WANDSWORTH COUNCIL,NGF CS,ADMINISTRATION,DIRECT2,AGENCY STAFF,20271162,120400510,24-Feb-14,398.53,Revenue,MATRIX SCM LIMITED,2014926
WANDSWORTH COUNCIL,NGF CS,ADMINISTRATION,DIRECT2,AGENCY STAFF,20269949,120500510,18-Feb-14,"1,425.58",Revenue,MATRIX SCM LIMITED,2014926
WANDSWORTH COUNCIL,NGF CS,ADMINISTRATION,DIRECT2,AGENCY STAFF,20269954,120500510,18-Feb-14,"1,333.50",Revenue,MATRIX SCM LIMITED,2014926
WANDSWORTH COUNCIL,NGF CS,ADMINISTRATION,DIRECT2,AGENCY STAFF,20271162,120500510,24-Feb-14,"1,225.56",Revenue,MATRIX SCM LIMITED,2014926
WANDSWORTH COUNCIL,NGF CS,ADMINISTRATION,PRINTING STAT & GEN OFFICE EXP,PHOTOCOPYING,20268332,120533380,05-Feb-14,372.45,Revenue,RICOH UK LTD,2002588
WANDSWORTH COUNCIL,NGF CS,ADMINISTRATION,PRIVATE,CONTRACT 7 - VNEB LEGAL,20270640,120645540,19-Feb-14,"1,309.00",Revenue,WINCKWORTH SHERWOOD LLP,2009504
WANDSWORTH COUNCIL,NGF CS,ADMINISTRATION,PRIVATE,"CONTRACT 6- HWYS, PLAN ETC",20270835,120646170,20-Feb-14,"1,522.50",Revenue,A S B LAW,2008363
WANDSWORTH COUNCIL,NGF CS,ADMINISTRATION,OTHER AGENCIES,DISBURSEMENTS,20270568,120743250,19-Feb-14,"2,932.02",Revenue,ASSOCIATED EMPLOYERS LTD,2001547
WANDSWORTH COUNCIL,NGF CS,ADMINISTRATION,PRIVATE,CONTRACT 1- OPERATIONAL PROPS,20269309,120746180,11-Feb-14,"49,954.33",Revenue,LAMBERT SMITH HAMPTON,2003697
WANDSWORTH COUNCIL,NGF CS,ADMINISTRATION,DIRECT2,AGENCY STAFF,20269949,120800510,18-Feb-14,"1,056.33",Revenue,MATRIX SCM LIMITED,2014926
WANDSWORTH COUNCIL,NGF CS,ADMINISTRATION,DIRECT2,AGENCY STAFF,20269954,120800510,18-Feb-14,960.93,Revenue,MATRIX SCM LIMITED,2014926
WANDSWORTH COUNCIL,NGF CS,ADMINISTRATION,DIRECT2,AGENCY STAFF,20271162,120800510,24-Feb-14,"1,138.12",Revenue,MATRIX SCM LIMITED,2014926
WANDSWORTH COUNCIL,NGF CS,ADMINISTRATION,INDIRECT,STAFF ADVERTISING - VACANCIES,20269833,120800960,14-Feb-14,"1,726.44",Revenue,PENNA PLC,2016362
WANDSWORTH COUNCIL,NGF CS,ADMINISTRATION,PRINTING STAT & GEN OFFICE EXP,PHOTOCOPYING,20268332,120833380,05-Feb-14,372.46,Revenue,RICOH UK LTD,2002588
WANDSWORTH COUNCIL,NGF CS,ADMINISTRATION,COMMUNICATIONS & COMP,I.T. SOFTWARE,20269560,121136240,13-Feb-14,"12,248.93",Revenue,PANACEA SOFTWARE LTD,2016608
WANDSWORTH COUNCIL,NGF CS,ADMINISTRATION,PRINTING STAT & GEN OFFICE EXP,OUTWORK - LITHO,20268726,121333590,10-Feb-14,908.67,Revenue,FINANCIAL DATA MANAGEMENT LTD,2003241
WANDSWORTH COUNCIL,NGF CS,ADMINISTRATION,PRINTING STAT & GEN OFFICE EXP,OUTWORK - LITHO,20268727,121333590,10-Feb-14,"2,363.71",Revenue,FINANCIAL DATA MANAGEMENT LTD,2003241
WANDSWORTH COUNCIL,NGF CS,ADMINISTRATION,PRINTING STAT & GEN OFFICE EXP,OUTWORK - LITHO,20269562,121333590,13-Feb-14,608,Revenue,FINANCIAL DATA MANAGEMENT LTD,2003241
WANDSWORTH COUNCIL,NGF CS,ADMINISTRATION,PRINTING STAT & GEN OFFICE EXP,OUTWORK - LITHO,20268730,121333590,10-Feb-14,"3,571.25",Revenue,KALL KWIK,2007566
WANDSWORTH COUNCIL,NGF CS,ADMINISTRATION,PRINTING STAT & GEN OFFICE EXP,OUTWORK - LITHO,20269570,121333590,13-Feb-14,"3,088.16",Revenue,KALL KWIK,2007566
WANDSWORTH COUNCIL,NGF CS,ADMINISTRATION,PRINTING STAT & GEN OFFICE EXP,OUTWORK - LITHO,20269577,121333590,13-Feb-14,667,Revenue,IMPRESS PRINT SERVICES LTD,2008443
WANDSWORTH COUNCIL,NGF CS,ADMINISTRATION,PRINTING STAT & GEN OFFICE EXP,OUTWORK - LITHO,20269580,121333590,13-Feb-14,"1,114.00",Revenue,IMPRESS PRINT SERVICES LTD,2008443
WANDSWORTH COUNCIL,NGF CS,ADMINISTRATION,PRINTING STAT & GEN OFFICE EXP,OUTWORK - LITHO,20269581,121333590,13-Feb-14,565,Revenue,IMPRESS PRINT SERVICES LTD,2008443
WANDSWORTH COUNCIL,NGF CS,ADMINISTRATION,PRINTING STAT & GEN OFFICE EXP,OUTWORK - LITHO,20270329,121333590,18-Feb-14,"7,872.88",Revenue,GLOBAL MEDIA PRODUCTION,2008737
WANDSWORTH COUNCIL,NGF CS,ADMINISTRATION,PRINTING STAT & GEN OFFICE EXP,OUTWORK - LITHO,20270333,121333590,18-Feb-14,"2,390.00",Revenue,WARNERS MIDLANDS PLC,2017395
WANDSWORTH COUNCIL,NGF CS,ADMINISTRATION,PRINTING STAT & GEN OFFICE EXP,OUTWORK - EXTERN NON FRAMEWORK,20269548,121333600,13-Feb-14,624,Revenue,SERVICE GRAPHICS LTD,2001446
WANDSWORTH COUNCIL,NGF CS,ADMINISTRATION,PRINTING STAT & GEN OFFICE EXP,OUTWORK - EXTERN NON FRAMEWORK,20269558,121333600,13-Feb-14,"2,357.00",Revenue,EURO LABEL PRINTERS LTD,2001657
WANDSWORTH COUNCIL,NGF CS,ADMINISTRATION,PRINTING STAT & GEN OFFICE EXP,OUTWORK - EXTERN NON FRAMEWORK,20269554,121333600,13-Feb-14,"1,988.00",Revenue,LONDON LETTERBOX MARKETING,2003685
WANDSWORTH COUNCIL,NGF CS,ADMINISTRATION,PRINTING STAT & GEN OFFICE EXP,OUTWORK - EXTERN NON FRAMEWORK,20269556,121333600,13-Feb-14,938,Revenue,ONNEKAS LTD (MARTINS),2007366
WANDSWORTH COUNCIL,NGF CS,ADMINISTRATION,DIRECT2,AGENCY STAFF,20271162,121400510,24-Feb-14,772.62,Revenue,MATRIX SCM LIMITED,2014926
WANDSWORTH COUNCIL,NGF CS,ADMINISTRATION,"EQUIPMENT, FURNITURE & MATS",OP COSTS - QUICKPRINT MACHINE,20269567,121430230,13-Feb-14,587.11,Revenue,RICOH UK LTD,2002588
WANDSWORTH COUNCIL,NGF CS,ADMINISTRATION,PRINTING STAT & GEN OFFICE EXP,PAPER - QUICKPRINT,20270332,121433370,18-Feb-14,731.95,Revenue,ROBERT HORNE PAPER CO LTD T/A PAPERLINX,2006384
WANDSWORTH COUNCIL,NGF CS,ADMINISTRATION,COMMUNICATIONS & COMP,I.T. EQUIPMENT & MAINTENANCE,20269560,121436210,13-Feb-14,"2,646.48",Revenue,PANACEA SOFTWARE LTD,2016608
WANDSWORTH COUNCIL,NGF CDC,ADMINISTRATION,PRINTING STAT & GEN OFFICE EXP,PUBLIC RELATIONS,20269553,12203346K9018J,13-Feb-14,"6,106.00",Revenue,LONDON LETTERBOX MARKETING,2003685
WANDSWORTH COUNCIL,NGF CDC,ADMINISTRATION,PRINTING STAT & GEN OFFICE EXP,PUBLICITY,20270076,122033470,17-Feb-14,640,Revenue,TONI MARSHALL,2012976
WANDSWORTH COUNCIL,NGF CDC,ADMINISTRATION,PRINTING STAT & GEN OFFICE EXP,PUBLICITY,20270077,122033470,17-Feb-14,850,Revenue,TONI MARSHALL,2012976
WANDSWORTH COUNCIL,NGF CDC,ADMINISTRATION,PRINTING STAT & GEN OFFICE EXP,PUBLICITY,20269571,122033470,13-Feb-14,550,Revenue,ROEHAMPTON TRUST LTD,2013275
WANDSWORTH COUNCIL,NGF CDC,ADMINISTRATION,PRINTING STAT & GEN OFFICE EXP,PUBLICITY,20269572,122033470,13-Feb-14,550,Revenue,ROEHAMPTON TRUST LTD,2013275
WANDSWORTH COUNCIL,NGF CDC,ADMINISTRATION,PRINTING STAT & GEN OFFICE EXP,PUBLICITY,20269573,122033470,13-Feb-14,"1,100.00",Revenue,ROEHAMPTON TRUST LTD,2013275
WANDSWORTH COUNCIL,NGF CDC,ADMINISTRATION,PRINTING STAT & GEN OFFICE EXP,PUBLICITY,20268394,122033470,05-Feb-14,499,Revenue,DOTMAILER LTD,2014200
WANDSWORTH COUNCIL,NGF CDC,ADMINISTRATION,PRINTING STAT & GEN OFFICE EXP,PUBLICITY,20268395,122033470,05-Feb-14,499,Revenue,DOTMAILER LTD,2014200
WANDSWORTH COUNCIL,NGF CDC,ADMINISTRATION,PRINTING STAT & GEN OFFICE EXP,PUBLICITY,20270074,122033470,17-Feb-14,499,Revenue,DOTMAILER LTD,2014200
WANDSWORTH COUNCIL,NGF CS,ADMINISTRATION,DIRECT2,AGENCY STAFF,20271162,122100510,24-Feb-14,657.29,Revenue,MATRIX SCM LIMITED,2014926
WANDSWORTH COUNCIL,NGF CS,ADMINISTRATION,COMMUNICATIONS & COMP,COMMUNICATIONS - POSTAGE,20270185,122136000,18-Feb-14,"9,472.04",Revenue,TNT POST LONDON LTD,2011033
WANDSWORTH COUNCIL,NGF CS,ADMINISTRATION,COMMUNICATIONS & COMP,COMMUNICATIONS - POSTAGE,20270186,122136000,18-Feb-14,"7,646.39",Revenue,TNT POST LONDON LTD,2011033
WANDSWORTH COUNCIL,NGF CS,ADMINISTRATION,COMMUNICATIONS & COMP,COMMUNICATIONS - POSTAGE,20270870,122136000,21-Feb-14,934.57,Revenue,TNT POST LONDON LTD,2011033
WANDSWORTH COUNCIL,NGF CS,ADMINISTRATION,INDIRECT,IN-SERVICE TRAINING-SLA,20268979,123000740,10-Feb-14,"1,500.00",Revenue,MARCEL HIRSHMAN LIMITED,2001304
WANDSWORTH COUNCIL,NGF CS,ADMINISTRATION,INDIRECT,IN-SERVICE TRAINING-SLA,20272103,123000740,28-Feb-14,475,Revenue,REDACTED PERSONAL DATA,2001500
WANDSWORTH COUNCIL,NGF CS,ADMINISTRATION,INDIRECT,IN-SERVICE TRAINING-SLA,20269835,123000740,14-Feb-14,"1,625.00",Revenue,TRAINING SYNERGY LTD,2001767
WANDSWORTH COUNCIL,NGF CS,ADMINISTRATION,INDIRECT,IN-SERVICE TRAINING-SLA,20269837,123000740,14-Feb-14,500,Revenue,TATTERSALL TRAINING,2004895
WANDSWORTH COUNCIL,NGF CS,ADMINISTRATION,INDIRECT,IN-SERVICE TRAINING-SLA,20270811,123000740,20-Feb-14,569,Revenue,THE KNOWLEDGE ACADEMY LIMITED,2015579
WANDSWORTH COUNCIL,NGF CS,ADMINISTRATION,INDIRECT,TRAINING - APPROVED QUALS,20272105,123000760,28-Feb-14,600,Revenue,HABILIS HEALTH + SAFETY LTD,2002282
WANDSWORTH COUNCIL,NGF CS,ADMINISTRATION,CATERING,FOOD & CONSUMABLES,20268981,123031040,10-Feb-14,454.16,Revenue,LTT VENDING GROUP,2011108
WANDSWORTH COUNCIL,NGF CS,ADMINISTRATION,CATERING,FOOD & CONSUMABLES,20268981,123031040,10-Feb-14,72.44,Revenue,LTT VENDING GROUP,2011108
WANDSWORTH COUNCIL,NGF CS,ADMINISTRATION,DIRECT2,AGENCY STAFF,20269949,123200510,18-Feb-14,"3,512.91",Revenue,MATRIX SCM LIMITED,2014926
WANDSWORTH COUNCIL,NGF CS,ADMINISTRATION,DIRECT2,AGENCY STAFF,20269954,123200510,18-Feb-14,"4,406.04",Revenue,MATRIX SCM LIMITED,2014926
WANDSWORTH COUNCIL,NGF CS,ADMINISTRATION,DIRECT2,AGENCY STAFF,20271162,123200510,24-Feb-14,604.56,Revenue,MATRIX SCM LIMITED,2014926
WANDSWORTH COUNCIL,NGF CS,ADMINISTRATION,INDIRECT,HEALTH CARE,20270092,123200640,17-Feb-14,"1,521.90",Revenue,MEDICALS DIRECT SCREENING LTD,2014578
WANDSWORTH COUNCIL,NGF CS,ADMINISTRATION,INDIRECT,CHILDCARE VOUCHERS,20269140,123200650,10-Feb-14,655.1,Revenue,COMPUTERSHARE VOUCHER SERVICES,2007281
WANDSWORTH COUNCIL,NGF CS,ADMINISTRATION,INDIRECT,CHILDCARE VOUCHERS,20269141,123200650,10-Feb-14,103.9,Revenue,COMPUTERSHARE VOUCHER SERVICES,2007281
WANDSWORTH COUNCIL,NGF CS,ADMINISTRATION,INDIRECT,CHILDCARE VOUCHERS,20271508,123200650,25-Feb-14,"1,212.20",Revenue,COMPUTERSHARE VOUCHER SERVICES,2007281
WANDSWORTH COUNCIL,NGF CS,ADMINISTRATION,INDIRECT,CHILDCARE VOUCHERS,20271509,123200650,25-Feb-14,21.87,Revenue,COMPUTERSHARE VOUCHER SERVICES,2007281
WANDSWORTH COUNCIL,NGF CS,ADMINISTRATION,INDIRECT,CHILDCARE VOUCHERS,20271510,123200650,25-Feb-14,106.11,Revenue,COMPUTERSHARE VOUCHER SERVICES,2007281
WANDSWORTH COUNCIL,NGF CS,ADMINISTRATION,"EQUIPMENT, FURNITURE & MATS","EQUIPMENT, FURNITURE & MATS",20269834,123230000,14-Feb-14,"1,020.00",Revenue,THE MOBILE SINK,2991000
WANDSWORTH COUNCIL,NGF CS,ADMINISTRATION,SERVICES,OHS SESSIONAL DOCTOR,20269325,123234690,12-Feb-14,"8,199.18",Revenue,HJM ASSOCIATES,2011293
WANDSWORTH COUNCIL,NGF CS,ADMINISTRATION,MISC,MISCELLANEOUS EXPENSES,20271011,123238500,21-Feb-14,"1,379.75",Revenue,EDENRED UK GROUP LTD,2001234
WANDSWORTH COUNCIL,NGF CDC,ADMINISTRATION,"EQUIPMENT, FURNITURE & MATS",FLOWERS,20268349,124430170,05-Feb-14,135,Revenue,PATRICIA WONG,2001370
WANDSWORTH COUNCIL,NGF CDC,ADMINISTRATION,"EQUIPMENT, FURNITURE & MATS",FLOWERS,20270281,124430170,18-Feb-14,90,Revenue,PATRICIA WONG,2001370
WANDSWORTH COUNCIL,NGF CDC,ENVIRONMENT & COMMUNITY,PRINTING STAT & GEN OFFICE EXP,PRINTING AND STATIONERY,352737,124433420,21-Feb-14,68.8,Revenue,OFFICE DEPOT UK LTD,SP0000092
WANDSWORTH COUNCIL,NGF CDC,ENVIRONMENT & COMMUNITY,PRINTING STAT & GEN OFFICE EXP,PRINTING AND STATIONERY,352737,124433420,21-Feb-14,68.8,Revenue,OFFICE DEPOT UK LTD,SP0000092
WANDSWORTH COUNCIL,NGF CDC,ENVIRONMENT & COMMUNITY,PRINTING STAT & GEN OFFICE EXP,PRINTING AND STATIONERY,352737,124433420,21-Feb-14,271.65,Revenue,OFFICE DEPOT UK LTD,SP0000092
WANDSWORTH COUNCIL,NGF CDC,ENVIRONMENT & COMMUNITY,PRINTING STAT & GEN OFFICE EXP,PRINTING AND STATIONERY,352737,124433420,21-Feb-14,194.7,Revenue,OFFICE DEPOT UK LTD,SP0000092
WANDSWORTH COUNCIL,NGF CDC,ADMINISTRATION,COMMUNICATIONS & COMP,INTERNET - UNMETERED ACCESS,20270886,124436350,21-Feb-14,451.02,Revenue,BT PAYMENT SERVICES LTD,2009138
WANDSWORTH COUNCIL,NGF CS,ADMINISTRATION,DIRECT2,AGENCY STAFF,20269949,124700510,18-Feb-14,828.61,Revenue,MATRIX SCM LIMITED,2014926
WANDSWORTH COUNCIL,NGF CS,ADMINISTRATION,DIRECT2,AGENCY STAFF,20269954,124700510,18-Feb-14,632.65,Revenue,MATRIX SCM LIMITED,2014926
WANDSWORTH COUNCIL,NGF CS,ADMINISTRATION,DIRECT2,AGENCY STAFF,20271162,124700510,24-Feb-14,997.42,Revenue,MATRIX SCM LIMITED,2014926
WANDSWORTH COUNCIL,NGF CS,ADMINISTRATION,PRINTING STAT & GEN OFFICE EXP,PHOTOCOPYING,20268332,124733380,05-Feb-14,173.29,Revenue,RICOH UK LTD,2002588
WANDSWORTH COUNCIL,NGF CS,ADMINISTRATION,GRANTS & SUBSCRIPTIONS,SUBSCRIPTIONS,20269248,124737640,11-Feb-14,520,Revenue,NEWS UK & IRELAND LTD /TA NEWS SYNDICATION,2014666
WANDSWORTH COUNCIL,ASC,ADMINISTRATION,DIRECT2,AGENCY STAFF,20271030,125000510,21-Feb-14,"6,663.72",Revenue,LONDON BOROUGH OF LAMBETH,2007047
WANDSWORTH COUNCIL,ASC,ADMINISTRATION,DIRECT2,AGENCY STAFF,20269949,125000510,18-Feb-14,"17,259.50",Revenue,MATRIX SCM LIMITED,2014926
WANDSWORTH COUNCIL,ASC,ADMINISTRATION,DIRECT2,AGENCY STAFF,20269954,125000510,18-Feb-14,"14,986.76",Revenue,MATRIX SCM LIMITED,2014926
WANDSWORTH COUNCIL,ASC,ADMINISTRATION,DIRECT2,AGENCY STAFF,20271162,125000510,24-Feb-14,"12,157.21",Revenue,MATRIX SCM LIMITED,2014926
WANDSWORTH COUNCIL,ASC,ADMINISTRATION,SERVICES,CONSULTANTS FEES,20271105,125034200,24-Feb-14,900,Revenue,PREDERI,2991000
WANDSWORTH COUNCIL,ASC,ADMINISTRATION,COMMUNICATIONS & COMP,COMMUNICATIONS - TELEPHONES,20269840,125036020,14-Feb-14,21,Revenue,SUNA COMMUNICATION LTD,2003083
WANDSWORTH COUNCIL,ASC,ADMINISTRATION,COMMUNICATIONS & COMP,I.T. EQUIPMENT & MAINTENANCE,20270196,125036210,18-Feb-14,622.96,Revenue,DANWOOD GROUP LTD,2005135
WANDSWORTH COUNCIL,NGF CS,ADMINISTRATION,DIRECT2,AGENCY STAFF,20269949,126000510,18-Feb-14,"9,973.06",Revenue,MATRIX SCM LIMITED,2014926
WANDSWORTH COUNCIL,NGF CS,ADMINISTRATION,DIRECT2,AGENCY STAFF,20269954,126000510,18-Feb-14,"11,552.37",Revenue,MATRIX SCM LIMITED,2014926
WANDSWORTH COUNCIL,NGF CS,ADMINISTRATION,DIRECT2,AGENCY STAFF,20271162,126000510,24-Feb-14,"11,665.96",Revenue,MATRIX SCM LIMITED,2014926
WANDSWORTH COUNCIL,NGF CS,ADMINISTRATION,INDIRECT,TRAINING - EXTERNAL COURSES,20271003,126000770,21-Feb-14,"2,800.00",Revenue,VANGUARD CONSULTING LTD,2991000
WANDSWORTH COUNCIL,NGF CS,ADMINISTRATION,COMMUNICATIONS & COMP,I.T. EQUIPMENT & MAINTENANCE,20269953,126036210,18-Feb-14,550,Revenue,I AM IT,2005455
WANDSWORTH COUNCIL,NGF CS,ENVIRONMENT & COMMUNITY,COMMUNICATIONS & COMP,I.T. EQUIPMENT & MAINTENANCE,343829,126036210,06-Feb-14,536.4,Revenue,AMERICANINO LTD,SP0003193
WANDSWORTH COUNCIL,NGF CS,ADMINISTRATION,GRANTS & SUBSCRIPTIONS,SUBSCRIPTIONS,20268259,126037640,05-Feb-14,"4,500.00",Revenue,SOCITM LTD,2007941
WANDSWORTH COUNCIL,NGF CS,ADMINISTRATION,"EQUIPMENT, FURNITURE & MATS","EQUIPMENT, FURNITURE & MATS",20271339,126230000,25-Feb-14,"4,835.00",Revenue,VOICE AND DATA,2009434
WANDSWORTH COUNCIL,NGF CS,ADMINISTRATION,COMMUNICATIONS & COMP,CALLS USAGE,20271343,126236050,25-Feb-14,"2,020.65",Revenue,CABLE & WIRELESS COMMUNICATIONS,2009023
WANDSWORTH COUNCIL,NGF CS,ADMINISTRATION,COMMUNICATIONS & COMP,CALLS USAGE,20269849,126236050,14-Feb-14,"4,808.28",Revenue,VIRGIN MEDIA BUSINESS,2011718
WANDSWORTH COUNCIL,NGF CS,ADMINISTRATION,"EQUIPMENT, FURNITURE & MATS","EQUIPMENT, FURNITURE & MATS",20269843,126330000,14-Feb-14,"1,005.00",Revenue,CABLE & WIRELESS COMMUNICATIONS,2009023
WANDSWORTH COUNCIL,NGF CS,ADMINISTRATION,"EQUIPMENT, FURNITURE & MATS","EQUIPMENT, FURNITURE & MATS",20271343,126330000,25-Feb-14,385.5,Revenue,CABLE & WIRELESS COMMUNICATIONS,2009023
WANDSWORTH COUNCIL,NGF CS,ADMINISTRATION,"EQUIPMENT, FURNITURE & MATS","EQUIPMENT, FURNITURE & MATS",20268612,126330000,06-Feb-14,"14,538.50",Revenue,BT PAYMENT SERVICES LTD,2009138
WANDSWORTH COUNCIL,NGF CS,ADMINISTRATION,"EQUIPMENT, FURNITURE & MATS","EQUIPMENT, FURNITURE & MATS",20269849,126330000,14-Feb-14,"1,714.00",Revenue,VIRGIN MEDIA BUSINESS,2011718
WANDSWORTH COUNCIL,NGF CS,FINANCE,"EQUIPMENT, FURNITURE & MATS","EQUIPMENT, FURNITURE & MATS",351175,126530000,17-Feb-14,"5,769.99",Revenue,ACR LONDON LTD,SP0000193
WANDSWORTH COUNCIL,NGF CS,ENVIRONMENT & COMMUNITY,"EQUIPMENT, FURNITURE & MATS","EQUIPMENT, FURNITURE & MATS",346389,126530000,07-Feb-14,"10,000.00",Revenue,MICROSOFT LTD,SP0003332
WANDSWORTH COUNCIL,NGF CS,ADMINISTRATION,SERVICES,PROJECT WORK,20270584,127034800,19-Feb-14,"1,453.00",Revenue,STORM FAMILY CENTRE LTD,2004295
WANDSWORTH COUNCIL,NGF CS,ADMINISTRATION,COMMUNICATIONS & COMP,CORELOGIC MAINTENANCE & SUPPT,20269951,127236300,18-Feb-14,"3,390.00",Revenue,BACKUP TECHNOLOGY LTD,2011333
WANDSWORTH COUNCIL,ASC,SOCIAL SERVICES,DIRECT2,AGENCY STAFF,20269638,130000510,13-Feb-14,"6,891.96",Revenue,MATRIX SCM LIMITED,2014926
WANDSWORTH COUNCIL,ASC,SOCIAL SERVICES,DIRECT2,AGENCY STAFF,20270295,130000510,18-Feb-14,"2,633.68",Revenue,MATRIX SCM LIMITED,2014926
WANDSWORTH COUNCIL,ASC,SOCIAL SERVICES,DIRECT2,AGENCY STAFF,20271068,130000510,24-Feb-14,"10,555.62",Revenue,MATRIX SCM LIMITED,2014926
WANDSWORTH COUNCIL,ASC,SOCIAL SERVICES,DIRECT2,AGENCY STAFF,20270295,130200510,18-Feb-14,422.94,Revenue,MATRIX SCM LIMITED,2014926
WANDSWORTH COUNCIL,ASC,SOCIAL SERVICES,HIRE,HIRE - TRANSPORT,349801,130220410,13-Feb-14,420,Revenue,HEALTHCARE & TRANSPORT SERVICES (HATS),SP0000012
WANDSWORTH COUNCIL,ASC,SOCIAL SERVICES,HIRE,HIRE - TRANSPORT,349807,130220410,13-Feb-14,420,Revenue,HEALTHCARE & TRANSPORT SERVICES (HATS),SP0000012
WANDSWORTH COUNCIL,ASC,SOCIAL SERVICES,HIRE,HIRE - TRANSPORT,349824,130220410,13-Feb-14,630,Revenue,HEALTHCARE & TRANSPORT SERVICES (HATS),SP0000012
WANDSWORTH COUNCIL,ASC,SOCIAL SERVICES,HIRE,HIRE - TRANSPORT,352999,130220410,18-Feb-14,630,Revenue,HEALTHCARE & TRANSPORT SERVICES (HATS),SP0000012
WANDSWORTH COUNCIL,ASC,SOCIAL SERVICES,HIRE,HIRE - TRANSPORT,355146,130220410,20-Feb-14,630,Revenue,HEALTHCARE & TRANSPORT SERVICES (HATS),SP0000012
WANDSWORTH COUNCIL,ASC,SOCIAL SERVICES,HIRE,HIRE - TRANSPORT,349157,130220410,12-Feb-14,426.72,Revenue,BECKETT CORPORATION LTD T/A TINAS CARS,SP0000729
WANDSWORTH COUNCIL,ASC,SOCIAL SERVICES,HIRE,HIRE - TRANSPORT,349160,130220410,12-Feb-14,457.2,Revenue,BECKETT CORPORATION LTD T/A TINAS CARS,SP0000729
WANDSWORTH COUNCIL,ASC,SOCIAL SERVICES,HIRE,HIRE - TRANSPORT,349162,130220410,12-Feb-14,"1,539.45",Revenue,BECKETT CORPORATION LTD T/A TINAS CARS,SP0000729
WANDSWORTH COUNCIL,ASC,SOCIAL SERVICES,HIRE,HIRE - TRANSPORT,349166,130220410,12-Feb-14,604.77,Revenue,BECKETT CORPORATION LTD T/A TINAS CARS,SP0000729
WANDSWORTH COUNCIL,ASC,SOCIAL SERVICES,HIRE,HIRE - TRANSPORT,349168,130220410,12-Feb-14,"1,038.92",Revenue,BECKETT CORPORATION LTD T/A TINAS CARS,SP0000729
WANDSWORTH COUNCIL,ASC,SOCIAL SERVICES,HIRE,HIRE - TRANSPORT,349169,130220410,12-Feb-14,491.84,Revenue,BECKETT CORPORATION LTD T/A TINAS CARS,SP0000729
WANDSWORTH COUNCIL,ASC,SOCIAL SERVICES,HIRE,HIRE - TRANSPORT,352973,130220410,18-Feb-14,756,Revenue,A STAR TRANSPORT LTD,SP0000866
WANDSWORTH COUNCIL,ASC,SOCIAL SERVICES,HIRE,HIRE - TRANSPORT,354787,130220410,20-Feb-14,"1,160.00",Revenue,A STAR TRANSPORT LTD,SP0000866
WANDSWORTH COUNCIL,ASC,SOCIAL SERVICES,HIRE,HIRE - TRANSPORT,354789,130220410,20-Feb-14,"1,160.00",Revenue,A STAR TRANSPORT LTD,SP0000866
WANDSWORTH COUNCIL,ASC,SOCIAL SERVICES,HIRE,HIRE - TRANSPORT,354797,130220410,20-Feb-14,500,Revenue,A STAR TRANSPORT LTD,SP0000866
WANDSWORTH COUNCIL,ASC,SOCIAL SERVICES,HIRE,HIRE - TRANSPORT,354798,130220410,20-Feb-14,792,Revenue,A STAR TRANSPORT LTD,SP0000866
WANDSWORTH COUNCIL,ASC,SOCIAL SERVICES,HIRE,HIRE - TRANSPORT,354808,130220410,20-Feb-14,900,Revenue,A STAR TRANSPORT LTD,SP0000866
WANDSWORTH COUNCIL,ASC,SOCIAL SERVICES,HIRE,HIRE - TRANSPORT,354812,130220410,20-Feb-14,708,Revenue,A STAR TRANSPORT LTD,SP0000866
WANDSWORTH COUNCIL,ASC,SOCIAL SERVICES,HIRE,HIRE - TRANSPORT,354835,130220410,20-Feb-14,580,Revenue,A STAR TRANSPORT LTD,SP0000866
WANDSWORTH COUNCIL,ASC,SOCIAL SERVICES,HIRE,HIRE - TRANSPORT,355198,130220410,20-Feb-14,500,Revenue,A STAR TRANSPORT LTD,SP0000866
WANDSWORTH COUNCIL,ASC,SOCIAL SERVICES,HIRE,HIRE - TRANSPORT,356223,130220410,24-Feb-14,450,Revenue,A STAR TRANSPORT LTD,SP0000866
WANDSWORTH COUNCIL,ASC,SOCIAL SERVICES,HIRE,HIRE - TRANSPORT,356228,130220410,24-Feb-14,640,Revenue,A STAR TRANSPORT LTD,SP0000866
WANDSWORTH COUNCIL,ASC,SOCIAL SERVICES,HIRE,HIRE - TRANSPORT,357995,130220410,26-Feb-14,672,Revenue,A STAR TRANSPORT LTD,SP0000866
WANDSWORTH COUNCIL,ASC,SOCIAL SERVICES,HIRE,HIRE - TRANSPORT,358001,130220410,26-Feb-14,440,Revenue,A STAR TRANSPORT LTD,SP0000866
WANDSWORTH COUNCIL,ASC,SOCIAL SERVICES,HIRE,HIRE - TRANSPORT,358002,130220410,26-Feb-14,456,Revenue,A STAR TRANSPORT LTD,SP0000866
WANDSWORTH COUNCIL,ASC,SOCIAL SERVICES,HIRE,HIRE - TRANSPORT,358003,130220410,26-Feb-14,720,Revenue,A STAR TRANSPORT LTD,SP0000866
WANDSWORTH COUNCIL,ASC,SOCIAL SERVICES,HIRE,HIRE - TRANSPORT,358005,130220410,26-Feb-14,800,Revenue,A STAR TRANSPORT LTD,SP0000866
WANDSWORTH COUNCIL,ASC,SOCIAL SERVICES,HIRE,HIRE - TRANSPORT,358010,130220410,26-Feb-14,468,Revenue,A STAR TRANSPORT LTD,SP0000866
WANDSWORTH COUNCIL,ASC,SOCIAL SERVICES,HIRE,HIRE - TRANSPORT,358237,130220410,27-Feb-14,500,Revenue,A STAR TRANSPORT LTD,SP0000866
WANDSWORTH COUNCIL,ASC,SOCIAL SERVICES,HIRE,HIRE - TRANSPORT,358239,130220410,27-Feb-14,433.3,Revenue,A STAR TRANSPORT LTD,SP0000866
WANDSWORTH COUNCIL,ASC,SOCIAL SERVICES,HIRE,HIRE - TRANSPORT,358240,130220410,27-Feb-14,433.3,Revenue,A STAR TRANSPORT LTD,SP0000866
WANDSWORTH COUNCIL,ASC,SOCIAL SERVICES,HIRE,HIRE - TRANSPORT,351989,130220410,17-Feb-14,768.33,Revenue,GALPINS SERVICES LTD,SP0001368
WANDSWORTH COUNCIL,ASC,SOCIAL SERVICES,HIRE,HIRE - TRANSPORT,348507,130220410,11-Feb-14,"1,388.00",Revenue,PARKER CARS LIMITED,SP0005826
WANDSWORTH COUNCIL,ASC,SOCIAL SERVICES,HIRE,HIRE - TRANSPORT,356229,130220410,24-Feb-14,758.5,Revenue,GROUP TAXIBUS LTD T/A CHELMSFORD TAXIBUS,SP0006150
WANDSWORTH COUNCIL,ASC,SOCIAL SERVICES,HIRE,NEW TRANSPORT CONTRACT,356212,130220430,24-Feb-14,460,Revenue,A STAR TRANSPORT LTD,SP0000866
WANDSWORTH COUNCIL,ASC,SOCIAL SERVICES,"CLOTHING, UNIFORM & LAUNDRY",EXTERNAL LAUNDRY,348523,130231520,11-Feb-14,42,Revenue,G S LAUNDRIES LTD,SP0000995
WANDSWORTH COUNCIL,ASC,SOCIAL SERVICES,SERVICES,TRAVEL BUDDY SCHEME,355151,130234970,20-Feb-14,530.31,Revenue,HARINGEY ASSOCIATION FOR INDEPENDENT LIV,SP0000222
WANDSWORTH COUNCIL,ASC,SOCIAL SERVICES,SERVICES,TRAVEL BUDDY SCHEME,355171,130234970,20-Feb-14,593.63,Revenue,HARINGEY ASSOCIATION FOR INDEPENDENT LIV,SP0000222
WANDSWORTH COUNCIL,ASC,SOCIAL SERVICES,HEALTH,EXT RES S28A 100% OLD LONGSTAY,345728,130241010,06-Feb-14,"6,266.84",Revenue,VOYAGE CARE LTD,SP0000761
WANDSWORTH COUNCIL,ASC,SOCIAL SERVICES,HEALTH,EXT RES S28A 100% OLD LONGSTAY,345729,130241010,06-Feb-14,"6,266.84",Revenue,VOYAGE CARE LTD,SP0000761
WANDSWORTH COUNCIL,ASC,SOCIAL SERVICES,HEALTH,EXT RES S28A 100% OLD LONGSTAY,345767,130241010,06-Feb-14,"9,174.86",Revenue,VOYAGE CARE LTD,SP0000761
WANDSWORTH COUNCIL,ASC,SOCIAL SERVICES,HEALTH,EXT RES S28A 100% OLD LONGSTAY,356069,130241010,24-Feb-14,"5,660.36",Revenue,VOYAGE CARE LTD,SP0000761
WANDSWORTH COUNCIL,ASC,SOCIAL SERVICES,HEALTH,EXT RES S28A 100% OLD LONGSTAY,356070,130241010,24-Feb-14,"5,660.36",Revenue,VOYAGE CARE LTD,SP0000761
WANDSWORTH COUNCIL,ASC,SOCIAL SERVICES,HEALTH,EXT RES S28A 100% OLD LONGSTAY,356083,130241010,24-Feb-14,"8,286.96",Revenue,VOYAGE CARE LTD,SP0000761
WANDSWORTH COUNCIL,ASC,SOCIAL SERVICES,HEALTH,EXTERNAL RESIDENTIAL CARE S28A,360038,130241080,28-Feb-14,"4,872.32",Revenue,MACINTYRE CARE,SP0000473
WANDSWORTH COUNCIL,ASC,SOCIAL SERVICES,HEALTH,EXTERNAL RESIDENTIAL CARE S28A,360054,130241080,28-Feb-14,"6,517.56",Revenue,PROGRESS HOUSING LULWORTH,SP0000921
WANDSWORTH COUNCIL,ASC,SOCIAL SERVICES,HEALTH,EXT RES CARE S28A 100%,345730,130241090,06-Feb-14,"6,266.84",Revenue,VOYAGE CARE LTD,SP0000761
WANDSWORTH COUNCIL,ASC,SOCIAL SERVICES,HEALTH,EXT RES CARE S28A 100%,356071,130241090,24-Feb-14,"5,660.36",Revenue,VOYAGE CARE LTD,SP0000761
WANDSWORTH COUNCIL,ASC,SOCIAL SERVICES,HEALTH,EXT RES S28A OLD LONG STAY,346881,130241110,07-Feb-14,"2,975.96",Revenue,ELEANOR NURSING & SOCIAL CARE,SP0000110
WANDSWORTH COUNCIL,ASC,SOCIAL SERVICES,HEALTH,EXT RES S28A OLD LONG STAY,357971,130241110,26-Feb-14,"4,442.76",Revenue,THE COMMUNITY CARE COMPANY UK LTD,SP0000576
WANDSWORTH COUNCIL,ASC,SOCIAL SERVICES,HEALTH,EXT RES S28A OLD LONG STAY,356102,130241110,25-Feb-14,"4,713.59",Revenue,METROPOLITAN HOUSING TRUST,SP0000626
WANDSWORTH COUNCIL,ASC,SOCIAL SERVICES,HEALTH,EXT RES S28A OLD LONG STAY,356111,130241110,25-Feb-14,"4,713.59",Revenue,METROPOLITAN HOUSING TRUST,SP0000626
WANDSWORTH COUNCIL,ASC,SOCIAL SERVICES,HEALTH,EXT RES S28A OLD LONG STAY,349071,130241110,12-Feb-14,"2,690.16",Revenue,ASHTON CARE,SP0000695
WANDSWORTH COUNCIL,ASC,SOCIAL SERVICES,HEALTH,EXT RES S28A OLD LONG STAY,346929,130241110,07-Feb-14,"4,351.72",Revenue,ANTHONY TOBY HOMES TRUST,SP0000755
WANDSWORTH COUNCIL,ASC,SOCIAL SERVICES,OTHER AGENCIES,ENABLERS/EDUCATION FEES,344398,130243280,05-Feb-14,"1,096.34",Revenue,YATELEY INDUSTRIES FOR THE DISABLED LTD,SP0000655
WANDSWORTH COUNCIL,ASC,SOCIAL SERVICES,OTHER AGENCIES,ENABLERS/EDUCATION FEES,356210,130243280,24-Feb-14,"1,096.34",Revenue,YATELEY INDUSTRIES FOR THE DISABLED LTD,SP0000655
WANDSWORTH COUNCIL,ASC,SOCIAL SERVICES,OTHER AGENCIES,ENABLERS/EDUCATION FEES,345760,130243280,06-Feb-14,"11,325.65",Revenue,THE WEST OF ENGLAND SCHOOL & COLLEGE,SP0001486
WANDSWORTH COUNCIL,ASC,SOCIAL SERVICES,OTHER AGENCIES,ENABLERS/EDUCATION FEES,345761,130243280,06-Feb-14,"15,150.82",Revenue,THE WEST OF ENGLAND SCHOOL & COLLEGE,SP0001486
WANDSWORTH COUNCIL,ASC,SOCIAL SERVICES,OTHER AGENCIES,ENABLERS/EDUCATION FEES,345762,130243280,06-Feb-14,"15,115.32",Revenue,THE WEST OF ENGLAND SCHOOL & COLLEGE,SP0001486
WANDSWORTH COUNCIL,ASC,SOCIAL SERVICES,OTHER AGENCIES,ENABLERS/EDUCATION FEES,345763,130243280,06-Feb-14,"11,325.65",Revenue,THE WEST OF ENGLAND SCHOOL & COLLEGE,SP0001486
WANDSWORTH COUNCIL,ASC,SOCIAL SERVICES,OTHER AGENCIES,ENABLERS/EDUCATION FEES,347395,130243280,10-Feb-14,"24,178.94",Revenue,FAIRFIELD OPPORTUNITY FARM DILTON LTD CA,SP0001758
WANDSWORTH COUNCIL,ASC,SOCIAL SERVICES,OTHER AGENCIES,ENABLERS/EDUCATION FEES,347396,130243280,10-Feb-14,"24,178.94",Revenue,FAIRFIELD OPPORTUNITY FARM DILTON LTD CA,SP0001758
WANDSWORTH COUNCIL,ASC,SOCIAL SERVICES,OTHER AGENCIES,ENABLERS/EDUCATION FEES,344395,130243280,05-Feb-14,"21,619.00",Revenue,LINKAGE COMMUNITY TRUST LTD,SP0004205
WANDSWORTH COUNCIL,ASC,SOCIAL SERVICES,OTHER AGENCIES,ENABLERS/EDUCATION FEES,344396,130243280,05-Feb-14,"21,619.00",Revenue,LINKAGE COMMUNITY TRUST LTD,SP0004205
WANDSWORTH COUNCIL,ASC,SOCIAL SERVICES,OTHER AGENCIES,EXTERNAL OUTREACH,353345,130243330,19-Feb-14,456.32,Revenue,RAINBOW MEDICAL SERVICES,SP0000037
WANDSWORTH COUNCIL,ASC,SOCIAL SERVICES,OTHER AGENCIES,EXTERNAL OUTREACH,353347,130243330,19-Feb-14,995.38,Revenue,RAINBOW MEDICAL SERVICES,SP0000037
WANDSWORTH COUNCIL,ASC,SOCIAL SERVICES,OTHER AGENCIES,EXTERNAL OUTREACH,344404,130243330,05-Feb-14,"1,156.00",Revenue,PROTOCOL EDUCATION  LTD,SP0000171
WANDSWORTH COUNCIL,ASC,SOCIAL SERVICES,OTHER AGENCIES,EXTERNAL OUTREACH,344406,130243330,05-Feb-14,850,Revenue,PROTOCOL EDUCATION  LTD,SP0000171
WANDSWORTH COUNCIL,ASC,SOCIAL SERVICES,OTHER AGENCIES,EXTERNAL OUTREACH,353340,130243330,19-Feb-14,850,Revenue,PROTOCOL EDUCATION  LTD,SP0000171
WANDSWORTH COUNCIL,ASC,SOCIAL SERVICES,OTHER AGENCIES,EXTERNAL OUTREACH,353402,130243330,19-Feb-14,714,Revenue,PROTOCOL EDUCATION  LTD,SP0000171
WANDSWORTH COUNCIL,ASC,SOCIAL SERVICES,OTHER AGENCIES,EXTERNAL OUTREACH,358014,130243330,26-Feb-14,850,Revenue,PROTOCOL EDUCATION  LTD,SP0000171
WANDSWORTH COUNCIL,ASC,SOCIAL SERVICES,OTHER AGENCIES,EXTERNAL OUTREACH,346069,130243330,06-Feb-14,"1,956.00",Revenue,LIFEWAYS COMMUNITY CARE LTD,SP0000364
WANDSWORTH COUNCIL,ASC,SOCIAL SERVICES,OTHER AGENCIES,EXTERNAL OUTREACH,353356,130243330,19-Feb-14,"1,956.00",Revenue,LIFEWAYS COMMUNITY CARE LTD,SP0000364
WANDSWORTH COUNCIL,ASC,SOCIAL SERVICES,OTHER AGENCIES,EXTERNAL OUTREACH,356861,130243330,24-Feb-14,"2,185.32",Revenue,C M CARE LTD,SP0000455
WANDSWORTH COUNCIL,ASC,SOCIAL SERVICES,OTHER AGENCIES,EXTERNAL OUTREACH,356862,130243330,24-Feb-14,936,Revenue,C M CARE LTD,SP0000455
WANDSWORTH COUNCIL,ASC,SOCIAL SERVICES,OTHER AGENCIES,EXTERNAL OUTREACH,356863,130243330,24-Feb-14,"1,287.20",Revenue,C M CARE LTD,SP0000455
WANDSWORTH COUNCIL,ASC,SOCIAL SERVICES,OTHER AGENCIES,EXTERNAL OUTREACH,356865,130243330,24-Feb-14,576,Revenue,C M CARE LTD,SP0000455
WANDSWORTH COUNCIL,ASC,SOCIAL SERVICES,OTHER AGENCIES,EXTERNAL OUTREACH,356866,130243330,24-Feb-14,"1,540.00",Revenue,C M CARE LTD,SP0000455
WANDSWORTH COUNCIL,ASC,SOCIAL SERVICES,OTHER AGENCIES,EXTERNAL OUTREACH,352939,130243330,18-Feb-14,897.3,Revenue,GENERATE OPPORTUNITIES LTD,SP0000503
WANDSWORTH COUNCIL,ASC,SOCIAL SERVICES,OTHER AGENCIES,EXTERNAL OUTREACH,352940,130243330,18-Feb-14,199.4,Revenue,GENERATE OPPORTUNITIES LTD,SP0000503
WANDSWORTH COUNCIL,ASC,SOCIAL SERVICES,OTHER AGENCIES,EXTERNAL OUTREACH,352944,130243330,18-Feb-14,299.1,Revenue,GENERATE OPPORTUNITIES LTD,SP0000503
WANDSWORTH COUNCIL,ASC,SOCIAL SERVICES,OTHER AGENCIES,EXTERNAL OUTREACH,352945,130243330,18-Feb-14,997,Revenue,GENERATE OPPORTUNITIES LTD,SP0000503
WANDSWORTH COUNCIL,ASC,SOCIAL SERVICES,OTHER AGENCIES,EXTERNAL OUTREACH,352949,130243330,18-Feb-14,797.6,Revenue,GENERATE OPPORTUNITIES LTD,SP0000503
WANDSWORTH COUNCIL,ASC,SOCIAL SERVICES,OTHER AGENCIES,EXTERNAL OUTREACH,352950,130243330,18-Feb-14,997,Revenue,GENERATE OPPORTUNITIES LTD,SP0000503
WANDSWORTH COUNCIL,ASC,SOCIAL SERVICES,OTHER AGENCIES,EXTERNAL OUTREACH,352955,130243330,18-Feb-14,598.2,Revenue,GENERATE OPPORTUNITIES LTD,SP0000503
WANDSWORTH COUNCIL,ASC,SOCIAL SERVICES,OTHER AGENCIES,EXTERNAL OUTREACH,352959,130243330,18-Feb-14,598.2,Revenue,GENERATE OPPORTUNITIES LTD,SP0000503
WANDSWORTH COUNCIL,ASC,SOCIAL SERVICES,OTHER AGENCIES,EXTERNAL OUTREACH,352961,130243330,18-Feb-14,598.2,Revenue,GENERATE OPPORTUNITIES LTD,SP0000503
WANDSWORTH COUNCIL,ASC,SOCIAL SERVICES,OTHER AGENCIES,EXTERNAL OUTREACH,352962,130243330,18-Feb-14,"2,791.60",Revenue,GENERATE OPPORTUNITIES LTD,SP0000503
WANDSWORTH COUNCIL,ASC,SOCIAL SERVICES,OTHER AGENCIES,EXTERNAL OUTREACH,353309,130243330,19-Feb-14,598.2,Revenue,GENERATE OPPORTUNITIES LTD,SP0000503
WANDSWORTH COUNCIL,ASC,SOCIAL SERVICES,OTHER AGENCIES,EXTERNAL OUTREACH,353315,130243330,19-Feb-14,797.6,Revenue,GENERATE OPPORTUNITIES LTD,SP0000503
WANDSWORTH COUNCIL,ASC,SOCIAL SERVICES,OTHER AGENCIES,EXTERNAL OUTREACH,353316,130243330,19-Feb-14,402.8,Revenue,GENERATE OPPORTUNITIES LTD,SP0000503
WANDSWORTH COUNCIL,ASC,SOCIAL SERVICES,OTHER AGENCIES,EXTERNAL OUTREACH,353317,130243330,19-Feb-14,919.4,Revenue,GENERATE OPPORTUNITIES LTD,SP0000503
WANDSWORTH COUNCIL,ASC,SOCIAL SERVICES,OTHER AGENCIES,EXTERNAL OUTREACH,353321,130243330,19-Feb-14,997,Revenue,GENERATE OPPORTUNITIES LTD,SP0000503
WANDSWORTH COUNCIL,ASC,SOCIAL SERVICES,OTHER AGENCIES,EXTERNAL OUTREACH,353328,130243330,19-Feb-14,548.8,Revenue,GENERATE OPPORTUNITIES LTD,SP0000503
WANDSWORTH COUNCIL,ASC,SOCIAL SERVICES,OTHER AGENCIES,EXTERNAL OUTREACH,353331,130243330,19-Feb-14,398.8,Revenue,GENERATE OPPORTUNITIES LTD,SP0000503
WANDSWORTH COUNCIL,ASC,SOCIAL SERVICES,OTHER AGENCIES,EXTERNAL OUTREACH,353332,130243330,19-Feb-14,"3,125.65",Revenue,GENERATE OPPORTUNITIES LTD,SP0000503
WANDSWORTH COUNCIL,ASC,SOCIAL SERVICES,OTHER AGENCIES,EXTERNAL OUTREACH,356169,130243330,25-Feb-14,630.72,Revenue,METROPOLITAN HOUSING TRUST,SP0000626
WANDSWORTH COUNCIL,ASC,SOCIAL SERVICES,OTHER AGENCIES,EXTERNAL OUTREACH,356175,130243330,25-Feb-14,981.12,Revenue,METROPOLITAN HOUSING TRUST,SP0000626
WANDSWORTH COUNCIL,ASC,SOCIAL SERVICES,OTHER AGENCIES,EXTERNAL OUTREACH,356185,130243330,25-Feb-14,770.88,Revenue,METROPOLITAN HOUSING TRUST,SP0000626
WANDSWORTH COUNCIL,ASC,SOCIAL SERVICES,OTHER AGENCIES,EXTERNAL OUTREACH,356188,130243330,25-Feb-14,630.72,Revenue,METROPOLITAN HOUSING TRUST,SP0000626
WANDSWORTH COUNCIL,ASC,SOCIAL SERVICES,OTHER AGENCIES,EXTERNAL OUTREACH,356869,130243330,25-Feb-14,630.72,Revenue,METROPOLITAN HOUSING TRUST,SP0000626
WANDSWORTH COUNCIL,ASC,SOCIAL SERVICES,OTHER AGENCIES,EXTERNAL OUTREACH,356884,130243330,25-Feb-14,770.88,Revenue,METROPOLITAN HOUSING TRUST,SP0000626
WANDSWORTH COUNCIL,ASC,SOCIAL SERVICES,OTHER AGENCIES,EXTERNAL OUTREACH,356887,130243330,25-Feb-14,630.72,Revenue,METROPOLITAN HOUSING TRUST,SP0000626
WANDSWORTH COUNCIL,ASC,SOCIAL SERVICES,OTHER AGENCIES,EXTERNAL OUTREACH,349783,130243330,13-Feb-14,630,Revenue,ACT TOO LTD,SP0000855
WANDSWORTH COUNCIL,ASC,SOCIAL SERVICES,OTHER AGENCIES,EXTERNAL OUTREACH,347366,130243330,10-Feb-14,331.2,Revenue,THE BRANDON TRUST,SP0005337
WANDSWORTH COUNCIL,ASC,SOCIAL SERVICES,OTHER AGENCIES,EXTERNAL OUTREACH,349115,130243330,12-Feb-14,631.6,Revenue,THE BRANDON TRUST,SP0005337
WANDSWORTH COUNCIL,ASC,SOCIAL SERVICES,OTHER AGENCIES,EXTERNAL OUTREACH,349129,130243330,12-Feb-14,568.44,Revenue,THE BRANDON TRUST,SP0005337
WANDSWORTH COUNCIL,ASC,SOCIAL SERVICES,OTHER AGENCIES,EXTERNAL OUTREACH,349130,130243330,12-Feb-14,"1,010.56",Revenue,THE BRANDON TRUST,SP0005337
WANDSWORTH COUNCIL,ASC,SOCIAL SERVICES,OTHER AGENCIES,EXTERNAL OUTREACH,349131,130243330,12-Feb-14,757.92,Revenue,THE BRANDON TRUST,SP0005337
WANDSWORTH COUNCIL,ASC,SOCIAL SERVICES,OTHER AGENCIES,EXTERNAL OUTREACH,349138,130243330,12-Feb-14,947.4,Revenue,THE BRANDON TRUST,SP0005337
WANDSWORTH COUNCIL,ASC,SOCIAL SERVICES,OTHER AGENCIES,EXTERNAL OUTREACH,349140,130243330,12-Feb-14,"1,170.80",Revenue,THE BRANDON TRUST,SP0005337
WANDSWORTH COUNCIL,ASC,SOCIAL SERVICES,OTHER AGENCIES,EXTERNAL OUTREACH,349143,130243330,12-Feb-14,505.28,Revenue,THE BRANDON TRUST,SP0005337
WANDSWORTH COUNCIL,ASC,SOCIAL SERVICES,OTHER AGENCIES,INTERNAL FOSTERING,20269161,130243360,11-Feb-14,"49,626.09",Revenue,SOUTHSIDE PARTNERSHIP,2005209
WANDSWORTH COUNCIL,ASC,SOCIAL SERVICES,OTHER AGENCIES,INTERNAL FOSTERING,20269162,130243360,11-Feb-14,"3,967.83",Revenue,SOUTHSIDE PARTNERSHIP,2005209
WANDSWORTH COUNCIL,ASC,SOCIAL SERVICES,OTHER AGENCIES,INTERNAL FOSTERING,20270992,130243360,21-Feb-14,"15,619.00",Revenue,SOUTHSIDE PARTNERSHIP,2005209
WANDSWORTH COUNCIL,ASC,SOCIAL SERVICES,OTHER AGENCIES,INTERNAL FOSTERING,20270993,130243360,21-Feb-14,"4,097.34",Revenue,SOUTHSIDE PARTNERSHIP,2005209
WANDSWORTH COUNCIL,ASC,SOCIAL SERVICES,OTHER AGENCIES,INTERNAL FOSTERING,20270994,130243360,21-Feb-14,"38,875.58",Revenue,SOUTHSIDE PARTNERSHIP,2005209
WANDSWORTH COUNCIL,ASC,SOCIAL SERVICES,PRIVATE,EXTERNAL DAYCARE,20270995,130245290,21-Feb-14,"2,128.26",Revenue,LEONARD CHESHIRE,2008417
WANDSWORTH COUNCIL,ASC,SOCIAL SERVICES,PRIVATE,EXTERNAL DAYCARE,345722,130245290,06-Feb-14,125.8,Revenue,THE CHESTNUTS,SP0000182
WANDSWORTH COUNCIL,ASC,SOCIAL SERVICES,PRIVATE,EXTERNAL DAYCARE,355141,130245290,20-Feb-14,644,Revenue,THE CHESTNUTS,SP0000182
WANDSWORTH COUNCIL,ASC,SOCIAL SERVICES,PRIVATE,EXTERNAL DAYCARE,349772,130245290,13-Feb-14,"1,619.00",Revenue,ASIAN ELDERS SUPPORT SCHEME,SP0000190
WANDSWORTH COUNCIL,ASC,SOCIAL SERVICES,PRIVATE,EXTERNAL DAYCARE,360234,130245290,28-Feb-14,516.5,Revenue,ST MARYS RESIDENTIAL HOME,SP0000215
WANDSWORTH COUNCIL,ASC,SOCIAL SERVICES,PRIVATE,EXTERNAL DAYCARE,360235,130245290,28-Feb-14,500,Revenue,ST MARYS RESIDENTIAL HOME,SP0000215
WANDSWORTH COUNCIL,ASC,SOCIAL SERVICES,PRIVATE,EXTERNAL DAYCARE,360236,130245290,28-Feb-14,"2,171.05",Revenue,ST MARYS RESIDENTIAL HOME,SP0000215
WANDSWORTH COUNCIL,ASC,SOCIAL SERVICES,PRIVATE,EXTERNAL DAYCARE,360237,130245290,28-Feb-14,516.1,Revenue,ST MARYS RESIDENTIAL HOME,SP0000215
WANDSWORTH COUNCIL,ASC,SOCIAL SERVICES,PRIVATE,EXTERNAL DAYCARE,360238,130245290,28-Feb-14,667.85,Revenue,ST MARYS RESIDENTIAL HOME,SP0000215
WANDSWORTH COUNCIL,ASC,SOCIAL SERVICES,PRIVATE,EXTERNAL DAYCARE,360239,130245290,28-Feb-14,516.1,Revenue,ST MARYS RESIDENTIAL HOME,SP0000215
WANDSWORTH COUNCIL,ASC,SOCIAL SERVICES,PRIVATE,EXTERNAL DAYCARE,360240,130245290,28-Feb-14,885.65,Revenue,ST MARYS RESIDENTIAL HOME,SP0000215
WANDSWORTH COUNCIL,ASC,SOCIAL SERVICES,PRIVATE,EXTERNAL DAYCARE,360241,130245290,28-Feb-14,"1,196.00",Revenue,ST MARYS RESIDENTIAL HOME,SP0000215
WANDSWORTH COUNCIL,ASC,SOCIAL SERVICES,PRIVATE,EXTERNAL DAYCARE,344386,130245290,05-Feb-14,"2,002.00",Revenue,NAS SERVICES LIMITED,SP0000217
WANDSWORTH COUNCIL,ASC,SOCIAL SERVICES,PRIVATE,EXTERNAL DAYCARE,344387,130245290,05-Feb-14,"2,002.00",Revenue,NAS SERVICES LIMITED,SP0000217
WANDSWORTH COUNCIL,ASC,SOCIAL SERVICES,PRIVATE,EXTERNAL DAYCARE,344388,130245290,05-Feb-14,"2,002.00",Revenue,NAS SERVICES LIMITED,SP0000217
WANDSWORTH COUNCIL,ASC,SOCIAL SERVICES,PRIVATE,EXTERNAL DAYCARE,344389,130245290,05-Feb-14,"2,002.00",Revenue,NAS SERVICES LIMITED,SP0000217
WANDSWORTH COUNCIL,ASC,SOCIAL SERVICES,PRIVATE,EXTERNAL DAYCARE,344390,130245290,05-Feb-14,"3,700.40",Revenue,NAS SERVICES LIMITED,SP0000217
WANDSWORTH COUNCIL,ASC,SOCIAL SERVICES,PRIVATE,EXTERNAL DAYCARE,344391,130245290,05-Feb-14,"3,700.40",Revenue,NAS SERVICES LIMITED,SP0000217
WANDSWORTH COUNCIL,ASC,SOCIAL SERVICES,PRIVATE,EXTERNAL DAYCARE,344392,130245290,05-Feb-14,"3,700.40",Revenue,NAS SERVICES LIMITED,SP0000217
WANDSWORTH COUNCIL,ASC,SOCIAL SERVICES,PRIVATE,EXTERNAL DAYCARE,344393,130245290,05-Feb-14,"3,700.40",Revenue,NAS SERVICES LIMITED,SP0000217
WANDSWORTH COUNCIL,ASC,SOCIAL SERVICES,PRIVATE,EXTERNAL DAYCARE,344394,130245290,05-Feb-14,"2,194.40",Revenue,NAS SERVICES LIMITED,SP0000217
WANDSWORTH COUNCIL,ASC,SOCIAL SERVICES,PRIVATE,EXTERNAL DAYCARE,344409,130245290,05-Feb-14,864.8,Revenue,NAS SERVICES LIMITED,SP0000217
WANDSWORTH COUNCIL,ASC,SOCIAL SERVICES,PRIVATE,EXTERNAL DAYCARE,344410,130245290,05-Feb-14,864.8,Revenue,NAS SERVICES LIMITED,SP0000217
WANDSWORTH COUNCIL,ASC,SOCIAL SERVICES,PRIVATE,EXTERNAL DAYCARE,352965,130245290,18-Feb-14,518.7,Revenue,PARCHMENT TRUST LTD,SP0000255
WANDSWORTH COUNCIL,ASC,SOCIAL SERVICES,PRIVATE,EXTERNAL DAYCARE,347358,130245290,10-Feb-14,806.04,Revenue,CRAEGMOOR FACILITIES CO LTD,SP0000306
WANDSWORTH COUNCIL,ASC,SOCIAL SERVICES,PRIVATE,EXTERNAL DAYCARE,348448,130245290,11-Feb-14,564.8,Revenue,SHARE COMMUNITY,SP0000329
WANDSWORTH COUNCIL,ASC,SOCIAL SERVICES,PRIVATE,EXTERNAL DAYCARE,348449,130245290,11-Feb-14,847.3,Revenue,SHARE COMMUNITY,SP0000329
WANDSWORTH COUNCIL,ASC,SOCIAL SERVICES,PRIVATE,EXTERNAL DAYCARE,348450,130245290,11-Feb-14,564.8,Revenue,SHARE COMMUNITY,SP0000329
WANDSWORTH COUNCIL,ASC,SOCIAL SERVICES,PRIVATE,EXTERNAL DAYCARE,348451,130245290,11-Feb-14,"1,129.60",Revenue,SHARE COMMUNITY,SP0000329
WANDSWORTH COUNCIL,ASC,SOCIAL SERVICES,PRIVATE,EXTERNAL DAYCARE,348452,130245290,11-Feb-14,564.8,Revenue,SHARE COMMUNITY,SP0000329
WANDSWORTH COUNCIL,ASC,SOCIAL SERVICES,PRIVATE,EXTERNAL DAYCARE,348453,130245290,11-Feb-14,847.3,Revenue,SHARE COMMUNITY,SP0000329
WANDSWORTH COUNCIL,ASC,SOCIAL SERVICES,PRIVATE,EXTERNAL DAYCARE,348454,130245290,11-Feb-14,847.3,Revenue,SHARE COMMUNITY,SP0000329
WANDSWORTH COUNCIL,ASC,SOCIAL SERVICES,PRIVATE,EXTERNAL DAYCARE,348455,130245290,11-Feb-14,847.3,Revenue,SHARE COMMUNITY,SP0000329
WANDSWORTH COUNCIL,ASC,SOCIAL SERVICES,PRIVATE,EXTERNAL DAYCARE,348456,130245290,11-Feb-14,847.3,Revenue,SHARE COMMUNITY,SP0000329
WANDSWORTH COUNCIL,ASC,SOCIAL SERVICES,PRIVATE,EXTERNAL DAYCARE,348457,130245290,11-Feb-14,564.8,Revenue,SHARE COMMUNITY,SP0000329
WANDSWORTH COUNCIL,ASC,SOCIAL SERVICES,PRIVATE,EXTERNAL DAYCARE,348458,130245290,11-Feb-14,847.3,Revenue,SHARE COMMUNITY,SP0000329
WANDSWORTH COUNCIL,ASC,SOCIAL SERVICES,PRIVATE,EXTERNAL DAYCARE,348459,130245290,11-Feb-14,"1,129.60",Revenue,SHARE COMMUNITY,SP0000329
WANDSWORTH COUNCIL,ASC,SOCIAL SERVICES,PRIVATE,EXTERNAL DAYCARE,348460,130245290,11-Feb-14,"1,412.00",Revenue,SHARE COMMUNITY,SP0000329
WANDSWORTH COUNCIL,ASC,SOCIAL SERVICES,PRIVATE,EXTERNAL DAYCARE,348461,130245290,11-Feb-14,"1,412.00",Revenue,SHARE COMMUNITY,SP0000329
WANDSWORTH COUNCIL,ASC,SOCIAL SERVICES,PRIVATE,EXTERNAL DAYCARE,348462,130245290,11-Feb-14,847.3,Revenue,SHARE COMMUNITY,SP0000329
WANDSWORTH COUNCIL,ASC,SOCIAL SERVICES,PRIVATE,EXTERNAL DAYCARE,348463,130245290,11-Feb-14,706,Revenue,SHARE COMMUNITY,SP0000329
WANDSWORTH COUNCIL,ASC,SOCIAL SERVICES,PRIVATE,EXTERNAL DAYCARE,348464,130245290,11-Feb-14,847.3,Revenue,SHARE COMMUNITY,SP0000329
WANDSWORTH COUNCIL,ASC,SOCIAL SERVICES,PRIVATE,EXTERNAL DAYCARE,348465,130245290,11-Feb-14,"1,129.60",Revenue,SHARE COMMUNITY,SP0000329
WANDSWORTH COUNCIL,ASC,SOCIAL SERVICES,PRIVATE,EXTERNAL DAYCARE,348468,130245290,11-Feb-14,847.3,Revenue,SHARE COMMUNITY,SP0000329
WANDSWORTH COUNCIL,ASC,SOCIAL SERVICES,PRIVATE,EXTERNAL DAYCARE,348470,130245290,11-Feb-14,706,Revenue,SHARE COMMUNITY,SP0000329
WANDSWORTH COUNCIL,ASC,SOCIAL SERVICES,PRIVATE,EXTERNAL DAYCARE,348471,130245290,11-Feb-14,847.3,Revenue,SHARE COMMUNITY,SP0000329
WANDSWORTH COUNCIL,ASC,SOCIAL SERVICES,PRIVATE,EXTERNAL DAYCARE,348472,130245290,11-Feb-14,847.3,Revenue,SHARE COMMUNITY,SP0000329
WANDSWORTH COUNCIL,ASC,SOCIAL SERVICES,PRIVATE,EXTERNAL DAYCARE,348474,130245290,11-Feb-14,564.8,Revenue,SHARE COMMUNITY,SP0000329
WANDSWORTH COUNCIL,ASC,SOCIAL SERVICES,PRIVATE,EXTERNAL DAYCARE,348477,130245290,11-Feb-14,847.3,Revenue,SHARE COMMUNITY,SP0000329
WANDSWORTH COUNCIL,ASC,SOCIAL SERVICES,PRIVATE,EXTERNAL DAYCARE,348478,130245290,11-Feb-14,"1,412.00",Revenue,SHARE COMMUNITY,SP0000329
WANDSWORTH COUNCIL,ASC,SOCIAL SERVICES,PRIVATE,EXTERNAL DAYCARE,348479,130245290,11-Feb-14,564.8,Revenue,SHARE COMMUNITY,SP0000329
WANDSWORTH COUNCIL,ASC,SOCIAL SERVICES,PRIVATE,EXTERNAL DAYCARE,348480,130245290,11-Feb-14,564.8,Revenue,SHARE COMMUNITY,SP0000329
WANDSWORTH COUNCIL,ASC,SOCIAL SERVICES,PRIVATE,EXTERNAL DAYCARE,348482,130245290,11-Feb-14,564.8,Revenue,SHARE COMMUNITY,SP0000329
WANDSWORTH COUNCIL,ASC,SOCIAL SERVICES,PRIVATE,EXTERNAL DAYCARE,348484,130245290,11-Feb-14,847.3,Revenue,SHARE COMMUNITY,SP0000329
WANDSWORTH COUNCIL,ASC,SOCIAL SERVICES,PRIVATE,EXTERNAL DAYCARE,348485,130245290,11-Feb-14,847.3,Revenue,SHARE COMMUNITY,SP0000329
WANDSWORTH COUNCIL,ASC,SOCIAL SERVICES,PRIVATE,EXTERNAL DAYCARE,348486,130245290,11-Feb-14,564.8,Revenue,SHARE COMMUNITY,SP0000329
WANDSWORTH COUNCIL,ASC,SOCIAL SERVICES,PRIVATE,EXTERNAL DAYCARE,348487,130245290,11-Feb-14,564.8,Revenue,SHARE COMMUNITY,SP0000329
WANDSWORTH COUNCIL,ASC,SOCIAL SERVICES,PRIVATE,EXTERNAL DAYCARE,348489,130245290,11-Feb-14,847.3,Revenue,SHARE COMMUNITY,SP0000329
WANDSWORTH COUNCIL,ASC,SOCIAL SERVICES,PRIVATE,EXTERNAL DAYCARE,348491,130245290,11-Feb-14,847.3,Revenue,SHARE COMMUNITY,SP0000329
WANDSWORTH COUNCIL,ASC,SOCIAL SERVICES,PRIVATE,EXTERNAL DAYCARE,348492,130245290,11-Feb-14,564.8,Revenue,SHARE COMMUNITY,SP0000329
WANDSWORTH COUNCIL,ASC,SOCIAL SERVICES,PRIVATE,EXTERNAL DAYCARE,348493,130245290,11-Feb-14,"1,129.60",Revenue,SHARE COMMUNITY,SP0000329
WANDSWORTH COUNCIL,ASC,SOCIAL SERVICES,PRIVATE,EXTERNAL DAYCARE,348494,130245290,11-Feb-14,847.3,Revenue,SHARE COMMUNITY,SP0000329
WANDSWORTH COUNCIL,ASC,SOCIAL SERVICES,PRIVATE,EXTERNAL DAYCARE,348496,130245290,11-Feb-14,882.6,Revenue,SHARE COMMUNITY,SP0000329
WANDSWORTH COUNCIL,ASC,SOCIAL SERVICES,PRIVATE,EXTERNAL DAYCARE,348497,130245290,11-Feb-14,588.4,Revenue,SHARE COMMUNITY,SP0000329
WANDSWORTH COUNCIL,ASC,SOCIAL SERVICES,PRIVATE,EXTERNAL DAYCARE,353298,130245290,19-Feb-14,"1,070.96",Revenue,DOLPHIN HOMES LTD,SP0000331
WANDSWORTH COUNCIL,ASC,SOCIAL SERVICES,PRIVATE,EXTERNAL DAYCARE,360243,130245290,28-Feb-14,"1,980.36",Revenue,NORWOOD SCHOOLS LTD,SP0000332
WANDSWORTH COUNCIL,ASC,SOCIAL SERVICES,PRIVATE,EXTERNAL DAYCARE,360244,130245290,28-Feb-14,"2,035.28",Revenue,NORWOOD SCHOOLS LTD,SP0000332
WANDSWORTH COUNCIL,ASC,SOCIAL SERVICES,PRIVATE,EXTERNAL DAYCARE,356158,130245290,24-Feb-14,578.08,Revenue,VOYAGE CARE LTD,SP0000366
WANDSWORTH COUNCIL,ASC,SOCIAL SERVICES,PRIVATE,EXTERNAL DAYCARE,356164,130245290,24-Feb-14,"1,654.08",Revenue,VOYAGE CARE LTD,SP0000366
WANDSWORTH COUNCIL,ASC,SOCIAL SERVICES,PRIVATE,EXTERNAL DAYCARE,343306,130245290,04-Feb-14,"1,057.00",Revenue,ST DAVIDS CARE IN THE COMMUNITY,SP0000379
WANDSWORTH COUNCIL,ASC,SOCIAL SERVICES,PRIVATE,EXTERNAL DAYCARE,343307,130245290,04-Feb-14,"1,057.00",Revenue,ST DAVIDS CARE IN THE COMMUNITY,SP0000379
WANDSWORTH COUNCIL,ASC,SOCIAL SERVICES,PRIVATE,EXTERNAL DAYCARE,343308,130245290,04-Feb-14,"1,057.00",Revenue,ST DAVIDS CARE IN THE COMMUNITY,SP0000379
WANDSWORTH COUNCIL,ASC,SOCIAL SERVICES,PRIVATE,EXTERNAL DAYCARE,356159,130245290,24-Feb-14,"1,057.00",Revenue,ST DAVIDS CARE IN THE COMMUNITY,SP0000379
WANDSWORTH COUNCIL,ASC,SOCIAL SERVICES,PRIVATE,EXTERNAL DAYCARE,356160,130245290,24-Feb-14,"1,057.00",Revenue,ST DAVIDS CARE IN THE COMMUNITY,SP0000379
WANDSWORTH COUNCIL,ASC,SOCIAL SERVICES,PRIVATE,EXTERNAL DAYCARE,356161,130245290,24-Feb-14,"1,057.00",Revenue,ST DAVIDS CARE IN THE COMMUNITY,SP0000379
WANDSWORTH COUNCIL,ASC,SOCIAL SERVICES,PRIVATE,EXTERNAL DAYCARE,360038,130245290,28-Feb-14,36.85,Revenue,MACINTYRE CARE,SP0000473
WANDSWORTH COUNCIL,ASC,SOCIAL SERVICES,PRIVATE,EXTERNAL DAYCARE,346029,130245290,06-Feb-14,646,Revenue,WANDSWORTH BENGALI WELFARE ASSOCIATION,SP0000479
WANDSWORTH COUNCIL,ASC,SOCIAL SERVICES,PRIVATE,EXTERNAL DAYCARE,353290,130245290,19-Feb-14,726.07,Revenue,CHOICES,SP0000486
WANDSWORTH COUNCIL,ASC,SOCIAL SERVICES,PRIVATE,EXTERNAL DAYCARE,353296,130245290,19-Feb-14,615.16,Revenue,CHOICES,SP0000486
WANDSWORTH COUNCIL,ASC,SOCIAL SERVICES,PRIVATE,EXTERNAL DAYCARE,352935,130245290,18-Feb-14,720,Revenue,GENERATE OPPORTUNITIES LTD,SP0000503
WANDSWORTH COUNCIL,ASC,SOCIAL SERVICES,PRIVATE,EXTERNAL DAYCARE,352937,130245290,18-Feb-14,800,Revenue,GENERATE OPPORTUNITIES LTD,SP0000503
WANDSWORTH COUNCIL,ASC,SOCIAL SERVICES,PRIVATE,EXTERNAL DAYCARE,352940,130245290,18-Feb-14,400,Revenue,GENERATE OPPORTUNITIES LTD,SP0000503
WANDSWORTH COUNCIL,ASC,SOCIAL SERVICES,PRIVATE,EXTERNAL DAYCARE,352944,130245290,18-Feb-14,700,Revenue,GENERATE OPPORTUNITIES LTD,SP0000503
WANDSWORTH COUNCIL,ASC,SOCIAL SERVICES,PRIVATE,EXTERNAL DAYCARE,352945,130245290,18-Feb-14,400,Revenue,GENERATE OPPORTUNITIES LTD,SP0000503
WANDSWORTH COUNCIL,ASC,SOCIAL SERVICES,PRIVATE,EXTERNAL DAYCARE,352947,130245290,18-Feb-14,"1,000.00",Revenue,GENERATE OPPORTUNITIES LTD,SP0000503
WANDSWORTH COUNCIL,ASC,SOCIAL SERVICES,PRIVATE,EXTERNAL DAYCARE,352948,130245290,18-Feb-14,600,Revenue,GENERATE OPPORTUNITIES LTD,SP0000503
WANDSWORTH COUNCIL,ASC,SOCIAL SERVICES,PRIVATE,EXTERNAL DAYCARE,352954,130245290,18-Feb-14,720,Revenue,GENERATE OPPORTUNITIES LTD,SP0000503
WANDSWORTH COUNCIL,ASC,SOCIAL SERVICES,PRIVATE,EXTERNAL DAYCARE,353300,130245290,19-Feb-14,600,Revenue,GENERATE OPPORTUNITIES LTD,SP0000503
WANDSWORTH COUNCIL,ASC,SOCIAL SERVICES,PRIVATE,EXTERNAL DAYCARE,353305,130245290,19-Feb-14,720,Revenue,GENERATE OPPORTUNITIES LTD,SP0000503
WANDSWORTH COUNCIL,ASC,SOCIAL SERVICES,PRIVATE,EXTERNAL DAYCARE,353313,130245290,19-Feb-14,700,Revenue,GENERATE OPPORTUNITIES LTD,SP0000503
WANDSWORTH COUNCIL,ASC,SOCIAL SERVICES,PRIVATE,EXTERNAL DAYCARE,353314,130245290,19-Feb-14,720,Revenue,GENERATE OPPORTUNITIES LTD,SP0000503
WANDSWORTH COUNCIL,ASC,SOCIAL SERVICES,PRIVATE,EXTERNAL DAYCARE,353316,130245290,19-Feb-14,196,Revenue,GENERATE OPPORTUNITIES LTD,SP0000503
WANDSWORTH COUNCIL,ASC,SOCIAL SERVICES,PRIVATE,EXTERNAL DAYCARE,353318,130245290,19-Feb-14,"1,100.00",Revenue,GENERATE OPPORTUNITIES LTD,SP0000503
WANDSWORTH COUNCIL,ASC,SOCIAL SERVICES,PRIVATE,EXTERNAL DAYCARE,353331,130245290,19-Feb-14,350,Revenue,GENERATE OPPORTUNITIES LTD,SP0000503
WANDSWORTH COUNCIL,ASC,SOCIAL SERVICES,PRIVATE,EXTERNAL DAYCARE,343305,130245290,04-Feb-14,"1,936.66",Revenue,THE REGARD PARTNERSHIP,SP0000588
WANDSWORTH COUNCIL,ASC,SOCIAL SERVICES,PRIVATE,EXTERNAL DAYCARE,343311,130245290,04-Feb-14,"1,357.58",Revenue,THE REGARD PARTNERSHIP,SP0000588
WANDSWORTH COUNCIL,ASC,SOCIAL SERVICES,PRIVATE,EXTERNAL DAYCARE,358227,130245290,27-Feb-14,"1,218.84",Revenue,ASHFIELD CARE HOMES LTD,SP0000590
WANDSWORTH COUNCIL,ASC,SOCIAL SERVICES,PRIVATE,EXTERNAL DAYCARE,353289,130245290,19-Feb-14,945,Revenue,DORSET SCOPE,SP0000591
WANDSWORTH COUNCIL,ASC,SOCIAL SERVICES,PRIVATE,EXTERNAL DAYCARE,353295,130245290,19-Feb-14,720.48,Revenue,CREST COOPERATIVE LTD,SP0000683
WANDSWORTH COUNCIL,ASC,SOCIAL SERVICES,PRIVATE,EXTERNAL DAYCARE,360233,130245290,28-Feb-14,"1,057.00",Revenue,THE MANOR HOUSE,SP0000728
WANDSWORTH COUNCIL,ASC,SOCIAL SERVICES,PRIVATE,EXTERNAL DAYCARE,346025,130245290,06-Feb-14,"1,258.79",Revenue,ANTHONY TOBY HOMES TRUST,SP0000755
WANDSWORTH COUNCIL,ASC,SOCIAL SERVICES,PRIVATE,EXTERNAL DAYCARE,345766,130245290,06-Feb-14,"1,033.56",Revenue,VOYAGE CARE LTD,SP0000761
WANDSWORTH COUNCIL,ASC,SOCIAL SERVICES,PRIVATE,EXTERNAL DAYCARE,356082,130245290,24-Feb-14,939.6,Revenue,VOYAGE CARE LTD,SP0000761
WANDSWORTH COUNCIL,ASC,SOCIAL SERVICES,PRIVATE,EXTERNAL DAYCARE,346899,130245290,07-Feb-14,527.36,Revenue,UNITED RESPONSE,SP0000797
WANDSWORTH COUNCIL,ASC,SOCIAL SERVICES,PRIVATE,EXTERNAL DAYCARE,360132,130245290,28-Feb-14,527.36,Revenue,UNITED RESPONSE,SP0000797
WANDSWORTH COUNCIL,ASC,SOCIAL SERVICES,PRIVATE,EXTERNAL DAYCARE,343309,130245290,04-Feb-14,942.23,Revenue,CHATSWORTH CARE,SP0000831
WANDSWORTH COUNCIL,ASC,SOCIAL SERVICES,PRIVATE,EXTERNAL DAYCARE,356162,130245290,24-Feb-14,851.05,Revenue,CHATSWORTH CARE,SP0000831
WANDSWORTH COUNCIL,ASC,SOCIAL SERVICES,PRIVATE,EXTERNAL DAYCARE,346024,130245290,06-Feb-14,"1,586.84",Revenue,STALLCOMBE HOUSE,SP0000843
WANDSWORTH COUNCIL,ASC,SOCIAL SERVICES,PRIVATE,EXTERNAL DAYCARE,351858,130245290,17-Feb-14,738.72,Revenue,ACT TOO LTD,SP0000855
WANDSWORTH COUNCIL,ASC,SOCIAL SERVICES,PRIVATE,EXTERNAL DAYCARE,351862,130245290,17-Feb-14,738.72,Revenue,ACT TOO LTD,SP0000855
WANDSWORTH COUNCIL,ASC,SOCIAL SERVICES,PRIVATE,EXTERNAL DAYCARE,351868,130245290,17-Feb-14,923.4,Revenue,ACT TOO LTD,SP0000855
WANDSWORTH COUNCIL,ASC,SOCIAL SERVICES,PRIVATE,EXTERNAL DAYCARE,351871,130245290,17-Feb-14,923.4,Revenue,ACT TOO LTD,SP0000855
WANDSWORTH COUNCIL,ASC,SOCIAL SERVICES,PRIVATE,EXTERNAL DAYCARE,351875,130245290,17-Feb-14,554.04,Revenue,ACT TOO LTD,SP0000855
WANDSWORTH COUNCIL,ASC,SOCIAL SERVICES,PRIVATE,EXTERNAL DAYCARE,351876,130245290,17-Feb-14,554.04,Revenue,ACT TOO LTD,SP0000855
WANDSWORTH COUNCIL,ASC,SOCIAL SERVICES,PRIVATE,EXTERNAL DAYCARE,351877,130245290,17-Feb-14,554.04,Revenue,ACT TOO LTD,SP0000855
WANDSWORTH COUNCIL,ASC,SOCIAL SERVICES,PRIVATE,EXTERNAL DAYCARE,351878,130245290,17-Feb-14,554.04,Revenue,ACT TOO LTD,SP0000855
WANDSWORTH COUNCIL,ASC,SOCIAL SERVICES,PRIVATE,EXTERNAL DAYCARE,351879,130245290,17-Feb-14,"1,108.08",Revenue,ACT TOO LTD,SP0000855
WANDSWORTH COUNCIL,ASC,SOCIAL SERVICES,PRIVATE,EXTERNAL DAYCARE,351881,130245290,17-Feb-14,738.72,Revenue,ACT TOO LTD,SP0000855
WANDSWORTH COUNCIL,ASC,SOCIAL SERVICES,PRIVATE,EXTERNAL DAYCARE,351886,130245290,17-Feb-14,554.04,Revenue,ACT TOO LTD,SP0000855
WANDSWORTH COUNCIL,ASC,SOCIAL SERVICES,PRIVATE,EXTERNAL DAYCARE,351889,130245290,17-Feb-14,554.04,Revenue,ACT TOO LTD,SP0000855
WANDSWORTH COUNCIL,ASC,SOCIAL SERVICES,PRIVATE,EXTERNAL DAYCARE,351891,130245290,17-Feb-14,554.04,Revenue,ACT TOO LTD,SP0000855
WANDSWORTH COUNCIL,ASC,SOCIAL SERVICES,PRIVATE,EXTERNAL DAYCARE,351892,130245290,17-Feb-14,554.04,Revenue,ACT TOO LTD,SP0000855
WANDSWORTH COUNCIL,ASC,SOCIAL SERVICES,PRIVATE,EXTERNAL DAYCARE,351894,130245290,17-Feb-14,554.04,Revenue,ACT TOO LTD,SP0000855
WANDSWORTH COUNCIL,ASC,SOCIAL SERVICES,PRIVATE,EXTERNAL DAYCARE,351897,130245290,17-Feb-14,738.72,Revenue,ACT TOO LTD,SP0000855
WANDSWORTH COUNCIL,ASC,SOCIAL SERVICES,PRIVATE,EXTERNAL DAYCARE,351898,130245290,17-Feb-14,554.04,Revenue,ACT TOO LTD,SP0000855
WANDSWORTH COUNCIL,ASC,SOCIAL SERVICES,PRIVATE,EXTERNAL DAYCARE,351901,130245290,17-Feb-14,554.04,Revenue,ACT TOO LTD,SP0000855
WANDSWORTH COUNCIL,ASC,SOCIAL SERVICES,PRIVATE,EXTERNAL DAYCARE,351904,130245290,17-Feb-14,923.4,Revenue,ACT TOO LTD,SP0000855
WANDSWORTH COUNCIL,ASC,SOCIAL SERVICES,PRIVATE,EXTERNAL DAYCARE,351905,130245290,17-Feb-14,554.04,Revenue,ACT TOO LTD,SP0000855
WANDSWORTH COUNCIL,ASC,SOCIAL SERVICES,PRIVATE,EXTERNAL DAYCARE,351906,130245290,17-Feb-14,554.04,Revenue,ACT TOO LTD,SP0000855
WANDSWORTH COUNCIL,ASC,SOCIAL SERVICES,PRIVATE,EXTERNAL DAYCARE,351908,130245290,17-Feb-14,923.4,Revenue,ACT TOO LTD,SP0000855
WANDSWORTH COUNCIL,ASC,SOCIAL SERVICES,PRIVATE,EXTERNAL DAYCARE,351909,130245290,17-Feb-14,554.04,Revenue,ACT TOO LTD,SP0000855
WANDSWORTH COUNCIL,ASC,SOCIAL SERVICES,PRIVATE,EXTERNAL DAYCARE,351910,130245290,17-Feb-14,923.4,Revenue,ACT TOO LTD,SP0000855
WANDSWORTH COUNCIL,ASC,SOCIAL SERVICES,PRIVATE,EXTERNAL DAYCARE,351911,130245290,17-Feb-14,738.72,Revenue,ACT TOO LTD,SP0000855
WANDSWORTH COUNCIL,ASC,SOCIAL SERVICES,PRIVATE,EXTERNAL DAYCARE,351913,130245290,17-Feb-14,554.04,Revenue,ACT TOO LTD,SP0000855
WANDSWORTH COUNCIL,ASC,SOCIAL SERVICES,PRIVATE,EXTERNAL DAYCARE,351915,130245290,17-Feb-14,554.04,Revenue,ACT TOO LTD,SP0000855
WANDSWORTH COUNCIL,ASC,SOCIAL SERVICES,PRIVATE,EXTERNAL DAYCARE,351916,130245290,17-Feb-14,554.04,Revenue,ACT TOO LTD,SP0000855
WANDSWORTH COUNCIL,ASC,SOCIAL SERVICES,PRIVATE,EXTERNAL DAYCARE,351919,130245290,17-Feb-14,554.04,Revenue,ACT TOO LTD,SP0000855
WANDSWORTH COUNCIL,ASC,SOCIAL SERVICES,PRIVATE,EXTERNAL DAYCARE,351926,130245290,17-Feb-14,738.72,Revenue,ACT TOO LTD,SP0000855
WANDSWORTH COUNCIL,ASC,SOCIAL SERVICES,PRIVATE,EXTERNAL DAYCARE,351927,130245290,17-Feb-14,738.72,Revenue,ACT TOO LTD,SP0000855
WANDSWORTH COUNCIL,ASC,SOCIAL SERVICES,PRIVATE,EXTERNAL DAYCARE,347024,130245290,07-Feb-14,"1,416.24",Revenue,WINSLOW COURT,SP0000886
WANDSWORTH COUNCIL,ASC,SOCIAL SERVICES,PRIVATE,EXTERNAL DAYCARE,347025,130245290,07-Feb-14,"1,416.24",Revenue,WINSLOW COURT,SP0000886
WANDSWORTH COUNCIL,ASC,SOCIAL SERVICES,PRIVATE,EXTERNAL DAYCARE,345716,130245290,06-Feb-14,"1,000.00",Revenue,PURBECK CARE LTD,SP0000913
WANDSWORTH COUNCIL,ASC,SOCIAL SERVICES,PRIVATE,EXTERNAL DAYCARE,355139,130245290,20-Feb-14,844.38,Revenue,ORIONE CARE,SP0000961
WANDSWORTH COUNCIL,ASC,SOCIAL SERVICES,PRIVATE,EXTERNAL DAYCARE,355140,130245290,20-Feb-14,609.83,Revenue,ORIONE CARE,SP0000961
WANDSWORTH COUNCIL,ASC,SOCIAL SERVICES,PRIVATE,EXTERNAL DAYCARE,347026,130245290,07-Feb-14,"1,138.40",Revenue,RIDGEWOOD CARE SERVICES LTD,SP0000969
WANDSWORTH COUNCIL,ASC,SOCIAL SERVICES,PRIVATE,EXTERNAL DAYCARE,356067,130245290,24-Feb-14,"1,200.00",Revenue,RIDGEWOOD CARE SERVICES LTD,SP0000969
WANDSWORTH COUNCIL,ASC,SOCIAL SERVICES,PRIVATE,EXTERNAL DAYCARE,355138,130245290,20-Feb-14,935,Revenue,THE HOME FARM TRUST LTD,SP0001048
WANDSWORTH COUNCIL,ASC,SOCIAL SERVICES,PRIVATE,EXTERNAL DAYCARE,358249,130245290,27-Feb-14,"1,063.84",Revenue,SUSSEX HEALTH CARE,SP0001115
WANDSWORTH COUNCIL,ASC,SOCIAL SERVICES,PRIVATE,EXTERNAL DAYCARE,360090,130245290,28-Feb-14,"1,340.00",Revenue,SUSSEX HEALTH CARE,SP0001115
WANDSWORTH COUNCIL,ASC,SOCIAL SERVICES,PRIVATE,EXTERNAL DAYCARE,351935,130245290,17-Feb-14,552,Revenue,WORKSHOP 305,SP0001403
WANDSWORTH COUNCIL,ASC,SOCIAL SERVICES,PRIVATE,EXTERNAL DAYCARE,351937,130245290,17-Feb-14,708,Revenue,WORKSHOP 305,SP0001403
WANDSWORTH COUNCIL,ASC,SOCIAL SERVICES,PRIVATE,EXTERNAL DAYCARE,351940,130245290,17-Feb-14,552,Revenue,WORKSHOP 305,SP0001403
WANDSWORTH COUNCIL,ASC,SOCIAL SERVICES,PRIVATE,EXTERNAL DAYCARE,351946,130245290,17-Feb-14,944,Revenue,WORKSHOP 305,SP0001403
WANDSWORTH COUNCIL,ASC,SOCIAL SERVICES,PRIVATE,EXTERNAL DAYCARE,351948,130245290,17-Feb-14,632,Revenue,WORKSHOP 305,SP0001403
WANDSWORTH COUNCIL,ASC,SOCIAL SERVICES,PRIVATE,EXTERNAL DAYCARE,351951,130245290,17-Feb-14,552,Revenue,WORKSHOP 305,SP0001403
WANDSWORTH COUNCIL,ASC,SOCIAL SERVICES,PRIVATE,EXTERNAL DAYCARE,351952,130245290,17-Feb-14,828,Revenue,WORKSHOP 305,SP0001403
WANDSWORTH COUNCIL,ASC,SOCIAL SERVICES,PRIVATE,EXTERNAL DAYCARE,351960,130245290,17-Feb-14,944,Revenue,WORKSHOP 305,SP0001403
WANDSWORTH COUNCIL,ASC,SOCIAL SERVICES,PRIVATE,EXTERNAL DAYCARE,351964,130245290,17-Feb-14,708,Revenue,WORKSHOP 305,SP0001403
WANDSWORTH COUNCIL,ASC,SOCIAL SERVICES,PRIVATE,EXTERNAL DAYCARE,351971,130245290,17-Feb-14,828,Revenue,WORKSHOP 305,SP0001403
WANDSWORTH COUNCIL,ASC,SOCIAL SERVICES,PRIVATE,EXTERNAL HOMECARE,20269710,130245300,27-Feb-14,"1,423.50",Revenue,PAUL EYLES,2018124
WANDSWORTH COUNCIL,ASC,SOCIAL SERVICES,PRIVATE,EXTERNAL HOMECARE,20269711,130245300,27-Feb-14,"1,423.50",Revenue,PAUL EYLES,2018124
WANDSWORTH COUNCIL,ASC,SOCIAL SERVICES,PRIVATE,EXTERNAL HOMECARE,352853,130245300,18-Feb-14,944,Revenue,RAINBOW MEDICAL SERVICES,SP0000037
WANDSWORTH COUNCIL,ASC,SOCIAL SERVICES,PRIVATE,EXTERNAL HOMECARE,349767,130245300,13-Feb-14,652.42,Revenue,PLAN PERSONNEL,SP0000359
WANDSWORTH COUNCIL,ASC,SOCIAL SERVICES,PRIVATE,EXTERNAL HOMECARE,349091,130245300,12-Feb-14,"1,101.41",Revenue,MUSHKIL AASAAN LTD,SP0000978
WANDSWORTH COUNCIL,ASC,SOCIAL SERVICES,PRIVATE,EXTERNAL HOMECARE,349092,130245300,12-Feb-14,838.8,Revenue,MUSHKIL AASAAN LTD,SP0000978
WANDSWORTH COUNCIL,ASC,SOCIAL SERVICES,PRIVATE,EXTERNAL HOMECARE,352870,130245300,18-Feb-14,"1,056.78",Revenue,MUSHKIL AASAAN LTD,SP0000978
WANDSWORTH COUNCIL,ASC,SOCIAL SERVICES,PRIVATE,EXTERNAL HOMECARE,343259,130245300,04-Feb-14,"1,553.69",Revenue,HFH HOMECARE,SP0001058
WANDSWORTH COUNCIL,ASC,SOCIAL SERVICES,PRIVATE,EXTERNAL HOMECARE,343260,130245300,04-Feb-14,"1,485.60",Revenue,HFH HOMECARE,SP0001058
WANDSWORTH COUNCIL,ASC,SOCIAL SERVICES,PRIVATE,EXTERNAL HOMECARE,353198,130245300,19-Feb-14,"1,211.15",Revenue,HFH HOMECARE,SP0001058
WANDSWORTH COUNCIL,ASC,SOCIAL SERVICES,PRIVATE,EXTERNAL HOMECARE,354665,130245300,20-Feb-14,"1,485.60",Revenue,HFH HOMECARE,SP0001058
WANDSWORTH COUNCIL,ASC,SOCIAL SERVICES,PRIVATE,EXTERNAL HOMECARE,352090,130245300,17-Feb-14,"2,311.82",Revenue,MEARS CARE LTD,SP0001491
WANDSWORTH COUNCIL,ASC,SOCIAL SERVICES,PRIVATE,EXTERNAL HOMECARE,356797,130245300,24-Feb-14,"2,365.35",Revenue,MEARS CARE LTD,SP0001491
WANDSWORTH COUNCIL,ASC,SOCIAL SERVICES,PRIVATE,EXTERNAL HOMECARE,356809,130245300,24-Feb-14,"2,191.47",Revenue,MEARS CARE LTD,SP0001491
WANDSWORTH COUNCIL,ASC,SOCIAL SERVICES,PRIVATE,EXTERNAL HOMECARE,345924,130245300,06-Feb-14,"2,693.33",Revenue,CHRISTIES CARE LTD,SP0005440
WANDSWORTH COUNCIL,ASC,SOCIAL SERVICES,PRIVATE,EXTERNAL NURSING CARE,351747,130245310,17-Feb-14,"5,971.48",Revenue,WINGHAM COURT,SP0000025
WANDSWORTH COUNCIL,ASC,SOCIAL SERVICES,PRIVATE,EXTERNAL NURSING CARE,344471,130245310,05-Feb-14,"2,747.20",Revenue,GEORGE POTTER CARE HOME LTD,SP0000276
WANDSWORTH COUNCIL,ASC,SOCIAL SERVICES,PRIVATE,EXTERNAL NURSING CARE,356038,130245310,24-Feb-14,"3,140.24",Revenue,ROSEDENE NURSING HOME,SP0000316
WANDSWORTH COUNCIL,ASC,SOCIAL SERVICES,PRIVATE,EXTERNAL NURSING CARE,345733,130245310,06-Feb-14,"7,948.40",Revenue,VOYAGE CARE LTD,SP0000366
WANDSWORTH COUNCIL,ASC,SOCIAL SERVICES,PRIVATE,EXTERNAL NURSING CARE,356032,130245310,24-Feb-14,"4,181.96",Revenue,VOYAGE CARE LTD,SP0000366
WANDSWORTH COUNCIL,ASC,SOCIAL SERVICES,PRIVATE,EXTERNAL NURSING CARE,356055,130245310,24-Feb-14,"5,320.72",Revenue,VOYAGE CARE LTD,SP0000366
WANDSWORTH COUNCIL,ASC,SOCIAL SERVICES,PRIVATE,EXTERNAL NURSING CARE,356073,130245310,24-Feb-14,"7,179.20",Revenue,VOYAGE CARE LTD,SP0000366
WANDSWORTH COUNCIL,ASC,SOCIAL SERVICES,PRIVATE,EXTERNAL NURSING CARE,356040,130245310,24-Feb-14,"6,599.63",Revenue,ROYAL HOSPITAL FOR NEURO-DISABILITY,SP0000375
WANDSWORTH COUNCIL,ASC,SOCIAL SERVICES,PRIVATE,EXTERNAL NURSING CARE,344663,130245310,05-Feb-14,"2,675.12",Revenue,FOUR SEASONS HEALTH CARE LTD,SP0000422
WANDSWORTH COUNCIL,ASC,SOCIAL SERVICES,PRIVATE,EXTERNAL NURSING CARE,346935,130245310,07-Feb-14,"3,065.88",Revenue,YEW TREE NURSING HOME,SP0000454
WANDSWORTH COUNCIL,ASC,SOCIAL SERVICES,PRIVATE,EXTERNAL NURSING CARE,344729,130245310,05-Feb-14,"2,787.60",Revenue,TRINITY COURT NURSING HOME,SP0001001
WANDSWORTH COUNCIL,ASC,SOCIAL SERVICES,PRIVATE,EXTERNAL NURSING CARE,360128,130245310,28-Feb-14,"3,107.12",Revenue,CARE UK COMMUNITY PARTNERSHIP,SP0001022
WANDSWORTH COUNCIL,ASC,SOCIAL SERVICES,PRIVATE,EXTERNAL NURSING CARE,345758,130245310,06-Feb-14,"8,454.90",Revenue,SUSSEX HEALTH CARE,SP0001115
WANDSWORTH COUNCIL,ASC,SOCIAL SERVICES,PRIVATE,EXTERNAL NURSING CARE,356050,130245310,24-Feb-14,"7,636.68",Revenue,SUSSEX HEALTH CARE,SP0001115
WANDSWORTH COUNCIL,ASC,SOCIAL SERVICES,PRIVATE,EXTERNAL RESIDENTIAL CARE,344567,130245330,05-Feb-14,"2,598.84",Revenue,THE LYLE PARK TRUST,SP0000070
WANDSWORTH COUNCIL,ASC,SOCIAL SERVICES,PRIVATE,EXTERNAL RESIDENTIAL CARE,343111,130245330,04-Feb-14,"5,632.12",Revenue,CMG HOMES LTD,SP0000075
WANDSWORTH COUNCIL,ASC,SOCIAL SERVICES,PRIVATE,EXTERNAL RESIDENTIAL CARE,343112,130245330,04-Feb-14,"3,911.48",Revenue,CMG HOMES LTD,SP0000075
WANDSWORTH COUNCIL,ASC,SOCIAL SERVICES,PRIVATE,EXTERNAL RESIDENTIAL CARE,343113,130245330,04-Feb-14,"6,007.12",Revenue,CMG HOMES LTD,SP0000075
WANDSWORTH COUNCIL,ASC,SOCIAL SERVICES,PRIVATE,EXTERNAL RESIDENTIAL CARE,343114,130245330,04-Feb-14,"5,553.00",Revenue,CMG HOMES LTD,SP0000075
WANDSWORTH COUNCIL,ASC,SOCIAL SERVICES,PRIVATE,EXTERNAL RESIDENTIAL CARE,343115,130245330,04-Feb-14,"3,862.12",Revenue,CMG HOMES LTD,SP0000075
WANDSWORTH COUNCIL,ASC,SOCIAL SERVICES,PRIVATE,EXTERNAL RESIDENTIAL CARE,343116,130245330,04-Feb-14,"8,061.00",Revenue,CMG HOMES LTD,SP0000075
WANDSWORTH COUNCIL,ASC,SOCIAL SERVICES,PRIVATE,EXTERNAL RESIDENTIAL CARE,343117,130245330,04-Feb-14,"4,866.36",Revenue,CMG HOMES LTD,SP0000075
WANDSWORTH COUNCIL,ASC,SOCIAL SERVICES,PRIVATE,EXTERNAL RESIDENTIAL CARE,343118,130245330,04-Feb-14,"4,646.00",Revenue,CMG HOMES LTD,SP0000075
WANDSWORTH COUNCIL,ASC,SOCIAL SERVICES,PRIVATE,EXTERNAL RESIDENTIAL CARE,343120,130245330,04-Feb-14,"7,123.64",Revenue,CMG HOMES LTD,SP0000075
WANDSWORTH COUNCIL,ASC,SOCIAL SERVICES,PRIVATE,EXTERNAL RESIDENTIAL CARE,343121,130245330,04-Feb-14,"4,415.60",Revenue,CMG HOMES LTD,SP0000075
WANDSWORTH COUNCIL,ASC,SOCIAL SERVICES,PRIVATE,EXTERNAL RESIDENTIAL CARE,343122,130245330,04-Feb-14,"4,082.28",Revenue,CMG HOMES LTD,SP0000075
WANDSWORTH COUNCIL,ASC,SOCIAL SERVICES,PRIVATE,EXTERNAL RESIDENTIAL CARE,360105,130245330,28-Feb-14,"6,000.00",Revenue,NATIONAL SOCIETY FOR EPILEPSY,SP0000120
WANDSWORTH COUNCIL,ASC,SOCIAL SERVICES,PRIVATE,EXTERNAL RESIDENTIAL CARE,344412,130245330,05-Feb-14,"2,162.32",Revenue,SANCTUARY CARE LTD,SP0000121
WANDSWORTH COUNCIL,ASC,SOCIAL SERVICES,PRIVATE,EXTERNAL RESIDENTIAL CARE,358184,130245330,27-Feb-14,"3,923.12",Revenue,FRANCES TAYLOR FOUNDATION,SP0000142
WANDSWORTH COUNCIL,ASC,SOCIAL SERVICES,PRIVATE,EXTERNAL RESIDENTIAL CARE,358185,130245330,27-Feb-14,"4,367.92",Revenue,FRANCES TAYLOR FOUNDATION,SP0000142
WANDSWORTH COUNCIL,ASC,SOCIAL SERVICES,PRIVATE,EXTERNAL RESIDENTIAL CARE,358186,130245330,27-Feb-14,"3,785.56",Revenue,FRANCES TAYLOR FOUNDATION,SP0000142
WANDSWORTH COUNCIL,ASC,SOCIAL SERVICES,PRIVATE,EXTERNAL RESIDENTIAL CARE,358187,130245330,27-Feb-14,"3,846.96",Revenue,FRANCES TAYLOR FOUNDATION,SP0000142
WANDSWORTH COUNCIL,ASC,SOCIAL SERVICES,PRIVATE,EXTERNAL RESIDENTIAL CARE,345722,130245330,06-Feb-14,"4,593.96",Revenue,THE CHESTNUTS,SP0000182
WANDSWORTH COUNCIL,ASC,SOCIAL SERVICES,PRIVATE,EXTERNAL RESIDENTIAL CARE,345723,130245330,06-Feb-14,"5,555.16",Revenue,THE CHESTNUTS,SP0000182
WANDSWORTH COUNCIL,ASC,SOCIAL SERVICES,PRIVATE,EXTERNAL RESIDENTIAL CARE,345724,130245330,06-Feb-14,"4,292.56",Revenue,THE CHESTNUTS,SP0000182
WANDSWORTH COUNCIL,ASC,SOCIAL SERVICES,PRIVATE,EXTERNAL RESIDENTIAL CARE,360130,130245330,28-Feb-14,"5,555.16",Revenue,THE CHESTNUTS,SP0000182
WANDSWORTH COUNCIL,ASC,SOCIAL SERVICES,PRIVATE,EXTERNAL RESIDENTIAL CARE,360131,130245330,28-Feb-14,"4,292.56",Revenue,THE CHESTNUTS,SP0000182
WANDSWORTH COUNCIL,ASC,SOCIAL SERVICES,PRIVATE,EXTERNAL RESIDENTIAL CARE,360106,130245330,28-Feb-14,"13,129.20",Revenue,PARTNERSHIPS IN CARE LTD,SP0000211
WANDSWORTH COUNCIL,ASC,SOCIAL SERVICES,PRIVATE,EXTERNAL RESIDENTIAL CARE,343150,130245330,04-Feb-14,"1,647.40",Revenue,ORCHARD VALE TRUST,SP0000214
WANDSWORTH COUNCIL,ASC,SOCIAL SERVICES,PRIVATE,EXTERNAL RESIDENTIAL CARE,344331,130245330,05-Feb-14,"3,370.92",Revenue,NAS SERVICES LIMITED,SP0000217
WANDSWORTH COUNCIL,ASC,SOCIAL SERVICES,PRIVATE,EXTERNAL RESIDENTIAL CARE,344332,130245330,05-Feb-14,"3,370.92",Revenue,NAS SERVICES LIMITED,SP0000217
WANDSWORTH COUNCIL,ASC,SOCIAL SERVICES,PRIVATE,EXTERNAL RESIDENTIAL CARE,344333,130245330,05-Feb-14,"3,370.92",Revenue,NAS SERVICES LIMITED,SP0000217
WANDSWORTH COUNCIL,ASC,SOCIAL SERVICES,PRIVATE,EXTERNAL RESIDENTIAL CARE,344334,130245330,05-Feb-14,"3,370.92",Revenue,NAS SERVICES LIMITED,SP0000217
WANDSWORTH COUNCIL,ASC,SOCIAL SERVICES,PRIVATE,EXTERNAL RESIDENTIAL CARE,344341,130245330,05-Feb-14,"8,645.88",Revenue,NAS SERVICES LIMITED,SP0000217
WANDSWORTH COUNCIL,ASC,SOCIAL SERVICES,PRIVATE,EXTERNAL RESIDENTIAL CARE,344342,130245330,05-Feb-14,"5,204.56",Revenue,NAS SERVICES LIMITED,SP0000217
WANDSWORTH COUNCIL,ASC,SOCIAL SERVICES,PRIVATE,EXTERNAL RESIDENTIAL CARE,344343,130245330,05-Feb-14,"2,237.16",Revenue,NAS SERVICES LIMITED,SP0000217
WANDSWORTH COUNCIL,ASC,SOCIAL SERVICES,PRIVATE,EXTERNAL RESIDENTIAL CARE,348413,130245330,11-Feb-14,"8,720.00",Revenue,SPRING LAKE,SP0000223
WANDSWORTH COUNCIL,ASC,SOCIAL SERVICES,PRIVATE,EXTERNAL RESIDENTIAL CARE,348414,130245330,11-Feb-14,"7,600.00",Revenue,SPRING LAKE,SP0000223
WANDSWORTH COUNCIL,ASC,SOCIAL SERVICES,PRIVATE,EXTERNAL RESIDENTIAL CARE,348415,130245330,11-Feb-14,"7,600.00",Revenue,SPRING LAKE,SP0000223
WANDSWORTH COUNCIL,ASC,SOCIAL SERVICES,PRIVATE,EXTERNAL RESIDENTIAL CARE,355111,130245330,20-Feb-14,"8,720.00",Revenue,SPRING LAKE,SP0000223
WANDSWORTH COUNCIL,ASC,SOCIAL SERVICES,PRIVATE,EXTERNAL RESIDENTIAL CARE,355112,130245330,20-Feb-14,"7,600.00",Revenue,SPRING LAKE,SP0000223
WANDSWORTH COUNCIL,ASC,SOCIAL SERVICES,PRIVATE,EXTERNAL RESIDENTIAL CARE,352782,130245330,18-Feb-14,"4,689.36",Revenue,CAMERON LODGE LIMITED,SP0000271
WANDSWORTH COUNCIL,ASC,SOCIAL SERVICES,PRIVATE,EXTERNAL RESIDENTIAL CARE,360093,130245330,28-Feb-14,"7,268.04",Revenue,BROOKDALE CARE,SP0000282
WANDSWORTH COUNCIL,ASC,SOCIAL SERVICES,PRIVATE,EXTERNAL RESIDENTIAL CARE,347322,130245330,10-Feb-14,"3,029.72",Revenue,CRAEGMOOR FACILITIES CO LTD,SP0000306
WANDSWORTH COUNCIL,ASC,SOCIAL SERVICES,PRIVATE,EXTERNAL RESIDENTIAL CARE,343144,130245330,04-Feb-14,"6,263.46",Revenue,RESIDENTIAL COMMUNITY CARE,SP0000315
WANDSWORTH COUNCIL,ASC,SOCIAL SERVICES,PRIVATE,EXTERNAL RESIDENTIAL CARE,345759,130245330,06-Feb-14,"6,206.86",Revenue,RESIDENTIAL COMMUNITY CARE,SP0000315
WANDSWORTH COUNCIL,ASC,SOCIAL SERVICES,PRIVATE,EXTERNAL RESIDENTIAL CARE,351745,130245330,17-Feb-14,"6,006.65",Revenue,RESIDENTIAL COMMUNITY CARE,SP0000315
WANDSWORTH COUNCIL,ASC,SOCIAL SERVICES,PRIVATE,EXTERNAL RESIDENTIAL CARE,356058,130245330,24-Feb-14,"5,572.43",Revenue,RESIDENTIAL COMMUNITY CARE,SP0000315
WANDSWORTH COUNCIL,ASC,SOCIAL SERVICES,PRIVATE,EXTERNAL RESIDENTIAL CARE,356059,130245330,24-Feb-14,"5,657.92",Revenue,RESIDENTIAL COMMUNITY CARE,SP0000315
WANDSWORTH COUNCIL,ASC,SOCIAL SERVICES,PRIVATE,EXTERNAL RESIDENTIAL CARE,358195,130245330,27-Feb-14,"2,067.04",Revenue,OXENDEN HOUSE CARE HOME,SP0000322
WANDSWORTH COUNCIL,ASC,SOCIAL SERVICES,PRIVATE,EXTERNAL RESIDENTIAL CARE,352786,130245330,18-Feb-14,"4,311.08",Revenue,DOLPHIN HOMES LTD,SP0000331
WANDSWORTH COUNCIL,ASC,SOCIAL SERVICES,PRIVATE,EXTERNAL RESIDENTIAL CARE,360064,130245330,28-Feb-14,"6,093.52",Revenue,NORWOOD SCHOOLS LTD,SP0000332
WANDSWORTH COUNCIL,ASC,SOCIAL SERVICES,PRIVATE,EXTERNAL RESIDENTIAL CARE,360065,130245330,28-Feb-14,"6,346.36",Revenue,NORWOOD SCHOOLS LTD,SP0000332
WANDSWORTH COUNCIL,ASC,SOCIAL SERVICES,PRIVATE,EXTERNAL RESIDENTIAL CARE,358193,130245330,28-Feb-14,"2,176.43",Revenue,THE MANOR,SP0000340
WANDSWORTH COUNCIL,ASC,SOCIAL SERVICES,PRIVATE,EXTERNAL RESIDENTIAL CARE,346886,130245330,07-Feb-14,"3,210.71",Revenue,HEYWOODS GRANGE LTD,SP0000361
WANDSWORTH COUNCIL,ASC,SOCIAL SERVICES,PRIVATE,EXTERNAL RESIDENTIAL CARE,356033,130245330,24-Feb-14,"5,875.56",Revenue,VOYAGE CARE LTD,SP0000366
WANDSWORTH COUNCIL,ASC,SOCIAL SERVICES,PRIVATE,EXTERNAL RESIDENTIAL CARE,356034,130245330,24-Feb-14,"7,444.36",Revenue,VOYAGE CARE LTD,SP0000366
WANDSWORTH COUNCIL,ASC,SOCIAL SERVICES,PRIVATE,EXTERNAL RESIDENTIAL CARE,356065,130245330,24-Feb-14,"7,766.72",Revenue,VOYAGE CARE LTD,SP0000366
WANDSWORTH COUNCIL,ASC,SOCIAL SERVICES,PRIVATE,EXTERNAL RESIDENTIAL CARE,356066,130245330,24-Feb-14,"6,445.92",Revenue,VOYAGE CARE LTD,SP0000366
WANDSWORTH COUNCIL,ASC,SOCIAL SERVICES,PRIVATE,EXTERNAL RESIDENTIAL CARE,343138,130245330,04-Feb-14,"2,176.79",Revenue,ST DAVIDS CARE IN THE COMMUNITY,SP0000379
WANDSWORTH COUNCIL,ASC,SOCIAL SERVICES,PRIVATE,EXTERNAL RESIDENTIAL CARE,343139,130245330,04-Feb-14,"2,178.13",Revenue,ST DAVIDS CARE IN THE COMMUNITY,SP0000379
WANDSWORTH COUNCIL,ASC,SOCIAL SERVICES,PRIVATE,EXTERNAL RESIDENTIAL CARE,356045,130245330,24-Feb-14,"1,967.33",Revenue,ST DAVIDS CARE IN THE COMMUNITY,SP0000379
WANDSWORTH COUNCIL,ASC,SOCIAL SERVICES,PRIVATE,EXTERNAL RESIDENTIAL CARE,356046,130245330,24-Feb-14,"2,371.08",Revenue,ST DAVIDS CARE IN THE COMMUNITY,SP0000379
WANDSWORTH COUNCIL,ASC,SOCIAL SERVICES,PRIVATE,EXTERNAL RESIDENTIAL CARE,356047,130245330,24-Feb-14,"1,967.33",Revenue,ST DAVIDS CARE IN THE COMMUNITY,SP0000379
WANDSWORTH COUNCIL,ASC,SOCIAL SERVICES,PRIVATE,EXTERNAL RESIDENTIAL CARE,360109,130245330,28-Feb-14,"5,099.84",Revenue,ESSEX CARE CONSORTIUM,SP0000387
WANDSWORTH COUNCIL,ASC,SOCIAL SERVICES,PRIVATE,EXTERNAL RESIDENTIAL CARE,355108,130245330,20-Feb-14,"3,135.60",Revenue,POTENSIAL LTD,SP0000395
WANDSWORTH COUNCIL,ASC,SOCIAL SERVICES,PRIVATE,EXTERNAL RESIDENTIAL CARE,349079,130245330,12-Feb-14,"3,976.74",Revenue,KENILWORTH RESIDENTIAL HOME,SP0000432
WANDSWORTH COUNCIL,ASC,SOCIAL SERVICES,PRIVATE,EXTERNAL RESIDENTIAL CARE,349080,130245330,12-Feb-14,"4,150.04",Revenue,KENILWORTH RESIDENTIAL HOME,SP0000432
WANDSWORTH COUNCIL,ASC,SOCIAL SERVICES,PRIVATE,EXTERNAL RESIDENTIAL CARE,356062,130245330,24-Feb-14,"4,654.16",Revenue,THE WELL HOUSE,SP0000448
WANDSWORTH COUNCIL,ASC,SOCIAL SERVICES,PRIVATE,EXTERNAL RESIDENTIAL CARE,356063,130245330,24-Feb-14,"4,403.48",Revenue,THE WELL HOUSE,SP0000448
WANDSWORTH COUNCIL,ASC,SOCIAL SERVICES,PRIVATE,EXTERNAL RESIDENTIAL CARE,346874,130245330,07-Feb-14,"8,054.44",Revenue,MACINTYRE CARE,SP0000473
WANDSWORTH COUNCIL,ASC,SOCIAL SERVICES,PRIVATE,EXTERNAL RESIDENTIAL CARE,346875,130245330,07-Feb-14,"8,054.44",Revenue,MACINTYRE CARE,SP0000473
WANDSWORTH COUNCIL,ASC,SOCIAL SERVICES,PRIVATE,EXTERNAL RESIDENTIAL CARE,346876,130245330,07-Feb-14,"8,054.44",Revenue,MACINTYRE CARE,SP0000473
WANDSWORTH COUNCIL,ASC,SOCIAL SERVICES,PRIVATE,EXTERNAL RESIDENTIAL CARE,360028,130245330,28-Feb-14,"3,759.64",Revenue,MACINTYRE CARE,SP0000473
WANDSWORTH COUNCIL,ASC,SOCIAL SERVICES,PRIVATE,EXTERNAL RESIDENTIAL CARE,360029,130245330,28-Feb-14,"5,429.64",Revenue,MACINTYRE CARE,SP0000473
WANDSWORTH COUNCIL,ASC,SOCIAL SERVICES,PRIVATE,EXTERNAL RESIDENTIAL CARE,360031,130245330,28-Feb-14,"3,759.64",Revenue,MACINTYRE CARE,SP0000473
WANDSWORTH COUNCIL,ASC,SOCIAL SERVICES,PRIVATE,EXTERNAL RESIDENTIAL CARE,360032,130245330,28-Feb-14,"5,192.48",Revenue,MACINTYRE CARE,SP0000473
WANDSWORTH COUNCIL,ASC,SOCIAL SERVICES,PRIVATE,EXTERNAL RESIDENTIAL CARE,360033,130245330,28-Feb-14,"3,750.72",Revenue,MACINTYRE CARE,SP0000473
WANDSWORTH COUNCIL,ASC,SOCIAL SERVICES,PRIVATE,EXTERNAL RESIDENTIAL CARE,360034,130245330,28-Feb-14,"3,813.84",Revenue,MACINTYRE CARE,SP0000473
WANDSWORTH COUNCIL,ASC,SOCIAL SERVICES,PRIVATE,EXTERNAL RESIDENTIAL CARE,360035,130245330,28-Feb-14,"2,301.48",Revenue,MACINTYRE CARE,SP0000473
WANDSWORTH COUNCIL,ASC,SOCIAL SERVICES,PRIVATE,EXTERNAL RESIDENTIAL CARE,360036,130245330,28-Feb-14,"5,030.56",Revenue,MACINTYRE CARE,SP0000473
WANDSWORTH COUNCIL,ASC,SOCIAL SERVICES,PRIVATE,EXTERNAL RESIDENTIAL CARE,360037,130245330,28-Feb-14,"5,429.76",Revenue,MACINTYRE CARE,SP0000473
WANDSWORTH COUNCIL,ASC,SOCIAL SERVICES,PRIVATE,EXTERNAL RESIDENTIAL CARE,360039,130245330,28-Feb-14,"4,909.16",Revenue,MACINTYRE CARE,SP0000473
WANDSWORTH COUNCIL,ASC,SOCIAL SERVICES,PRIVATE,EXTERNAL RESIDENTIAL CARE,360041,130245330,28-Feb-14,"4,907.76",Revenue,MACINTYRE CARE,SP0000473
WANDSWORTH COUNCIL,ASC,SOCIAL SERVICES,PRIVATE,EXTERNAL RESIDENTIAL CARE,360042,130245330,28-Feb-14,"4,907.76",Revenue,MACINTYRE CARE,SP0000473
WANDSWORTH COUNCIL,ASC,SOCIAL SERVICES,PRIVATE,EXTERNAL RESIDENTIAL CARE,360043,130245330,28-Feb-14,"4,907.76",Revenue,MACINTYRE CARE,SP0000473
WANDSWORTH COUNCIL,ASC,SOCIAL SERVICES,PRIVATE,EXTERNAL RESIDENTIAL CARE,360044,130245330,28-Feb-14,"5,030.56",Revenue,MACINTYRE CARE,SP0000473
WANDSWORTH COUNCIL,ASC,SOCIAL SERVICES,PRIVATE,EXTERNAL RESIDENTIAL CARE,360045,130245330,28-Feb-14,"4,907.76",Revenue,MACINTYRE CARE,SP0000473
WANDSWORTH COUNCIL,ASC,SOCIAL SERVICES,PRIVATE,EXTERNAL RESIDENTIAL CARE,360046,130245330,28-Feb-14,"5,210.48",Revenue,MACINTYRE CARE,SP0000473
WANDSWORTH COUNCIL,ASC,SOCIAL SERVICES,PRIVATE,EXTERNAL RESIDENTIAL CARE,360047,130245330,28-Feb-14,"4,998.84",Revenue,MACINTYRE CARE,SP0000473
WANDSWORTH COUNCIL,ASC,SOCIAL SERVICES,PRIVATE,EXTERNAL RESIDENTIAL CARE,360048,130245330,28-Feb-14,"5,097.20",Revenue,MACINTYRE CARE,SP0000473
WANDSWORTH COUNCIL,ASC,SOCIAL SERVICES,PRIVATE,EXTERNAL RESIDENTIAL CARE,346930,130245330,07-Feb-14,"8,982.39",Revenue,SURREY & BORDERS PARTNERSHIP NHS TRUST,SP0000501
WANDSWORTH COUNCIL,ASC,SOCIAL SERVICES,PRIVATE,EXTERNAL RESIDENTIAL CARE,346931,130245330,07-Feb-14,"5,622.80",Revenue,SURREY & BORDERS PARTNERSHIP NHS TRUST,SP0000501
WANDSWORTH COUNCIL,ASC,SOCIAL SERVICES,PRIVATE,EXTERNAL RESIDENTIAL CARE,343141,130245330,04-Feb-14,"8,370.85",Revenue,AIMS CARE PARTNERSHIP,SP0000561
WANDSWORTH COUNCIL,ASC,SOCIAL SERVICES,PRIVATE,EXTERNAL RESIDENTIAL CARE,356053,130245330,24-Feb-14,"7,560.76",Revenue,AIMS CARE PARTNERSHIP,SP0000561
WANDSWORTH COUNCIL,ASC,SOCIAL SERVICES,PRIVATE,EXTERNAL RESIDENTIAL CARE,345751,130245330,06-Feb-14,"7,529.95",Revenue,SEEABILITY,SP0000572
WANDSWORTH COUNCIL,ASC,SOCIAL SERVICES,PRIVATE,EXTERNAL RESIDENTIAL CARE,357972,130245330,26-Feb-14,"8,638.56",Revenue,THE COMMUNITY CARE COMPANY UK LTD,SP0000576
WANDSWORTH COUNCIL,ASC,SOCIAL SERVICES,PRIVATE,EXTERNAL RESIDENTIAL CARE,357973,130245330,26-Feb-14,"6,369.12",Revenue,THE COMMUNITY CARE COMPANY UK LTD,SP0000576
WANDSWORTH COUNCIL,ASC,SOCIAL SERVICES,PRIVATE,EXTERNAL RESIDENTIAL CARE,357974,130245330,26-Feb-14,"5,368.12",Revenue,THE COMMUNITY CARE COMPANY UK LTD,SP0000576
WANDSWORTH COUNCIL,ASC,SOCIAL SERVICES,PRIVATE,EXTERNAL RESIDENTIAL CARE,357975,130245330,26-Feb-14,"6,441.68",Revenue,THE COMMUNITY CARE COMPANY UK LTD,SP0000576
WANDSWORTH COUNCIL,ASC,SOCIAL SERVICES,PRIVATE,EXTERNAL RESIDENTIAL CARE,357976,130245330,26-Feb-14,"5,534.40",Revenue,THE COMMUNITY CARE COMPANY UK LTD,SP0000576
WANDSWORTH COUNCIL,ASC,SOCIAL SERVICES,PRIVATE,EXTERNAL RESIDENTIAL CARE,343127,130245330,04-Feb-14,"7,336.42",Revenue,THE REGARD PARTNERSHIP,SP0000588
WANDSWORTH COUNCIL,ASC,SOCIAL SERVICES,PRIVATE,EXTERNAL RESIDENTIAL CARE,343128,130245330,04-Feb-14,"7,212.76",Revenue,THE REGARD PARTNERSHIP,SP0000588
WANDSWORTH COUNCIL,ASC,SOCIAL SERVICES,PRIVATE,EXTERNAL RESIDENTIAL CARE,343129,130245330,04-Feb-14,"6,623.33",Revenue,THE REGARD PARTNERSHIP,SP0000588
WANDSWORTH COUNCIL,ASC,SOCIAL SERVICES,PRIVATE,EXTERNAL RESIDENTIAL CARE,343130,130245330,04-Feb-14,"6,905.79",Revenue,THE REGARD PARTNERSHIP,SP0000588
WANDSWORTH COUNCIL,ASC,SOCIAL SERVICES,PRIVATE,EXTERNAL RESIDENTIAL CARE,343131,130245330,04-Feb-14,"6,997.95",Revenue,THE REGARD PARTNERSHIP,SP0000588
WANDSWORTH COUNCIL,ASC,SOCIAL SERVICES,PRIVATE,EXTERNAL RESIDENTIAL CARE,343148,130245330,04-Feb-14,"7,717.10",Revenue,THE REGARD PARTNERSHIP,SP0000588
WANDSWORTH COUNCIL,ASC,SOCIAL SERVICES,PRIVATE,EXTERNAL RESIDENTIAL CARE,351736,130245330,17-Feb-14,"6,153.04",Revenue,THE REGARD PARTNERSHIP,SP0000588
WANDSWORTH COUNCIL,ASC,SOCIAL SERVICES,PRIVATE,EXTERNAL RESIDENTIAL CARE,346907,130245330,07-Feb-14,"10,118.48",Revenue,EVERGREEN PARTNERSHIP,SP0000597
WANDSWORTH COUNCIL,ASC,SOCIAL SERVICES,PRIVATE,EXTERNAL RESIDENTIAL CARE,346908,130245330,07-Feb-14,"10,118.48",Revenue,EVERGREEN PARTNERSHIP,SP0000597
WANDSWORTH COUNCIL,ASC,SOCIAL SERVICES,PRIVATE,EXTERNAL RESIDENTIAL CARE,346888,130245330,07-Feb-14,"4,792.20",Revenue,LAETUS LODGE,SP0000600
WANDSWORTH COUNCIL,ASC,SOCIAL SERVICES,PRIVATE,EXTERNAL RESIDENTIAL CARE,346889,130245330,07-Feb-14,"6,096.48",Revenue,LAETUS LODGE,SP0000600
WANDSWORTH COUNCIL,ASC,SOCIAL SERVICES,PRIVATE,EXTERNAL RESIDENTIAL CARE,346890,130245330,07-Feb-14,"3,759.76",Revenue,LAETUS LODGE,SP0000600
WANDSWORTH COUNCIL,ASC,SOCIAL SERVICES,PRIVATE,EXTERNAL RESIDENTIAL CARE,346891,130245330,07-Feb-14,"6,193.48",Revenue,LAETUS LODGE,SP0000600
WANDSWORTH COUNCIL,ASC,SOCIAL SERVICES,PRIVATE,EXTERNAL RESIDENTIAL CARE,346892,130245330,07-Feb-14,"3,759.76",Revenue,LAETUS LODGE,SP0000600
WANDSWORTH COUNCIL,ASC,SOCIAL SERVICES,PRIVATE,EXTERNAL RESIDENTIAL CARE,346893,130245330,07-Feb-14,"3,669.12",Revenue,LAETUS LODGE,SP0000600
WANDSWORTH COUNCIL,ASC,SOCIAL SERVICES,PRIVATE,EXTERNAL RESIDENTIAL CARE,346894,130245330,07-Feb-14,"3,759.76",Revenue,LAETUS LODGE,SP0000600
WANDSWORTH COUNCIL,ASC,SOCIAL SERVICES,PRIVATE,EXTERNAL RESIDENTIAL CARE,346895,130245330,07-Feb-14,"5,240.56",Revenue,LAETUS LODGE,SP0000600
WANDSWORTH COUNCIL,ASC,SOCIAL SERVICES,PRIVATE,EXTERNAL RESIDENTIAL CARE,356104,130245330,24-Feb-14,"8,243.75",Revenue,HEALTHLINC INDIVIDUAL CARE,SP0000617
WANDSWORTH COUNCIL,ASC,SOCIAL SERVICES,PRIVATE,EXTERNAL RESIDENTIAL CARE,360049,130245330,28-Feb-14,"7,445.96",Revenue,HEALTHLINC INDIVIDUAL CARE,SP0000617
WANDSWORTH COUNCIL,ASC,SOCIAL SERVICES,PRIVATE,EXTERNAL RESIDENTIAL CARE,343149,130245330,04-Feb-14,"3,542.48",Revenue,METROPOLITAN HOUSING TRUST,SP0000626
WANDSWORTH COUNCIL,ASC,SOCIAL SERVICES,PRIVATE,EXTERNAL RESIDENTIAL CARE,343152,130245330,04-Feb-14,"3,812.04",Revenue,METROPOLITAN HOUSING TRUST,SP0000626
WANDSWORTH COUNCIL,ASC,SOCIAL SERVICES,PRIVATE,EXTERNAL RESIDENTIAL CARE,347319,130245330,10-Feb-14,"3,623.28",Revenue,METROPOLITAN HOUSING TRUST,SP0000626
WANDSWORTH COUNCIL,ASC,SOCIAL SERVICES,PRIVATE,EXTERNAL RESIDENTIAL CARE,347320,130245330,10-Feb-14,"3,650.32",Revenue,METROPOLITAN HOUSING TRUST,SP0000626
WANDSWORTH COUNCIL,ASC,SOCIAL SERVICES,PRIVATE,EXTERNAL RESIDENTIAL CARE,347321,130245330,10-Feb-14,"3,659.52",Revenue,METROPOLITAN HOUSING TRUST,SP0000626
WANDSWORTH COUNCIL,ASC,SOCIAL SERVICES,PRIVATE,EXTERNAL RESIDENTIAL CARE,349716,130245330,13-Feb-14,"3,542.48",Revenue,METROPOLITAN HOUSING TRUST,SP0000626
WANDSWORTH COUNCIL,ASC,SOCIAL SERVICES,PRIVATE,EXTERNAL RESIDENTIAL CARE,349717,130245330,13-Feb-14,"3,659.52",Revenue,METROPOLITAN HOUSING TRUST,SP0000626
WANDSWORTH COUNCIL,ASC,SOCIAL SERVICES,PRIVATE,EXTERNAL RESIDENTIAL CARE,349718,130245330,13-Feb-14,"3,659.52",Revenue,METROPOLITAN HOUSING TRUST,SP0000626
WANDSWORTH COUNCIL,ASC,SOCIAL SERVICES,PRIVATE,EXTERNAL RESIDENTIAL CARE,349719,130245330,13-Feb-14,"3,659.68",Revenue,METROPOLITAN HOUSING TRUST,SP0000626
WANDSWORTH COUNCIL,ASC,SOCIAL SERVICES,PRIVATE,EXTERNAL RESIDENTIAL CARE,349720,130245330,13-Feb-14,"3,659.52",Revenue,METROPOLITAN HOUSING TRUST,SP0000626
WANDSWORTH COUNCIL,ASC,SOCIAL SERVICES,PRIVATE,EXTERNAL RESIDENTIAL CARE,349721,130245330,13-Feb-14,"3,659.52",Revenue,METROPOLITAN HOUSING TRUST,SP0000626
WANDSWORTH COUNCIL,ASC,SOCIAL SERVICES,PRIVATE,EXTERNAL RESIDENTIAL CARE,349722,130245330,13-Feb-14,"3,496.84",Revenue,METROPOLITAN HOUSING TRUST,SP0000626
WANDSWORTH COUNCIL,ASC,SOCIAL SERVICES,PRIVATE,EXTERNAL RESIDENTIAL CARE,352787,130245330,18-Feb-14,"2,669.60",Revenue,METROPOLITAN HOUSING TRUST,SP0000626
WANDSWORTH COUNCIL,ASC,SOCIAL SERVICES,PRIVATE,EXTERNAL RESIDENTIAL CARE,352788,130245330,18-Feb-14,"2,669.60",Revenue,METROPOLITAN HOUSING TRUST,SP0000626
WANDSWORTH COUNCIL,ASC,SOCIAL SERVICES,PRIVATE,EXTERNAL RESIDENTIAL CARE,352789,130245330,18-Feb-14,"2,669.60",Revenue,METROPOLITAN HOUSING TRUST,SP0000626
WANDSWORTH COUNCIL,ASC,SOCIAL SERVICES,PRIVATE,EXTERNAL RESIDENTIAL CARE,352790,130245330,18-Feb-14,"2,669.60",Revenue,METROPOLITAN HOUSING TRUST,SP0000626
WANDSWORTH COUNCIL,ASC,SOCIAL SERVICES,PRIVATE,EXTERNAL RESIDENTIAL CARE,352791,130245330,18-Feb-14,"2,669.60",Revenue,METROPOLITAN HOUSING TRUST,SP0000626
WANDSWORTH COUNCIL,ASC,SOCIAL SERVICES,PRIVATE,EXTERNAL RESIDENTIAL CARE,352792,130245330,18-Feb-14,"2,669.60",Revenue,METROPOLITAN HOUSING TRUST,SP0000626
WANDSWORTH COUNCIL,ASC,SOCIAL SERVICES,PRIVATE,EXTERNAL RESIDENTIAL CARE,352793,130245330,18-Feb-14,"2,669.60",Revenue,METROPOLITAN HOUSING TRUST,SP0000626
WANDSWORTH COUNCIL,ASC,SOCIAL SERVICES,PRIVATE,EXTERNAL RESIDENTIAL CARE,352794,130245330,18-Feb-14,"2,669.60",Revenue,METROPOLITAN HOUSING TRUST,SP0000626
WANDSWORTH COUNCIL,ASC,SOCIAL SERVICES,PRIVATE,EXTERNAL RESIDENTIAL CARE,352795,130245330,18-Feb-14,"2,696.28",Revenue,METROPOLITAN HOUSING TRUST,SP0000626
WANDSWORTH COUNCIL,ASC,SOCIAL SERVICES,PRIVATE,EXTERNAL RESIDENTIAL CARE,352796,130245330,18-Feb-14,"3,542.48",Revenue,METROPOLITAN HOUSING TRUST,SP0000626
WANDSWORTH COUNCIL,ASC,SOCIAL SERVICES,PRIVATE,EXTERNAL RESIDENTIAL CARE,352797,130245330,18-Feb-14,"3,659.52",Revenue,METROPOLITAN HOUSING TRUST,SP0000626
WANDSWORTH COUNCIL,ASC,SOCIAL SERVICES,PRIVATE,EXTERNAL RESIDENTIAL CARE,352798,130245330,18-Feb-14,"3,659.52",Revenue,METROPOLITAN HOUSING TRUST,SP0000626
WANDSWORTH COUNCIL,ASC,SOCIAL SERVICES,PRIVATE,EXTERNAL RESIDENTIAL CARE,352799,130245330,18-Feb-14,"3,659.68",Revenue,METROPOLITAN HOUSING TRUST,SP0000626
WANDSWORTH COUNCIL,ASC,SOCIAL SERVICES,PRIVATE,EXTERNAL RESIDENTIAL CARE,352800,130245330,18-Feb-14,"3,659.52",Revenue,METROPOLITAN HOUSING TRUST,SP0000626
WANDSWORTH COUNCIL,ASC,SOCIAL SERVICES,PRIVATE,EXTERNAL RESIDENTIAL CARE,352801,130245330,18-Feb-14,"3,659.52",Revenue,METROPOLITAN HOUSING TRUST,SP0000626
WANDSWORTH COUNCIL,ASC,SOCIAL SERVICES,PRIVATE,EXTERNAL RESIDENTIAL CARE,352802,130245330,18-Feb-14,"3,496.84",Revenue,METROPOLITAN HOUSING TRUST,SP0000626
WANDSWORTH COUNCIL,ASC,SOCIAL SERVICES,PRIVATE,EXTERNAL RESIDENTIAL CARE,352803,130245330,18-Feb-14,"3,542.48",Revenue,METROPOLITAN HOUSING TRUST,SP0000626
WANDSWORTH COUNCIL,ASC,SOCIAL SERVICES,PRIVATE,EXTERNAL RESIDENTIAL CARE,352804,130245330,18-Feb-14,"3,659.52",Revenue,METROPOLITAN HOUSING TRUST,SP0000626
WANDSWORTH COUNCIL,ASC,SOCIAL SERVICES,PRIVATE,EXTERNAL RESIDENTIAL CARE,352805,130245330,18-Feb-14,"3,659.52",Revenue,METROPOLITAN HOUSING TRUST,SP0000626
WANDSWORTH COUNCIL,ASC,SOCIAL SERVICES,PRIVATE,EXTERNAL RESIDENTIAL CARE,352806,130245330,18-Feb-14,"3,659.68",Revenue,METROPOLITAN HOUSING TRUST,SP0000626
WANDSWORTH COUNCIL,ASC,SOCIAL SERVICES,PRIVATE,EXTERNAL RESIDENTIAL CARE,352807,130245330,18-Feb-14,"3,659.52",Revenue,METROPOLITAN HOUSING TRUST,SP0000626
WANDSWORTH COUNCIL,ASC,SOCIAL SERVICES,PRIVATE,EXTERNAL RESIDENTIAL CARE,352808,130245330,18-Feb-14,"3,659.52",Revenue,METROPOLITAN HOUSING TRUST,SP0000626
WANDSWORTH COUNCIL,ASC,SOCIAL SERVICES,PRIVATE,EXTERNAL RESIDENTIAL CARE,352809,130245330,18-Feb-14,"3,496.84",Revenue,METROPOLITAN HOUSING TRUST,SP0000626
WANDSWORTH COUNCIL,ASC,SOCIAL SERVICES,PRIVATE,EXTERNAL RESIDENTIAL CARE,356095,130245330,25-Feb-14,"4,756.88",Revenue,METROPOLITAN HOUSING TRUST,SP0000626
WANDSWORTH COUNCIL,ASC,SOCIAL SERVICES,PRIVATE,EXTERNAL RESIDENTIAL CARE,356096,130245330,25-Feb-14,"4,756.88",Revenue,METROPOLITAN HOUSING TRUST,SP0000626
WANDSWORTH COUNCIL,ASC,SOCIAL SERVICES,PRIVATE,EXTERNAL RESIDENTIAL CARE,356097,130245330,25-Feb-14,"4,756.88",Revenue,METROPOLITAN HOUSING TRUST,SP0000626
WANDSWORTH COUNCIL,ASC,SOCIAL SERVICES,PRIVATE,EXTERNAL RESIDENTIAL CARE,356098,130245330,25-Feb-14,"4,430.84",Revenue,METROPOLITAN HOUSING TRUST,SP0000626
WANDSWORTH COUNCIL,ASC,SOCIAL SERVICES,PRIVATE,EXTERNAL RESIDENTIAL CARE,356099,130245330,25-Feb-14,"4,718.99",Revenue,METROPOLITAN HOUSING TRUST,SP0000626
WANDSWORTH COUNCIL,ASC,SOCIAL SERVICES,PRIVATE,EXTERNAL RESIDENTIAL CARE,356100,130245330,25-Feb-14,"4,709.79",Revenue,METROPOLITAN HOUSING TRUST,SP0000626
WANDSWORTH COUNCIL,ASC,SOCIAL SERVICES,PRIVATE,EXTERNAL RESIDENTIAL CARE,356101,130245330,25-Feb-14,"4,713.59",Revenue,METROPOLITAN HOUSING TRUST,SP0000626
WANDSWORTH COUNCIL,ASC,SOCIAL SERVICES,PRIVATE,EXTERNAL RESIDENTIAL CARE,356103,130245330,25-Feb-14,"4,713.59",Revenue,METROPOLITAN HOUSING TRUST,SP0000626
WANDSWORTH COUNCIL,ASC,SOCIAL SERVICES,PRIVATE,EXTERNAL RESIDENTIAL CARE,356105,130245330,25-Feb-14,"4,756.88",Revenue,METROPOLITAN HOUSING TRUST,SP0000626
WANDSWORTH COUNCIL,ASC,SOCIAL SERVICES,PRIVATE,EXTERNAL RESIDENTIAL CARE,356106,130245330,25-Feb-14,"4,756.88",Revenue,METROPOLITAN HOUSING TRUST,SP0000626
WANDSWORTH COUNCIL,ASC,SOCIAL SERVICES,PRIVATE,EXTERNAL RESIDENTIAL CARE,356107,130245330,25-Feb-14,"4,430.84",Revenue,METROPOLITAN HOUSING TRUST,SP0000626
WANDSWORTH COUNCIL,ASC,SOCIAL SERVICES,PRIVATE,EXTERNAL RESIDENTIAL CARE,356108,130245330,25-Feb-14,"4,718.99",Revenue,METROPOLITAN HOUSING TRUST,SP0000626
WANDSWORTH COUNCIL,ASC,SOCIAL SERVICES,PRIVATE,EXTERNAL RESIDENTIAL CARE,356109,130245330,25-Feb-14,"4,709.79",Revenue,METROPOLITAN HOUSING TRUST,SP0000626
WANDSWORTH COUNCIL,ASC,SOCIAL SERVICES,PRIVATE,EXTERNAL RESIDENTIAL CARE,356110,130245330,25-Feb-14,"4,713.59",Revenue,METROPOLITAN HOUSING TRUST,SP0000626
WANDSWORTH COUNCIL,ASC,SOCIAL SERVICES,PRIVATE,EXTERNAL RESIDENTIAL CARE,356112,130245330,25-Feb-14,"4,713.59",Revenue,METROPOLITAN HOUSING TRUST,SP0000626
WANDSWORTH COUNCIL,ASC,SOCIAL SERVICES,PRIVATE,EXTERNAL RESIDENTIAL CARE,344328,130245330,05-Feb-14,"2,395.60",Revenue,LIVABILITY,SP0000669
WANDSWORTH COUNCIL,ASC,SOCIAL SERVICES,PRIVATE,EXTERNAL RESIDENTIAL CARE,356774,130245330,24-Feb-14,"2,395.60",Revenue,LIVABILITY,SP0000669
WANDSWORTH COUNCIL,ASC,SOCIAL SERVICES,PRIVATE,EXTERNAL RESIDENTIAL CARE,345717,130245330,14-Feb-14,"2,457.40",Revenue,COTTAGE & RURAL ENTERPRISES LTD,SP0000693
WANDSWORTH COUNCIL,ASC,SOCIAL SERVICES,PRIVATE,EXTERNAL RESIDENTIAL CARE,345718,130245330,14-Feb-14,"2,307.00",Revenue,COTTAGE & RURAL ENTERPRISES LTD,SP0000693
WANDSWORTH COUNCIL,ASC,SOCIAL SERVICES,PRIVATE,EXTERNAL RESIDENTIAL CARE,345719,130245330,14-Feb-14,"2,743.88",Revenue,COTTAGE & RURAL ENTERPRISES LTD,SP0000693
WANDSWORTH COUNCIL,ASC,SOCIAL SERVICES,PRIVATE,EXTERNAL RESIDENTIAL CARE,360115,130245330,28-Feb-14,"2,307.00",Revenue,COTTAGE & RURAL ENTERPRISES LTD,SP0000693
WANDSWORTH COUNCIL,ASC,SOCIAL SERVICES,PRIVATE,EXTERNAL RESIDENTIAL CARE,360116,130245330,28-Feb-14,"2,743.88",Revenue,COTTAGE & RURAL ENTERPRISES LTD,SP0000693
WANDSWORTH COUNCIL,ASC,SOCIAL SERVICES,PRIVATE,EXTERNAL RESIDENTIAL CARE,360117,130245330,28-Feb-14,"2,457.40",Revenue,COTTAGE & RURAL ENTERPRISES LTD,SP0000693
WANDSWORTH COUNCIL,ASC,SOCIAL SERVICES,PRIVATE,EXTERNAL RESIDENTIAL CARE,360134,130245330,28-Feb-14,"2,799.12",Revenue,THE MANOR HOUSE,SP0000728
WANDSWORTH COUNCIL,ASC,SOCIAL SERVICES,PRIVATE,EXTERNAL RESIDENTIAL CARE,345734,130245330,06-Feb-14,"8,576.73",Revenue,RALEIGH HOUSE LTD,SP0000760
WANDSWORTH COUNCIL,ASC,SOCIAL SERVICES,PRIVATE,EXTERNAL RESIDENTIAL CARE,345735,130245330,06-Feb-14,"7,763.29",Revenue,RALEIGH HOUSE LTD,SP0000760
WANDSWORTH COUNCIL,ASC,SOCIAL SERVICES,PRIVATE,EXTERNAL RESIDENTIAL CARE,356086,130245330,24-Feb-14,"7,012.00",Revenue,RALEIGH HOUSE LTD,SP0000760
WANDSWORTH COUNCIL,ASC,SOCIAL SERVICES,PRIVATE,EXTERNAL RESIDENTIAL CARE,356087,130245330,24-Feb-14,"7,746.72",Revenue,RALEIGH HOUSE LTD,SP0000760
WANDSWORTH COUNCIL,ASC,SOCIAL SERVICES,PRIVATE,EXTERNAL RESIDENTIAL CARE,345764,130245330,06-Feb-14,"6,091.77",Revenue,VOYAGE CARE LTD,SP0000761
WANDSWORTH COUNCIL,ASC,SOCIAL SERVICES,PRIVATE,EXTERNAL RESIDENTIAL CARE,345765,130245330,06-Feb-14,"6,127.81",Revenue,VOYAGE CARE LTD,SP0000761
WANDSWORTH COUNCIL,ASC,SOCIAL SERVICES,PRIVATE,EXTERNAL RESIDENTIAL CARE,345766,130245330,06-Feb-14,"6,367.73",Revenue,VOYAGE CARE LTD,SP0000761
WANDSWORTH COUNCIL,ASC,SOCIAL SERVICES,PRIVATE,EXTERNAL RESIDENTIAL CARE,356080,130245330,24-Feb-14,"5,502.24",Revenue,VOYAGE CARE LTD,SP0000761
WANDSWORTH COUNCIL,ASC,SOCIAL SERVICES,PRIVATE,EXTERNAL RESIDENTIAL CARE,356081,130245330,24-Feb-14,"5,534.80",Revenue,VOYAGE CARE LTD,SP0000761
WANDSWORTH COUNCIL,ASC,SOCIAL SERVICES,PRIVATE,EXTERNAL RESIDENTIAL CARE,356082,130245330,24-Feb-14,"5,745.44",Revenue,VOYAGE CARE LTD,SP0000761
WANDSWORTH COUNCIL,ASC,SOCIAL SERVICES,PRIVATE,EXTERNAL RESIDENTIAL CARE,351739,130245330,17-Feb-14,"3,806.64",Revenue,GLENCARE GROUP,SP0000791
WANDSWORTH COUNCIL,ASC,SOCIAL SERVICES,PRIVATE,EXTERNAL RESIDENTIAL CARE,351740,130245330,17-Feb-14,"3,806.64",Revenue,GLENCARE GROUP,SP0000791
WANDSWORTH COUNCIL,ASC,SOCIAL SERVICES,PRIVATE,EXTERNAL RESIDENTIAL CARE,346882,130245330,07-Feb-14,"2,267.32",Revenue,FREEWAYS TRUST LTD,SP0000793
WANDSWORTH COUNCIL,ASC,SOCIAL SERVICES,PRIVATE,EXTERNAL RESIDENTIAL CARE,347313,130245330,10-Feb-14,"2,256.19",Revenue,FREEWAYS TRUST LTD,SP0000793
WANDSWORTH COUNCIL,ASC,SOCIAL SERVICES,PRIVATE,EXTERNAL RESIDENTIAL CARE,347314,130245330,10-Feb-14,"2,267.32",Revenue,FREEWAYS TRUST LTD,SP0000793
WANDSWORTH COUNCIL,ASC,SOCIAL SERVICES,PRIVATE,EXTERNAL RESIDENTIAL CARE,347315,130245330,10-Feb-14,"2,267.32",Revenue,FREEWAYS TRUST LTD,SP0000793
WANDSWORTH COUNCIL,ASC,SOCIAL SERVICES,PRIVATE,EXTERNAL RESIDENTIAL CARE,347316,130245330,10-Feb-14,"2,267.32",Revenue,FREEWAYS TRUST LTD,SP0000793
WANDSWORTH COUNCIL,ASC,SOCIAL SERVICES,PRIVATE,EXTERNAL RESIDENTIAL CARE,346879,130245330,07-Feb-14,"3,140.56",Revenue,UNITED RESPONSE,SP0000797
WANDSWORTH COUNCIL,ASC,SOCIAL SERVICES,PRIVATE,EXTERNAL RESIDENTIAL CARE,360112,130245330,28-Feb-14,"3,140.56",Revenue,UNITED RESPONSE,SP0000797
WANDSWORTH COUNCIL,ASC,SOCIAL SERVICES,PRIVATE,EXTERNAL RESIDENTIAL CARE,345715,130245330,06-Feb-14,"6,078.51",Revenue,WESSEX AUTISTIC SOCIETY,SP0000805
WANDSWORTH COUNCIL,ASC,SOCIAL SERVICES,PRIVATE,EXTERNAL RESIDENTIAL CARE,360086,130245330,28-Feb-14,"5,673.28",Revenue,WESSEX AUTISTIC SOCIETY,SP0000805
WANDSWORTH COUNCIL,ASC,SOCIAL SERVICES,PRIVATE,EXTERNAL RESIDENTIAL CARE,352779,130245330,18-Feb-14,"3,970.40",Revenue,BEECH LODGE,SP0000807
WANDSWORTH COUNCIL,ASC,SOCIAL SERVICES,PRIVATE,EXTERNAL RESIDENTIAL CARE,352780,130245330,18-Feb-14,"3,970.40",Revenue,BEECH LODGE,SP0000807
WANDSWORTH COUNCIL,ASC,SOCIAL SERVICES,PRIVATE,EXTERNAL RESIDENTIAL CARE,352781,130245330,18-Feb-14,"3,970.40",Revenue,BEECH LODGE,SP0000807
WANDSWORTH COUNCIL,ASC,SOCIAL SERVICES,PRIVATE,EXTERNAL RESIDENTIAL CARE,360087,130245330,28-Feb-14,"3,586.16",Revenue,BEECH LODGE,SP0000807
WANDSWORTH COUNCIL,ASC,SOCIAL SERVICES,PRIVATE,EXTERNAL RESIDENTIAL CARE,360088,130245330,28-Feb-14,"3,586.16",Revenue,BEECH LODGE,SP0000807
WANDSWORTH COUNCIL,ASC,SOCIAL SERVICES,PRIVATE,EXTERNAL RESIDENTIAL CARE,360089,130245330,28-Feb-14,"3,586.16",Revenue,BEECH LODGE,SP0000807
WANDSWORTH COUNCIL,ASC,SOCIAL SERVICES,PRIVATE,EXTERNAL RESIDENTIAL CARE,343146,130245330,04-Feb-14,"7,959.24",Revenue,CHATSWORTH CARE,SP0000831
WANDSWORTH COUNCIL,ASC,SOCIAL SERVICES,PRIVATE,EXTERNAL RESIDENTIAL CARE,356060,130245330,24-Feb-14,"7,189.00",Revenue,CHATSWORTH CARE,SP0000831
WANDSWORTH COUNCIL,ASC,SOCIAL SERVICES,PRIVATE,EXTERNAL RESIDENTIAL CARE,358188,130245330,27-Feb-14,"7,272.00",Revenue,FIRCROFT,SP0000840
WANDSWORTH COUNCIL,ASC,SOCIAL SERVICES,PRIVATE,EXTERNAL RESIDENTIAL CARE,344330,130245330,05-Feb-14,"1,254.24",Revenue,ROYAL MENCAP SOCIETY,SP0000842
WANDSWORTH COUNCIL,ASC,SOCIAL SERVICES,PRIVATE,EXTERNAL RESIDENTIAL CARE,360058,130245330,28-Feb-14,"7,363.12",Revenue,ROYAL MENCAP SOCIETY,SP0000842
WANDSWORTH COUNCIL,ASC,SOCIAL SERVICES,PRIVATE,EXTERNAL RESIDENTIAL CARE,360059,130245330,28-Feb-14,"5,840.68",Revenue,ROYAL MENCAP SOCIETY,SP0000842
WANDSWORTH COUNCIL,ASC,SOCIAL SERVICES,PRIVATE,EXTERNAL RESIDENTIAL CARE,360060,130245330,28-Feb-14,"4,197.68",Revenue,ROYAL MENCAP SOCIETY,SP0000842
WANDSWORTH COUNCIL,ASC,SOCIAL SERVICES,PRIVATE,EXTERNAL RESIDENTIAL CARE,345755,130245330,06-Feb-14,"3,259.92",Revenue,STALLCOMBE HOUSE,SP0000843
WANDSWORTH COUNCIL,ASC,SOCIAL SERVICES,PRIVATE,EXTERNAL RESIDENTIAL CARE,356091,130245330,24-Feb-14,"2,944.44",Revenue,STALLCOMBE HOUSE,SP0000843
WANDSWORTH COUNCIL,ASC,SOCIAL SERVICES,PRIVATE,EXTERNAL RESIDENTIAL CARE,360111,130245330,28-Feb-14,"10,216.60",Revenue,ASHCROFT CARE SERVICES,SP0000872
WANDSWORTH COUNCIL,ASC,SOCIAL SERVICES,PRIVATE,EXTERNAL RESIDENTIAL CARE,346933,130245330,07-Feb-14,"5,761.68",Revenue,WINSLOW COURT,SP0000886
WANDSWORTH COUNCIL,ASC,SOCIAL SERVICES,PRIVATE,EXTERNAL RESIDENTIAL CARE,346934,130245330,07-Feb-14,"5,543.92",Revenue,WINSLOW COURT,SP0000886
WANDSWORTH COUNCIL,ASC,SOCIAL SERVICES,PRIVATE,EXTERNAL RESIDENTIAL CARE,349072,130245330,12-Feb-14,"2,528.00",Revenue,PURBECK CARE LTD,SP0000913
WANDSWORTH COUNCIL,ASC,SOCIAL SERVICES,PRIVATE,EXTERNAL RESIDENTIAL CARE,343142,130245330,04-Feb-14,"5,204.36",Revenue,TRACS,SP0000914
WANDSWORTH COUNCIL,ASC,SOCIAL SERVICES,PRIVATE,EXTERNAL RESIDENTIAL CARE,356054,130245330,24-Feb-14,"4,700.72",Revenue,TRACS,SP0000914
WANDSWORTH COUNCIL,ASC,SOCIAL SERVICES,PRIVATE,EXTERNAL RESIDENTIAL CARE,349075,130245330,12-Feb-14,"7,271.56",Revenue,CORICH COMMUNITY CARE LTD,SP0000915
WANDSWORTH COUNCIL,ASC,SOCIAL SERVICES,PRIVATE,EXTERNAL RESIDENTIAL CARE,352774,130245330,18-Feb-14,"7,271.56",Revenue,CORICH COMMUNITY CARE LTD,SP0000915
WANDSWORTH COUNCIL,ASC,SOCIAL SERVICES,PRIVATE,EXTERNAL RESIDENTIAL CARE,360103,130245330,28-Feb-14,"2,172.72",Revenue,HILL PARK AUTISTIC TRUST,SP0000926
WANDSWORTH COUNCIL,ASC,SOCIAL SERVICES,PRIVATE,EXTERNAL RESIDENTIAL CARE,346906,130245330,07-Feb-14,"1,417.20",Revenue,REDACTED PERSONAL DATA,SP0000931
WANDSWORTH COUNCIL,ASC,SOCIAL SERVICES,PRIVATE,EXTERNAL RESIDENTIAL CARE,358191,130245330,27-Feb-14,"2,930.00",Revenue,MISSION CARE,SP0000958
WANDSWORTH COUNCIL,ASC,SOCIAL SERVICES,PRIVATE,EXTERNAL RESIDENTIAL CARE,360097,130245330,28-Feb-14,"3,639.64",Revenue,DOWNING (CHERTSEY ROAD) LTD,SP0000959
WANDSWORTH COUNCIL,ASC,SOCIAL SERVICES,PRIVATE,EXTERNAL RESIDENTIAL CARE,352783,130245330,18-Feb-14,"3,990.55",Revenue,CHERRY LODGE,SP0000965
WANDSWORTH COUNCIL,ASC,SOCIAL SERVICES,PRIVATE,EXTERNAL RESIDENTIAL CARE,360094,130245330,28-Feb-14,"3,604.36",Revenue,CHERRY LODGE,SP0000965
WANDSWORTH COUNCIL,ASC,SOCIAL SERVICES,PRIVATE,EXTERNAL RESIDENTIAL CARE,346932,130245330,07-Feb-14,"6,493.56",Revenue,RIDGEWOOD CARE SERVICES LTD,SP0000969
WANDSWORTH COUNCIL,ASC,SOCIAL SERVICES,PRIVATE,EXTERNAL RESIDENTIAL CARE,356057,130245330,24-Feb-14,"3,548.76",Revenue,RIDGEWOOD CARE SERVICES LTD,SP0000969
WANDSWORTH COUNCIL,ASC,SOCIAL SERVICES,PRIVATE,EXTERNAL RESIDENTIAL CARE,356067,130245330,24-Feb-14,"3,346.64",Revenue,RIDGEWOOD CARE SERVICES LTD,SP0000969
WANDSWORTH COUNCIL,ASC,SOCIAL SERVICES,PRIVATE,EXTERNAL RESIDENTIAL CARE,346880,130245330,07-Feb-14,"4,242.40",Revenue,LEONARD CHESHIRE,SP0000976
WANDSWORTH COUNCIL,ASC,SOCIAL SERVICES,PRIVATE,EXTERNAL RESIDENTIAL CARE,346883,130245330,07-Feb-14,"6,323.91",Revenue,LEONARD CHESHIRE,SP0000976
WANDSWORTH COUNCIL,ASC,SOCIAL SERVICES,PRIVATE,EXTERNAL RESIDENTIAL CARE,356064,130245330,24-Feb-14,"4,644.56",Revenue,LEONARD CHESHIRE,SP0000976
WANDSWORTH COUNCIL,ASC,SOCIAL SERVICES,PRIVATE,EXTERNAL RESIDENTIAL CARE,360096,130245330,28-Feb-14,"4,868.12",Revenue,CREDITON CARE & SUPPORT HOMES,SP0000998
WANDSWORTH COUNCIL,ASC,SOCIAL SERVICES,PRIVATE,EXTERNAL RESIDENTIAL CARE,352775,130245330,18-Feb-14,"4,613.60",Revenue,LOTUS CARE HOME LTD,SP0001006
WANDSWORTH COUNCIL,ASC,SOCIAL SERVICES,PRIVATE,EXTERNAL RESIDENTIAL CARE,356078,130245330,24-Feb-14,"5,239.70",Revenue,M JINGREE T/A SUNLIGHT HOUSE,SP0001024
WANDSWORTH COUNCIL,ASC,SOCIAL SERVICES,PRIVATE,EXTERNAL RESIDENTIAL CARE,345721,130245330,06-Feb-14,"4,630.48",Revenue,ALLIED CARE (MHS) LTD,SP0001069
WANDSWORTH COUNCIL,ASC,SOCIAL SERVICES,PRIVATE,EXTERNAL RESIDENTIAL CARE,360084,130245330,28-Feb-14,"3,913.52",Revenue,ALLIED CARE (MHS) LTD,SP0001069
WANDSWORTH COUNCIL,ASC,SOCIAL SERVICES,PRIVATE,EXTERNAL RESIDENTIAL CARE,360101,130245330,28-Feb-14,"4,516.40",Revenue,ALLIED CARE (MHS) LTD,SP0001069
WANDSWORTH COUNCIL,ASC,SOCIAL SERVICES,PRIVATE,EXTERNAL RESIDENTIAL CARE,360127,130245330,28-Feb-14,"4,630.48",Revenue,ALLIED CARE (MHS) LTD,SP0001069
WANDSWORTH COUNCIL,ASC,SOCIAL SERVICES,PRIVATE,EXTERNAL RESIDENTIAL CARE,343136,130245330,04-Feb-14,"2,323.34",Revenue,SAXON COURT,SP0001100
WANDSWORTH COUNCIL,ASC,SOCIAL SERVICES,PRIVATE,EXTERNAL RESIDENTIAL CARE,343137,130245330,04-Feb-14,"2,500.07",Revenue,SAXON COURT,SP0001100
WANDSWORTH COUNCIL,ASC,SOCIAL SERVICES,PRIVATE,EXTERNAL RESIDENTIAL CARE,356043,130245330,24-Feb-14,"2,098.50",Revenue,SAXON COURT,SP0001100
WANDSWORTH COUNCIL,ASC,SOCIAL SERVICES,PRIVATE,EXTERNAL RESIDENTIAL CARE,356044,130245330,24-Feb-14,"2,258.12",Revenue,SAXON COURT,SP0001100
WANDSWORTH COUNCIL,ASC,SOCIAL SERVICES,PRIVATE,EXTERNAL RESIDENTIAL CARE,345741,130245330,06-Feb-14,"12,485.04",Revenue,ILG LTD,SP0001103
WANDSWORTH COUNCIL,ASC,SOCIAL SERVICES,PRIVATE,EXTERNAL RESIDENTIAL CARE,356074,130245330,24-Feb-14,"11,276.80",Revenue,ILG LTD,SP0001103
WANDSWORTH COUNCIL,ASC,SOCIAL SERVICES,PRIVATE,EXTERNAL RESIDENTIAL CARE,346897,130245330,07-Feb-14,"7,395.80",Revenue,TOTTERDOWN,SP0001113
WANDSWORTH COUNCIL,ASC,SOCIAL SERVICES,PRIVATE,EXTERNAL RESIDENTIAL CARE,346898,130245330,07-Feb-14,"3,671.24",Revenue,TOTTERDOWN,SP0001113
WANDSWORTH COUNCIL,ASC,SOCIAL SERVICES,PRIVATE,EXTERNAL RESIDENTIAL CARE,360090,130245330,28-Feb-14,"6,456.72",Revenue,SUSSEX HEALTH CARE,SP0001115
WANDSWORTH COUNCIL,ASC,SOCIAL SERVICES,PRIVATE,EXTERNAL RESIDENTIAL CARE,358183,130245330,27-Feb-14,"6,708.44",Revenue,CHOICE CARE GROUP,SP0001367
WANDSWORTH COUNCIL,ASC,SOCIAL SERVICES,PRIVATE,EXTERNAL RESIDENTIAL CARE,360135,130245330,28-Feb-14,"8,819.50",Revenue,MIGHOUSE RESIDENTIAL CARE HOME LTD,SP0001402
WANDSWORTH COUNCIL,ASC,SOCIAL SERVICES,PRIVATE,EXTERNAL RESIDENTIAL CARE,360119,130245330,28-Feb-14,"3,280.48",Revenue,CARE UNLIMITED GROUP LTD,SP0001575
WANDSWORTH COUNCIL,ASC,SOCIAL SERVICES,PRIVATE,EXTERNAL RESIDENTIAL CARE,360081,130245330,28-Feb-14,"6,372.24",Revenue,ASHAMBER HOMES LTD,SP0001610
WANDSWORTH COUNCIL,ASC,SOCIAL SERVICES,PRIVATE,EXTERNAL RESIDENTIAL CARE,358194,130245330,27-Feb-14,"3,523.28",Revenue,CRAEGMOOR OLD RECTORY BREDE PRIORY,SP0001621
WANDSWORTH COUNCIL,ASC,SOCIAL SERVICES,PRIVATE,EXTERNAL RESIDENTIAL CARE,360078,130245330,28-Feb-14,"4,602.76",Revenue,ACH OF LONDON LLP,SP0001688
WANDSWORTH COUNCIL,ASC,SOCIAL SERVICES,PRIVATE,EXTERNAL RESIDENTIAL CARE,343135,130245330,04-Feb-14,"10,219.46",Revenue,SALISBURY AUTISTIC CARE,SP0001691
WANDSWORTH COUNCIL,ASC,SOCIAL SERVICES,PRIVATE,EXTERNAL RESIDENTIAL CARE,356042,130245330,24-Feb-14,"9,230.48",Revenue,SALISBURY AUTISTIC CARE,SP0001691
WANDSWORTH COUNCIL,ASC,SOCIAL SERVICES,PRIVATE,EXTERNAL RESIDENTIAL CARE,345731,130245330,06-Feb-14,"7,581.50",Revenue,PATHWAY HEALTHCARE,SP0001779
WANDSWORTH COUNCIL,ASC,SOCIAL SERVICES,PRIVATE,EXTERNAL RESIDENTIAL CARE,345732,130245330,06-Feb-14,"7,134.21",Revenue,PATHWAY HEALTHCARE,SP0001779
WANDSWORTH COUNCIL,ASC,SOCIAL SERVICES,PRIVATE,EXTERNAL RESIDENTIAL CARE,356072,130245330,24-Feb-14,"6,847.80",Revenue,PATHWAY HEALTHCARE,SP0001779
WANDSWORTH COUNCIL,ASC,SOCIAL SERVICES,PRIVATE,EXTERNAL RESIDENTIAL CARE,356085,130245330,24-Feb-14,"6,443.80",Revenue,PATHWAY HEALTHCARE,SP0001779
WANDSWORTH COUNCIL,ASC,SOCIAL SERVICES,PRIVATE,EXTERNAL RESIDENTIAL CARE,347318,130245330,10-Feb-14,"6,409.68",Revenue,THE BRANDON TRUST,SP0005337
WANDSWORTH COUNCIL,ASC,SOCIAL SERVICES,PRIVATE,EXTERNAL RESIDENTIAL CARE,346905,130245330,07-Feb-14,"2,755.56",Revenue,HASTINGS & BEXHILL MENCAP SOCIETY,SP0005380
WANDSWORTH COUNCIL,ASC,SOCIAL SERVICES,PRIVATE,EXTERNAL RESIDENTIAL CARE,349073,130245330,12-Feb-14,"3,469.00",Revenue,CSS LTD T/A  THF CARE ESTATES LTD,SP0005682
WANDSWORTH COUNCIL,ASC,SOCIAL SERVICES,PRIVATE,EXTERNAL RESIDENTIAL CARE,349074,130245330,12-Feb-14,"3,469.00",Revenue,CSS LTD T/A  THF CARE ESTATES LTD,SP0005682
WANDSWORTH COUNCIL,ASC,SOCIAL SERVICES,PRIVATE,EXTERNAL RESIDENTIAL CARE,352771,130245330,18-Feb-14,"3,469.00",Revenue,CSS LTD T/A  THF CARE ESTATES LTD,SP0005682
WANDSWORTH COUNCIL,ASC,SOCIAL SERVICES,PRIVATE,EXTERNAL RESI RESPITE CARE,345761,130245340,06-Feb-14,"-1,242.51",Revenue,THE WEST OF ENGLAND SCHOOL & COLLEGE,SP0001486
WANDSWORTH COUNCIL,ASC,SOCIAL SERVICES,PRIVATE,RESPITE CARE AT HOME -VOUCHERS,352854,130245510,18-Feb-14,"1,006.70",Revenue,RAINBOW MEDICAL SERVICES,SP0000037
WANDSWORTH COUNCIL,ASC,SOCIAL SERVICES,PRIVATE,ONE TO ONE CARE,353341,130246220,19-Feb-14,"2,033.22",Revenue,RAINBOW MEDICAL SERVICES,SP0000037
WANDSWORTH COUNCIL,ASC,SOCIAL SERVICES,PRIVATE,ONE TO ONE CARE,353343,130246220,19-Feb-14,914.4,Revenue,RAINBOW MEDICAL SERVICES,SP0000037
WANDSWORTH COUNCIL,ASC,SOCIAL SERVICES,PRIVATE,ONE TO ONE CARE,353344,130246220,19-Feb-14,"2,133.60",Revenue,RAINBOW MEDICAL SERVICES,SP0000037
WANDSWORTH COUNCIL,ASC,SOCIAL SERVICES,PRIVATE,ONE TO ONE CARE,353346,130246220,19-Feb-14,"1,553.60",Revenue,RAINBOW MEDICAL SERVICES,SP0000037
WANDSWORTH COUNCIL,ASC,SOCIAL SERVICES,PRIVATE,ONE TO ONE CARE,358233,130246220,27-Feb-14,884.88,Revenue,FRANCES TAYLOR FOUNDATION,SP0000142
WANDSWORTH COUNCIL,ASC,SOCIAL SERVICES,PRIVATE,ONE TO ONE CARE,346067,130246220,06-Feb-14,720,Revenue,THE CHESTNUTS,SP0000182
WANDSWORTH COUNCIL,ASC,SOCIAL SERVICES,PRIVATE,ONE TO ONE CARE,353337,130246220,19-Feb-14,576,Revenue,THE CHESTNUTS,SP0000182
WANDSWORTH COUNCIL,ASC,SOCIAL SERVICES,PRIVATE,ONE TO ONE CARE,345759,130246220,06-Feb-14,"1,963.85",Revenue,RESIDENTIAL COMMUNITY CARE,SP0000315
WANDSWORTH COUNCIL,ASC,SOCIAL SERVICES,PRIVATE,ONE TO ONE CARE,351745,130246220,17-Feb-14,"1,900.50",Revenue,RESIDENTIAL COMMUNITY CARE,SP0000315
WANDSWORTH COUNCIL,ASC,SOCIAL SERVICES,PRIVATE,ONE TO ONE CARE,356058,130246220,24-Feb-14,"1,773.80",Revenue,RESIDENTIAL COMMUNITY CARE,SP0000315
WANDSWORTH COUNCIL,ASC,SOCIAL SERVICES,PRIVATE,ONE TO ONE CARE,358235,130246220,27-Feb-14,570.88,Revenue,OXENDEN HOUSE CARE HOME,SP0000322
WANDSWORTH COUNCIL,ASC,SOCIAL SERVICES,PRIVATE,ONE TO ONE CARE,347062,130246220,07-Feb-14,"1,350.54",Revenue,MACINTYRE CARE,SP0000473
WANDSWORTH COUNCIL,ASC,SOCIAL SERVICES,PRIVATE,ONE TO ONE CARE,347063,130246220,07-Feb-14,"1,910.04",Revenue,MACINTYRE CARE,SP0000473
WANDSWORTH COUNCIL,ASC,SOCIAL SERVICES,PRIVATE,ONE TO ONE CARE,347064,130246220,07-Feb-14,"1,350.52",Revenue,MACINTYRE CARE,SP0000473
WANDSWORTH COUNCIL,ASC,SOCIAL SERVICES,PRIVATE,ONE TO ONE CARE,360246,130246220,28-Feb-14,"1,350.52",Revenue,MACINTYRE CARE,SP0000473
WANDSWORTH COUNCIL,ASC,SOCIAL SERVICES,PRIVATE,ONE TO ONE CARE,360247,130246220,28-Feb-14,694.56,Revenue,MACINTYRE CARE,SP0000473
WANDSWORTH COUNCIL,ASC,SOCIAL SERVICES,PRIVATE,ONE TO ONE CARE,360254,130246220,28-Feb-14,"1,910.04",Revenue,MACINTYRE CARE,SP0000473
WANDSWORTH COUNCIL,ASC,SOCIAL SERVICES,PRIVATE,ONE TO ONE CARE,360255,130246220,28-Feb-14,"1,350.52",Revenue,MACINTYRE CARE,SP0000473
WANDSWORTH COUNCIL,ASC,SOCIAL SERVICES,PRIVATE,ONE TO ONE CARE,358025,130246220,26-Feb-14,"1,041.32",Revenue,THE COMMUNITY CARE COMPANY UK LTD,SP0000576
WANDSWORTH COUNCIL,ASC,SOCIAL SERVICES,PRIVATE,ONE TO ONE CARE,358026,130246220,26-Feb-14,"1,187.56",Revenue,THE COMMUNITY CARE COMPANY UK LTD,SP0000576
WANDSWORTH COUNCIL,ASC,SOCIAL SERVICES,PRIVATE,ONE TO ONE CARE,356201,130246220,25-Feb-14,"2,138.16",Revenue,METROPOLITAN HOUSING TRUST,SP0000626
WANDSWORTH COUNCIL,ASC,SOCIAL SERVICES,PRIVATE,ONE TO ONE CARE,356206,130246220,25-Feb-14,"2,662.08",Revenue,METROPOLITAN HOUSING TRUST,SP0000626
WANDSWORTH COUNCIL,ASC,SOCIAL SERVICES,PRIVATE,ONE TO ONE CARE,356868,130246220,25-Feb-14,"2,095.68",Revenue,METROPOLITAN HOUSING TRUST,SP0000626
WANDSWORTH COUNCIL,ASC,SOCIAL SERVICES,PRIVATE,ONE TO ONE CARE,356896,130246220,25-Feb-14,"2,265.60",Revenue,METROPOLITAN HOUSING TRUST,SP0000626
WANDSWORTH COUNCIL,ASC,SOCIAL SERVICES,PRIVATE,ONE TO ONE CARE,344397,130246220,05-Feb-14,"1,062.86",Revenue,VOYAGE CARE LTD,SP0000761
WANDSWORTH COUNCIL,ASC,SOCIAL SERVICES,PRIVATE,ONE TO ONE CARE,356209,130246220,24-Feb-14,960,Revenue,VOYAGE CARE LTD,SP0000761
WANDSWORTH COUNCIL,ASC,SOCIAL SERVICES,PRIVATE,ONE TO ONE CARE,352984,130246220,18-Feb-14,"1,057.77",Revenue,MEDACS HOMECARE,SP0000829
WANDSWORTH COUNCIL,ASC,SOCIAL SERVICES,PRIVATE,ONE TO ONE CARE,352985,130246220,18-Feb-14,705.18,Revenue,MEDACS HOMECARE,SP0000829
WANDSWORTH COUNCIL,ASC,SOCIAL SERVICES,PRIVATE,ONE TO ONE CARE,349701,130246220,13-Feb-14,"1,600.44",Revenue,CORICH COMMUNITY CARE LTD,SP0000915
WANDSWORTH COUNCIL,ASC,SOCIAL SERVICES,PRIVATE,ONE TO ONE CARE,355107,130246220,20-Feb-14,"1,600.44",Revenue,CORICH COMMUNITY CARE LTD,SP0000915
WANDSWORTH COUNCIL,ASC,SOCIAL SERVICES,PRIVATE,ONE TO ONE CARE,352991,130246220,18-Feb-14,900,Revenue,HILL PARK AUTISTIC TRUST,SP0000926
WANDSWORTH COUNCIL,ASC,SOCIAL SERVICES,PRIVATE,ONE TO ONE CARE,358248,130246220,27-Feb-14,"2,605.60",Revenue,DOWNING (CHERTSEY ROAD) LTD,SP0000959
WANDSWORTH COUNCIL,ASC,SOCIAL SERVICES,PRIVATE,ONE TO ONE CARE,346068,130246220,06-Feb-14,"1,597.44",Revenue,TOTTERDOWN,SP0001113
WANDSWORTH COUNCIL,ASC,SOCIAL SERVICES,PRIVATE,ONE TO ONE CARE,351974,130246220,17-Feb-14,716.24,Revenue,FRONTIER SUPPORT SERVICES LTD,SP0001132
WANDSWORTH COUNCIL,ASC,SOCIAL SERVICES,PRIVATE,ONE TO ONE CARE,356208,130246220,24-Feb-14,807.3,Revenue,HARROW MENCAP,SP0001347
WANDSWORTH COUNCIL,ASC,SOCIAL SERVICES,PRIVATE,ONE TO ONE CARE,352967,130246220,18-Feb-14,"2,035.71",Revenue,CRAEGMOOR OLD RECTORY BREDE PRIORY,SP0001621
WANDSWORTH COUNCIL,ASC,SOCIAL SERVICES,PRIVATE,ONE TO ONE CARE,360268,130246220,28-Feb-14,"3,000.00",Revenue,CRAEGMOOR OLD RECTORY BREDE PRIORY,SP0001621
WANDSWORTH COUNCIL,ASC,SOCIAL SERVICES,PRIVATE,ONE TO ONE CARE,358245,130246220,27-Feb-14,"1,822.80",Revenue,ACH OF LONDON LLP,SP0001688
WANDSWORTH COUNCIL,ASC,SOCIAL SERVICES,PRIVATE,ONE TO ONE CARE,346048,130246220,06-Feb-14,151.41,Revenue,THE BRANDON TRUST,SP0005337
WANDSWORTH COUNCIL,ASC,SOCIAL SERVICES,PRIVATE,ONE TO ONE CARE,347050,130246220,07-Feb-14,"1,987.20",Revenue,THE BRANDON TRUST,SP0005337
WANDSWORTH COUNCIL,ASC,SOCIAL SERVICES,PRIVATE,ONE TO ONE CARE,347051,130246220,07-Feb-14,"1,312.00",Revenue,THE BRANDON TRUST,SP0005337
WANDSWORTH COUNCIL,ASC,SOCIAL SERVICES,PRIVATE,ONE TO ONE CARE,347054,130246220,07-Feb-14,"2,450.88",Revenue,THE BRANDON TRUST,SP0005337
WANDSWORTH COUNCIL,ASC,SOCIAL SERVICES,PRIVATE,ONE TO ONE CARE,347363,130246220,10-Feb-14,459.2,Revenue,THE BRANDON TRUST,SP0005337
WANDSWORTH COUNCIL,ASC,SOCIAL SERVICES,PRIVATE,ONE TO ONE CARE,347364,130246220,10-Feb-14,324,Revenue,THE BRANDON TRUST,SP0005337
WANDSWORTH COUNCIL,ASC,SOCIAL SERVICES,PRIVATE,ONE TO ONE CARE,347384,130246220,10-Feb-14,600.04,Revenue,THE BRANDON TRUST,SP0005337
WANDSWORTH COUNCIL,ASC,SOCIAL SERVICES,VOL ASS,SUPPORTED HOUSING PROGRAMME,20268898,130248030,07-Feb-14,"1,842.60",Revenue,LIFEWAYS COMMUNITY CARE LTD,2002127
WANDSWORTH COUNCIL,ASC,SOCIAL SERVICES,VOL ASS,SUPPORTED HOUSING PROGRAMME,20269333,130248030,13-Feb-14,"10,557.40",Revenue,THE BRANDON TRUST,2015973
WANDSWORTH COUNCIL,ASC,SOCIAL SERVICES,VOL ASS,SUPPORTED HOUSING PROGRAMME,343119,130248030,04-Feb-14,"4,120.24",Revenue,CMG HOMES LTD,SP0000075
WANDSWORTH COUNCIL,ASC,SOCIAL SERVICES,VOL ASS,SUPPORTED HOUSING PROGRAMME,354746,130248030,20-Feb-14,833.06,Revenue,HARINGEY ASSOCIATION FOR INDEPENDENT LIV,SP0000222
WANDSWORTH COUNCIL,ASC,SOCIAL SERVICES,VOL ASS,SUPPORTED HOUSING PROGRAMME,354747,130248030,20-Feb-14,724.4,Revenue,HARINGEY ASSOCIATION FOR INDEPENDENT LIV,SP0000222
WANDSWORTH COUNCIL,ASC,SOCIAL SERVICES,VOL ASS,SUPPORTED HOUSING PROGRAMME,354748,130248030,20-Feb-14,"3,247.28",Revenue,HARINGEY ASSOCIATION FOR INDEPENDENT LIV,SP0000222
WANDSWORTH COUNCIL,ASC,SOCIAL SERVICES,VOL ASS,SUPPORTED HOUSING PROGRAMME,354749,130248030,20-Feb-14,"1,521.52",Revenue,HARINGEY ASSOCIATION FOR INDEPENDENT LIV,SP0000222
WANDSWORTH COUNCIL,ASC,SOCIAL SERVICES,VOL ASS,SUPPORTED HOUSING PROGRAMME,360256,130248030,28-Feb-14,"5,543.72",Revenue,NORWOOD SCHOOLS LTD,SP0000332
WANDSWORTH COUNCIL,ASC,SOCIAL SERVICES,VOL ASS,SUPPORTED HOUSING PROGRAMME,346059,130248030,06-Feb-14,"2,291.64",Revenue,LIFEWAYS COMMUNITY CARE LTD,SP0000364
WANDSWORTH COUNCIL,ASC,SOCIAL SERVICES,VOL ASS,SUPPORTED HOUSING PROGRAMME,346060,130248030,06-Feb-14,"2,291.64",Revenue,LIFEWAYS COMMUNITY CARE LTD,SP0000364
WANDSWORTH COUNCIL,ASC,SOCIAL SERVICES,VOL ASS,SUPPORTED HOUSING PROGRAMME,346061,130248030,06-Feb-14,"2,787.20",Revenue,LIFEWAYS COMMUNITY CARE LTD,SP0000364
WANDSWORTH COUNCIL,ASC,SOCIAL SERVICES,VOL ASS,SUPPORTED HOUSING PROGRAMME,346062,130248030,06-Feb-14,"2,291.64",Revenue,LIFEWAYS COMMUNITY CARE LTD,SP0000364
WANDSWORTH COUNCIL,ASC,SOCIAL SERVICES,VOL ASS,SUPPORTED HOUSING PROGRAMME,346063,130248030,06-Feb-14,"2,539.44",Revenue,LIFEWAYS COMMUNITY CARE LTD,SP0000364
WANDSWORTH COUNCIL,ASC,SOCIAL SERVICES,VOL ASS,SUPPORTED HOUSING PROGRAMME,346064,130248030,06-Feb-14,"2,849.16",Revenue,LIFEWAYS COMMUNITY CARE LTD,SP0000364
WANDSWORTH COUNCIL,ASC,SOCIAL SERVICES,VOL ASS,SUPPORTED HOUSING PROGRAMME,346065,130248030,06-Feb-14,"2,539.44",Revenue,LIFEWAYS COMMUNITY CARE LTD,SP0000364
WANDSWORTH COUNCIL,ASC,SOCIAL SERVICES,VOL ASS,SUPPORTED HOUSING PROGRAMME,346066,130248030,06-Feb-14,"2,291.64",Revenue,LIFEWAYS COMMUNITY CARE LTD,SP0000364
WANDSWORTH COUNCIL,ASC,SOCIAL SERVICES,VOL ASS,SUPPORTED HOUSING PROGRAMME,346070,130248030,06-Feb-14,"2,134.00",Revenue,LIFEWAYS COMMUNITY CARE LTD,SP0000364
WANDSWORTH COUNCIL,ASC,SOCIAL SERVICES,VOL ASS,SUPPORTED HOUSING PROGRAMME,346071,130248030,06-Feb-14,"1,678.84",Revenue,LIFEWAYS COMMUNITY CARE LTD,SP0000364
WANDSWORTH COUNCIL,ASC,SOCIAL SERVICES,VOL ASS,SUPPORTED HOUSING PROGRAMME,346072,130248030,06-Feb-14,"1,474.84",Revenue,LIFEWAYS COMMUNITY CARE LTD,SP0000364
WANDSWORTH COUNCIL,ASC,SOCIAL SERVICES,VOL ASS,SUPPORTED HOUSING PROGRAMME,346073,130248030,06-Feb-14,"2,189.16",Revenue,LIFEWAYS COMMUNITY CARE LTD,SP0000364
WANDSWORTH COUNCIL,ASC,SOCIAL SERVICES,VOL ASS,SUPPORTED HOUSING PROGRAMME,346074,130248030,06-Feb-14,"1,679.16",Revenue,LIFEWAYS COMMUNITY CARE LTD,SP0000364
WANDSWORTH COUNCIL,ASC,SOCIAL SERVICES,VOL ASS,SUPPORTED HOUSING PROGRAMME,346075,130248030,06-Feb-14,"1,934.16",Revenue,LIFEWAYS COMMUNITY CARE LTD,SP0000364
WANDSWORTH COUNCIL,ASC,SOCIAL SERVICES,VOL ASS,SUPPORTED HOUSING PROGRAMME,346076,130248030,06-Feb-14,"1,679.16",Revenue,LIFEWAYS COMMUNITY CARE LTD,SP0000364
WANDSWORTH COUNCIL,ASC,SOCIAL SERVICES,VOL ASS,SUPPORTED HOUSING PROGRAMME,346077,130248030,06-Feb-14,"1,934.16",Revenue,LIFEWAYS COMMUNITY CARE LTD,SP0000364
WANDSWORTH COUNCIL,ASC,SOCIAL SERVICES,VOL ASS,SUPPORTED HOUSING PROGRAMME,346078,130248030,06-Feb-14,"1,679.16",Revenue,LIFEWAYS COMMUNITY CARE LTD,SP0000364
WANDSWORTH COUNCIL,ASC,SOCIAL SERVICES,VOL ASS,SUPPORTED HOUSING PROGRAMME,348509,130248030,11-Feb-14,725.2,Revenue,LIFEWAYS COMMUNITY CARE LTD,SP0000364
WANDSWORTH COUNCIL,ASC,SOCIAL SERVICES,VOL ASS,SUPPORTED HOUSING PROGRAMME,348510,130248030,11-Feb-14,615.6,Revenue,LIFEWAYS COMMUNITY CARE LTD,SP0000364
WANDSWORTH COUNCIL,ASC,SOCIAL SERVICES,VOL ASS,SUPPORTED HOUSING PROGRAMME,348511,130248030,11-Feb-14,615.6,Revenue,LIFEWAYS COMMUNITY CARE LTD,SP0000364
WANDSWORTH COUNCIL,ASC,SOCIAL SERVICES,VOL ASS,SUPPORTED HOUSING PROGRAMME,348512,130248030,11-Feb-14,615.6,Revenue,LIFEWAYS COMMUNITY CARE LTD,SP0000364
WANDSWORTH COUNCIL,ASC,SOCIAL SERVICES,VOL ASS,SUPPORTED HOUSING PROGRAMME,348513,130248030,11-Feb-14,725.2,Revenue,LIFEWAYS COMMUNITY CARE LTD,SP0000364
WANDSWORTH COUNCIL,ASC,SOCIAL SERVICES,VOL ASS,SUPPORTED HOUSING PROGRAMME,348514,130248030,11-Feb-14,725.2,Revenue,LIFEWAYS COMMUNITY CARE LTD,SP0000364
WANDSWORTH COUNCIL,ASC,SOCIAL SERVICES,VOL ASS,SUPPORTED HOUSING PROGRAMME,348515,130248030,11-Feb-14,725.2,Revenue,LIFEWAYS COMMUNITY CARE LTD,SP0000364
WANDSWORTH COUNCIL,ASC,SOCIAL SERVICES,VOL ASS,SUPPORTED HOUSING PROGRAMME,348516,130248030,11-Feb-14,725.2,Revenue,LIFEWAYS COMMUNITY CARE LTD,SP0000364
WANDSWORTH COUNCIL,ASC,SOCIAL SERVICES,VOL ASS,SUPPORTED HOUSING PROGRAMME,348517,130248030,11-Feb-14,615.6,Revenue,LIFEWAYS COMMUNITY CARE LTD,SP0000364
WANDSWORTH COUNCIL,ASC,SOCIAL SERVICES,VOL ASS,SUPPORTED HOUSING PROGRAMME,349177,130248030,12-Feb-14,"1,466.48",Revenue,LIFEWAYS COMMUNITY CARE LTD,SP0000364
WANDSWORTH COUNCIL,ASC,SOCIAL SERVICES,VOL ASS,SUPPORTED HOUSING PROGRAMME,349178,130248030,12-Feb-14,"1,005.20",Revenue,LIFEWAYS COMMUNITY CARE LTD,SP0000364
WANDSWORTH COUNCIL,ASC,SOCIAL SERVICES,VOL ASS,SUPPORTED HOUSING PROGRAMME,349179,130248030,12-Feb-14,"1,679.12",Revenue,LIFEWAYS COMMUNITY CARE LTD,SP0000364
WANDSWORTH COUNCIL,ASC,SOCIAL SERVICES,VOL ASS,SUPPORTED HOUSING PROGRAMME,349180,130248030,12-Feb-14,"1,475.12",Revenue,LIFEWAYS COMMUNITY CARE LTD,SP0000364
WANDSWORTH COUNCIL,ASC,SOCIAL SERVICES,VOL ASS,SUPPORTED HOUSING PROGRAMME,352167,130248030,17-Feb-14,"7,336.00",Revenue,LIFEWAYS COMMUNITY CARE LTD,SP0000364
WANDSWORTH COUNCIL,ASC,SOCIAL SERVICES,VOL ASS,SUPPORTED HOUSING PROGRAMME,352168,130248030,17-Feb-14,"7,336.00",Revenue,LIFEWAYS COMMUNITY CARE LTD,SP0000364
WANDSWORTH COUNCIL,ASC,SOCIAL SERVICES,VOL ASS,SUPPORTED HOUSING PROGRAMME,352169,130248030,17-Feb-14,"7,336.00",Revenue,LIFEWAYS COMMUNITY CARE LTD,SP0000364
WANDSWORTH COUNCIL,ASC,SOCIAL SERVICES,VOL ASS,SUPPORTED HOUSING PROGRAMME,353348,130248030,19-Feb-14,"2,005.04",Revenue,LIFEWAYS COMMUNITY CARE LTD,SP0000364
WANDSWORTH COUNCIL,ASC,SOCIAL SERVICES,VOL ASS,SUPPORTED HOUSING PROGRAMME,353349,130248030,19-Feb-14,"2,005.04",Revenue,LIFEWAYS COMMUNITY CARE LTD,SP0000364
WANDSWORTH COUNCIL,ASC,SOCIAL SERVICES,VOL ASS,SUPPORTED HOUSING PROGRAMME,353350,130248030,19-Feb-14,"2,438.64",Revenue,LIFEWAYS COMMUNITY CARE LTD,SP0000364
WANDSWORTH COUNCIL,ASC,SOCIAL SERVICES,VOL ASS,SUPPORTED HOUSING PROGRAMME,353351,130248030,19-Feb-14,"2,005.04",Revenue,LIFEWAYS COMMUNITY CARE LTD,SP0000364
WANDSWORTH COUNCIL,ASC,SOCIAL SERVICES,VOL ASS,SUPPORTED HOUSING PROGRAMME,353352,130248030,19-Feb-14,"2,221.84",Revenue,LIFEWAYS COMMUNITY CARE LTD,SP0000364
WANDSWORTH COUNCIL,ASC,SOCIAL SERVICES,VOL ASS,SUPPORTED HOUSING PROGRAMME,353353,130248030,19-Feb-14,"2,492.84",Revenue,LIFEWAYS COMMUNITY CARE LTD,SP0000364
WANDSWORTH COUNCIL,ASC,SOCIAL SERVICES,VOL ASS,SUPPORTED HOUSING PROGRAMME,353354,130248030,19-Feb-14,"2,005.04",Revenue,LIFEWAYS COMMUNITY CARE LTD,SP0000364
WANDSWORTH COUNCIL,ASC,SOCIAL SERVICES,VOL ASS,SUPPORTED HOUSING PROGRAMME,353355,130248030,19-Feb-14,"2,221.84",Revenue,LIFEWAYS COMMUNITY CARE LTD,SP0000364
WANDSWORTH COUNCIL,ASC,SOCIAL SERVICES,VOL ASS,SUPPORTED HOUSING PROGRAMME,353357,130248030,19-Feb-14,"3,259.84",Revenue,LIFEWAYS COMMUNITY CARE LTD,SP0000364
WANDSWORTH COUNCIL,ASC,SOCIAL SERVICES,VOL ASS,SUPPORTED HOUSING PROGRAMME,353358,130248030,19-Feb-14,"2,188.84",Revenue,LIFEWAYS COMMUNITY CARE LTD,SP0000364
WANDSWORTH COUNCIL,ASC,SOCIAL SERVICES,VOL ASS,SUPPORTED HOUSING PROGRAMME,353359,130248030,19-Feb-14,"1,831.84",Revenue,LIFEWAYS COMMUNITY CARE LTD,SP0000364
WANDSWORTH COUNCIL,ASC,SOCIAL SERVICES,VOL ASS,SUPPORTED HOUSING PROGRAMME,353360,130248030,19-Feb-14,"1,882.84",Revenue,LIFEWAYS COMMUNITY CARE LTD,SP0000364
WANDSWORTH COUNCIL,ASC,SOCIAL SERVICES,VOL ASS,SUPPORTED HOUSING PROGRAMME,353361,130248030,19-Feb-14,"1,678.84",Revenue,LIFEWAYS COMMUNITY CARE LTD,SP0000364
WANDSWORTH COUNCIL,ASC,SOCIAL SERVICES,VOL ASS,SUPPORTED HOUSING PROGRAMME,353362,130248030,19-Feb-14,"2,902.84",Revenue,LIFEWAYS COMMUNITY CARE LTD,SP0000364
WANDSWORTH COUNCIL,ASC,SOCIAL SERVICES,VOL ASS,SUPPORTED HOUSING PROGRAMME,353363,130248030,19-Feb-14,"1,933.84",Revenue,LIFEWAYS COMMUNITY CARE LTD,SP0000364
WANDSWORTH COUNCIL,ASC,SOCIAL SERVICES,VOL ASS,SUPPORTED HOUSING PROGRAMME,353364,130248030,19-Feb-14,"1,678.84",Revenue,LIFEWAYS COMMUNITY CARE LTD,SP0000364
WANDSWORTH COUNCIL,ASC,SOCIAL SERVICES,VOL ASS,SUPPORTED HOUSING PROGRAMME,353365,130248030,19-Feb-14,"1,882.84",Revenue,LIFEWAYS COMMUNITY CARE LTD,SP0000364
WANDSWORTH COUNCIL,ASC,SOCIAL SERVICES,VOL ASS,SUPPORTED HOUSING PROGRAMME,353366,130248030,19-Feb-14,"2,035.84",Revenue,LIFEWAYS COMMUNITY CARE LTD,SP0000364
WANDSWORTH COUNCIL,ASC,SOCIAL SERVICES,VOL ASS,SUPPORTED HOUSING PROGRAMME,353367,130248030,19-Feb-14,"1,474.84",Revenue,LIFEWAYS COMMUNITY CARE LTD,SP0000364
WANDSWORTH COUNCIL,ASC,SOCIAL SERVICES,VOL ASS,SUPPORTED HOUSING PROGRAMME,353368,130248030,19-Feb-14,"1,474.84",Revenue,LIFEWAYS COMMUNITY CARE LTD,SP0000364
WANDSWORTH COUNCIL,ASC,SOCIAL SERVICES,VOL ASS,SUPPORTED HOUSING PROGRAMME,353369,130248030,19-Feb-14,"2,577.76",Revenue,LIFEWAYS COMMUNITY CARE LTD,SP0000364
WANDSWORTH COUNCIL,ASC,SOCIAL SERVICES,VOL ASS,SUPPORTED HOUSING PROGRAMME,353370,130248030,19-Feb-14,"3,302.96",Revenue,LIFEWAYS COMMUNITY CARE LTD,SP0000364
WANDSWORTH COUNCIL,ASC,SOCIAL SERVICES,VOL ASS,SUPPORTED HOUSING PROGRAMME,353371,130248030,19-Feb-14,"2,577.76",Revenue,LIFEWAYS COMMUNITY CARE LTD,SP0000364
WANDSWORTH COUNCIL,ASC,SOCIAL SERVICES,VOL ASS,SUPPORTED HOUSING PROGRAMME,353372,130248030,19-Feb-14,"2,525.96",Revenue,LIFEWAYS COMMUNITY CARE LTD,SP0000364
WANDSWORTH COUNCIL,ASC,SOCIAL SERVICES,VOL ASS,SUPPORTED HOUSING PROGRAMME,353373,130248030,19-Feb-14,"2,940.36",Revenue,LIFEWAYS COMMUNITY CARE LTD,SP0000364
WANDSWORTH COUNCIL,ASC,SOCIAL SERVICES,VOL ASS,SUPPORTED HOUSING PROGRAMME,353374,130248030,19-Feb-14,"1,696.00",Revenue,LIFEWAYS COMMUNITY CARE LTD,SP0000364
WANDSWORTH COUNCIL,ASC,SOCIAL SERVICES,VOL ASS,SUPPORTED HOUSING PROGRAMME,353375,130248030,19-Feb-14,"2,036.34",Revenue,LIFEWAYS COMMUNITY CARE LTD,SP0000364
WANDSWORTH COUNCIL,ASC,SOCIAL SERVICES,VOL ASS,SUPPORTED HOUSING PROGRAMME,353376,130248030,19-Feb-14,"2,165.84",Revenue,LIFEWAYS COMMUNITY CARE LTD,SP0000364
WANDSWORTH COUNCIL,ASC,SOCIAL SERVICES,VOL ASS,SUPPORTED HOUSING PROGRAMME,353377,130248030,19-Feb-14,"2,476.64",Revenue,LIFEWAYS COMMUNITY CARE LTD,SP0000364
WANDSWORTH COUNCIL,ASC,SOCIAL SERVICES,VOL ASS,SUPPORTED HOUSING PROGRAMME,355106,130248030,20-Feb-14,"9,574.36",Revenue,CHOICE SUPPORT,SP0000398
WANDSWORTH COUNCIL,ASC,SOCIAL SERVICES,VOL ASS,SUPPORTED HOUSING PROGRAMME,355149,130248030,20-Feb-14,"8,080.68",Revenue,CHOICE SUPPORT,SP0000398
WANDSWORTH COUNCIL,ASC,SOCIAL SERVICES,VOL ASS,SUPPORTED HOUSING PROGRAMME,360095,130248030,28-Feb-14,"7,972.24",Revenue,CHOICE SUPPORT,SP0000398
WANDSWORTH COUNCIL,ASC,SOCIAL SERVICES,VOL ASS,SUPPORTED HOUSING PROGRAMME,356864,130248030,24-Feb-14,"1,964.20",Revenue,C M CARE LTD,SP0000455
WANDSWORTH COUNCIL,ASC,SOCIAL SERVICES,VOL ASS,SUPPORTED HOUSING PROGRAMME,345738,130248030,06-Feb-14,"2,997.17",Revenue,THE REGARD PARTNERSHIP,SP0000588
WANDSWORTH COUNCIL,ASC,SOCIAL SERVICES,VOL ASS,SUPPORTED HOUSING PROGRAMME,347065,130248030,07-Feb-14,"5,204.28",Revenue,ROYAL MENCAP SOCIETY,SP0000842
WANDSWORTH COUNCIL,ASC,SOCIAL SERVICES,VOL ASS,SUPPORTED HOUSING PROGRAMME,360248,130248030,28-Feb-14,"2,251.52",Revenue,ROYAL MENCAP SOCIETY,SP0000842
WANDSWORTH COUNCIL,ASC,SOCIAL SERVICES,VOL ASS,SUPPORTED HOUSING PROGRAMME,360250,130248030,28-Feb-14,"5,204.28",Revenue,ROYAL MENCAP SOCIETY,SP0000842
WANDSWORTH COUNCIL,ASC,SOCIAL SERVICES,VOL ASS,SUPPORTED HOUSING PROGRAMME,360251,130248030,28-Feb-14,"2,441.20",Revenue,ROYAL MENCAP SOCIETY,SP0000842
WANDSWORTH COUNCIL,ASC,SOCIAL SERVICES,VOL ASS,SUPPORTED HOUSING PROGRAMME,360252,130248030,28-Feb-14,"5,105.32",Revenue,ROYAL MENCAP SOCIETY,SP0000842
WANDSWORTH COUNCIL,ASC,SOCIAL SERVICES,VOL ASS,SUPPORTED HOUSING PROGRAMME,360253,130248030,28-Feb-14,"2,491.28",Revenue,ROYAL MENCAP SOCIETY,SP0000842
WANDSWORTH COUNCIL,ASC,SOCIAL SERVICES,VOL ASS,SUPPORTED HOUSING PROGRAMME,360257,130248030,28-Feb-14,"3,246.40",Revenue,ROYAL MENCAP SOCIETY,SP0000842
WANDSWORTH COUNCIL,ASC,SOCIAL SERVICES,VOL ASS,SUPPORTED HOUSING PROGRAMME,360258,130248030,28-Feb-14,897.32,Revenue,ROYAL MENCAP SOCIETY,SP0000842
WANDSWORTH COUNCIL,ASC,SOCIAL SERVICES,VOL ASS,SUPPORTED HOUSING PROGRAMME,360259,130248030,28-Feb-14,"1,748.04",Revenue,ROYAL MENCAP SOCIETY,SP0000842
WANDSWORTH COUNCIL,ASC,SOCIAL SERVICES,VOL ASS,SUPPORTED HOUSING PROGRAMME,349780,130248030,13-Feb-14,700,Revenue,ACT TOO LTD,SP0000855
WANDSWORTH COUNCIL,ASC,SOCIAL SERVICES,VOL ASS,SUPPORTED HOUSING PROGRAMME,349784,130248030,13-Feb-14,"1,320.00",Revenue,ACT TOO LTD,SP0000855
WANDSWORTH COUNCIL,ASC,SOCIAL SERVICES,VOL ASS,SUPPORTED HOUSING PROGRAMME,349785,130248030,13-Feb-14,"1,020.00",Revenue,ACT TOO LTD,SP0000855
WANDSWORTH COUNCIL,ASC,SOCIAL SERVICES,VOL ASS,SUPPORTED HOUSING PROGRAMME,349786,130248030,13-Feb-14,"1,350.00",Revenue,ACT TOO LTD,SP0000855
WANDSWORTH COUNCIL,ASC,SOCIAL SERVICES,VOL ASS,SUPPORTED HOUSING PROGRAMME,349787,130248030,13-Feb-14,"2,220.00",Revenue,ACT TOO LTD,SP0000855
WANDSWORTH COUNCIL,ASC,SOCIAL SERVICES,VOL ASS,SUPPORTED HOUSING PROGRAMME,349788,130248030,13-Feb-14,600,Revenue,ACT TOO LTD,SP0000855
WANDSWORTH COUNCIL,ASC,SOCIAL SERVICES,VOL ASS,SUPPORTED HOUSING PROGRAMME,349795,130248030,13-Feb-14,560,Revenue,ACT TOO LTD,SP0000855
WANDSWORTH COUNCIL,ASC,SOCIAL SERVICES,VOL ASS,SUPPORTED HOUSING PROGRAMME,349796,130248030,13-Feb-14,"2,017.47",Revenue,ACT TOO LTD,SP0000855
WANDSWORTH COUNCIL,ASC,SOCIAL SERVICES,VOL ASS,SUPPORTED HOUSING PROGRAMME,351972,130248030,17-Feb-14,"1,535.48",Revenue,FRONTIER SUPPORT SERVICES LTD,SP0001132
WANDSWORTH COUNCIL,ASC,SOCIAL SERVICES,VOL ASS,SUPPORTED HOUSING PROGRAMME,351973,130248030,17-Feb-14,"1,251.12",Revenue,FRONTIER SUPPORT SERVICES LTD,SP0001132
WANDSWORTH COUNCIL,ASC,SOCIAL SERVICES,VOL ASS,SUPPORTED HOUSING PROGRAMME,351974,130248030,17-Feb-14,"1,097.64",Revenue,FRONTIER SUPPORT SERVICES LTD,SP0001132
WANDSWORTH COUNCIL,ASC,SOCIAL SERVICES,VOL ASS,SUPPORTED HOUSING PROGRAMME,351975,130248030,17-Feb-14,"1,533.00",Revenue,FRONTIER SUPPORT SERVICES LTD,SP0001132
WANDSWORTH COUNCIL,ASC,SOCIAL SERVICES,VOL ASS,SUPPORTED HOUSING PROGRAMME,351976,130248030,17-Feb-14,"1,353.32",Revenue,FRONTIER SUPPORT SERVICES LTD,SP0001132
WANDSWORTH COUNCIL,ASC,SOCIAL SERVICES,VOL ASS,SUPPORTED HOUSING PROGRAMME,351977,130248030,17-Feb-14,"1,353.32",Revenue,FRONTIER SUPPORT SERVICES LTD,SP0001132
WANDSWORTH COUNCIL,ASC,SOCIAL SERVICES,VOL ASS,SUPPORTED HOUSING PROGRAMME,351978,130248030,17-Feb-14,"1,097.52",Revenue,FRONTIER SUPPORT SERVICES LTD,SP0001132
WANDSWORTH COUNCIL,ASC,SOCIAL SERVICES,VOL ASS,SUPPORTED HOUSING PROGRAMME,351979,130248030,17-Feb-14,"1,097.56",Revenue,FRONTIER SUPPORT SERVICES LTD,SP0001132
WANDSWORTH COUNCIL,ASC,SOCIAL SERVICES,VOL ASS,SUPPORTED HOUSING PROGRAMME,351980,130248030,17-Feb-14,"2,509.20",Revenue,FRONTIER SUPPORT SERVICES LTD,SP0001132
WANDSWORTH COUNCIL,ASC,SOCIAL SERVICES,VOL ASS,SUPPORTED HOUSING PROGRAMME,351981,130248030,17-Feb-14,657.8,Revenue,FRONTIER SUPPORT SERVICES LTD,SP0001132
WANDSWORTH COUNCIL,ASC,SOCIAL SERVICES,VOL ASS,SUPPORTED HOUSING PROGRAMME,346045,130248030,06-Feb-14,"2,099.32",Revenue,THE BRANDON TRUST,SP0005337
WANDSWORTH COUNCIL,ASC,SOCIAL SERVICES,VOL ASS,SUPPORTED HOUSING PROGRAMME,346046,130248030,06-Feb-14,748.14,Revenue,THE BRANDON TRUST,SP0005337
WANDSWORTH COUNCIL,ASC,SOCIAL SERVICES,VOL ASS,SUPPORTED HOUSING PROGRAMME,346047,130248030,06-Feb-14,"1,465.92",Revenue,THE BRANDON TRUST,SP0005337
WANDSWORTH COUNCIL,ASC,SOCIAL SERVICES,VOL ASS,SUPPORTED HOUSING PROGRAMME,346048,130248030,06-Feb-14,"1,551.32",Revenue,THE BRANDON TRUST,SP0005337
WANDSWORTH COUNCIL,ASC,SOCIAL SERVICES,VOL ASS,SUPPORTED HOUSING PROGRAMME,346049,130248030,06-Feb-14,"2,460.66",Revenue,THE BRANDON TRUST,SP0005337
WANDSWORTH COUNCIL,ASC,SOCIAL SERVICES,VOL ASS,SUPPORTED HOUSING PROGRAMME,346050,130248030,06-Feb-14,"1,477.60",Revenue,THE BRANDON TRUST,SP0005337
WANDSWORTH COUNCIL,ASC,SOCIAL SERVICES,VOL ASS,SUPPORTED HOUSING PROGRAMME,347027,130248030,07-Feb-14,"2,083.53",Revenue,THE BRANDON TRUST,SP0005337
WANDSWORTH COUNCIL,ASC,SOCIAL SERVICES,VOL ASS,SUPPORTED HOUSING PROGRAMME,347028,130248030,07-Feb-14,"6,346.04",Revenue,THE BRANDON TRUST,SP0005337
WANDSWORTH COUNCIL,ASC,SOCIAL SERVICES,VOL ASS,SUPPORTED HOUSING PROGRAMME,347029,130248030,07-Feb-14,"1,125.08",Revenue,THE BRANDON TRUST,SP0005337
WANDSWORTH COUNCIL,ASC,SOCIAL SERVICES,VOL ASS,SUPPORTED HOUSING PROGRAMME,347030,130248030,07-Feb-14,"1,155.88",Revenue,THE BRANDON TRUST,SP0005337
WANDSWORTH COUNCIL,ASC,SOCIAL SERVICES,VOL ASS,SUPPORTED HOUSING PROGRAMME,347031,130248030,07-Feb-14,"1,854.72",Revenue,THE BRANDON TRUST,SP0005337
WANDSWORTH COUNCIL,ASC,SOCIAL SERVICES,VOL ASS,SUPPORTED HOUSING PROGRAMME,347032,130248030,07-Feb-14,"2,260.80",Revenue,THE BRANDON TRUST,SP0005337
WANDSWORTH COUNCIL,ASC,SOCIAL SERVICES,VOL ASS,SUPPORTED HOUSING PROGRAMME,347033,130248030,07-Feb-14,"3,453.12",Revenue,THE BRANDON TRUST,SP0005337
WANDSWORTH COUNCIL,ASC,SOCIAL SERVICES,VOL ASS,SUPPORTED HOUSING PROGRAMME,347034,130248030,07-Feb-14,"2,790.72",Revenue,THE BRANDON TRUST,SP0005337
WANDSWORTH COUNCIL,ASC,SOCIAL SERVICES,VOL ASS,SUPPORTED HOUSING PROGRAMME,347035,130248030,07-Feb-14,"1,258.56",Revenue,THE BRANDON TRUST,SP0005337
WANDSWORTH COUNCIL,ASC,SOCIAL SERVICES,VOL ASS,SUPPORTED HOUSING PROGRAMME,347036,130248030,07-Feb-14,"1,886.40",Revenue,THE BRANDON TRUST,SP0005337
WANDSWORTH COUNCIL,ASC,SOCIAL SERVICES,VOL ASS,SUPPORTED HOUSING PROGRAMME,347037,130248030,07-Feb-14,"2,658.24",Revenue,THE BRANDON TRUST,SP0005337
WANDSWORTH COUNCIL,ASC,SOCIAL SERVICES,VOL ASS,SUPPORTED HOUSING PROGRAMME,347038,130248030,07-Feb-14,"2,062.08",Revenue,THE BRANDON TRUST,SP0005337
WANDSWORTH COUNCIL,ASC,SOCIAL SERVICES,VOL ASS,SUPPORTED HOUSING PROGRAMME,347039,130248030,07-Feb-14,"3,520.16",Revenue,THE BRANDON TRUST,SP0005337
WANDSWORTH COUNCIL,ASC,SOCIAL SERVICES,VOL ASS,SUPPORTED HOUSING PROGRAMME,347040,130248030,07-Feb-14,"2,525.76",Revenue,THE BRANDON TRUST,SP0005337
WANDSWORTH COUNCIL,ASC,SOCIAL SERVICES,VOL ASS,SUPPORTED HOUSING PROGRAMME,347041,130248030,07-Feb-14,"3,453.92",Revenue,THE BRANDON TRUST,SP0005337
WANDSWORTH COUNCIL,ASC,SOCIAL SERVICES,VOL ASS,SUPPORTED HOUSING PROGRAMME,347042,130248030,07-Feb-14,"2,923.88",Revenue,THE BRANDON TRUST,SP0005337
WANDSWORTH COUNCIL,ASC,SOCIAL SERVICES,VOL ASS,SUPPORTED HOUSING PROGRAMME,347043,130248030,07-Feb-14,"4,687.20",Revenue,THE BRANDON TRUST,SP0005337
WANDSWORTH COUNCIL,ASC,SOCIAL SERVICES,VOL ASS,SUPPORTED HOUSING PROGRAMME,347044,130248030,07-Feb-14,"4,688.56",Revenue,THE BRANDON TRUST,SP0005337
WANDSWORTH COUNCIL,ASC,SOCIAL SERVICES,VOL ASS,SUPPORTED HOUSING PROGRAMME,347045,130248030,07-Feb-14,"3,320.64",Revenue,THE BRANDON TRUST,SP0005337
WANDSWORTH COUNCIL,ASC,SOCIAL SERVICES,VOL ASS,SUPPORTED HOUSING PROGRAMME,347046,130248030,07-Feb-14,"3,702.20",Revenue,THE BRANDON TRUST,SP0005337
WANDSWORTH COUNCIL,ASC,SOCIAL SERVICES,VOL ASS,SUPPORTED HOUSING PROGRAMME,347047,130248030,07-Feb-14,"1,465.92",Revenue,THE BRANDON TRUST,SP0005337
WANDSWORTH COUNCIL,ASC,SOCIAL SERVICES,VOL ASS,SUPPORTED HOUSING PROGRAMME,347048,130248030,07-Feb-14,"3,718.08",Revenue,THE BRANDON TRUST,SP0005337
WANDSWORTH COUNCIL,ASC,SOCIAL SERVICES,VOL ASS,SUPPORTED HOUSING PROGRAMME,347049,130248030,07-Feb-14,"3,121.92",Revenue,THE BRANDON TRUST,SP0005337
WANDSWORTH COUNCIL,ASC,SOCIAL SERVICES,VOL ASS,SUPPORTED HOUSING PROGRAMME,347050,130248030,07-Feb-14,"5,688.08",Revenue,THE BRANDON TRUST,SP0005337
WANDSWORTH COUNCIL,ASC,SOCIAL SERVICES,VOL ASS,SUPPORTED HOUSING PROGRAMME,347051,130248030,07-Feb-14,"5,983.44",Revenue,THE BRANDON TRUST,SP0005337
WANDSWORTH COUNCIL,ASC,SOCIAL SERVICES,VOL ASS,SUPPORTED HOUSING PROGRAMME,347052,130248030,07-Feb-14,"4,827.60",Revenue,THE BRANDON TRUST,SP0005337
WANDSWORTH COUNCIL,ASC,SOCIAL SERVICES,VOL ASS,SUPPORTED HOUSING PROGRAMME,347053,130248030,07-Feb-14,"6,346.04",Revenue,THE BRANDON TRUST,SP0005337
WANDSWORTH COUNCIL,ASC,SOCIAL SERVICES,VOL ASS,SUPPORTED HOUSING PROGRAMME,347054,130248030,07-Feb-14,"3,324.96",Revenue,THE BRANDON TRUST,SP0005337
WANDSWORTH COUNCIL,ASC,SOCIAL SERVICES,VOL ASS,SUPPORTED HOUSING PROGRAMME,347055,130248030,07-Feb-14,"2,886.04",Revenue,THE BRANDON TRUST,SP0005337
WANDSWORTH COUNCIL,ASC,SOCIAL SERVICES,VOL ASS,SUPPORTED HOUSING PROGRAMME,347056,130248030,07-Feb-14,"2,856.96",Revenue,THE BRANDON TRUST,SP0005337
WANDSWORTH COUNCIL,ASC,SOCIAL SERVICES,VOL ASS,SUPPORTED HOUSING PROGRAMME,347057,130248030,07-Feb-14,"3,088.80",Revenue,THE BRANDON TRUST,SP0005337
WANDSWORTH COUNCIL,ASC,SOCIAL SERVICES,VOL ASS,SUPPORTED HOUSING PROGRAMME,347058,130248030,07-Feb-14,"2,758.28",Revenue,THE BRANDON TRUST,SP0005337
WANDSWORTH COUNCIL,ASC,SOCIAL SERVICES,VOL ASS,SUPPORTED HOUSING PROGRAMME,347059,130248030,07-Feb-14,"2,128.32",Revenue,THE BRANDON TRUST,SP0005337
WANDSWORTH COUNCIL,ASC,SOCIAL SERVICES,VOL ASS,SUPPORTED HOUSING PROGRAMME,347060,130248030,07-Feb-14,"6,198.76",Revenue,THE BRANDON TRUST,SP0005337
WANDSWORTH COUNCIL,ASC,SOCIAL SERVICES,VOL ASS,SUPPORTED HOUSING PROGRAMME,347061,130248030,07-Feb-14,"1,465.92",Revenue,THE BRANDON TRUST,SP0005337
WANDSWORTH COUNCIL,ASC,SOCIAL SERVICES,VOL ASS,SUPPORTED HOUSING PROGRAMME,347360,130248030,10-Feb-14,"1,551.32",Revenue,THE BRANDON TRUST,SP0005337
WANDSWORTH COUNCIL,ASC,SOCIAL SERVICES,VOL ASS,SUPPORTED HOUSING PROGRAMME,347361,130248030,10-Feb-14,"1,504.84",Revenue,THE BRANDON TRUST,SP0005337
WANDSWORTH COUNCIL,ASC,SOCIAL SERVICES,VOL ASS,SUPPORTED HOUSING PROGRAMME,347362,130248030,10-Feb-14,"1,504.84",Revenue,THE BRANDON TRUST,SP0005337
WANDSWORTH COUNCIL,ASC,SOCIAL SERVICES,VOL ASS,SUPPORTED HOUSING PROGRAMME,347363,130248030,10-Feb-14,"1,472.84",Revenue,THE BRANDON TRUST,SP0005337
WANDSWORTH COUNCIL,ASC,SOCIAL SERVICES,VOL ASS,SUPPORTED HOUSING PROGRAMME,347364,130248030,10-Feb-14,"2,327.04",Revenue,THE BRANDON TRUST,SP0005337
WANDSWORTH COUNCIL,ASC,SOCIAL SERVICES,VOL ASS,SUPPORTED HOUSING PROGRAMME,347365,130248030,10-Feb-14,"2,980.32",Revenue,THE BRANDON TRUST,SP0005337
WANDSWORTH COUNCIL,ASC,SOCIAL SERVICES,VOL ASS,SUPPORTED HOUSING PROGRAMME,347366,130248030,10-Feb-14,"2,969.16",Revenue,THE BRANDON TRUST,SP0005337
WANDSWORTH COUNCIL,ASC,SOCIAL SERVICES,VOL ASS,SUPPORTED HOUSING PROGRAMME,347367,130248030,10-Feb-14,"2,979.92",Revenue,THE BRANDON TRUST,SP0005337
WANDSWORTH COUNCIL,ASC,SOCIAL SERVICES,VOL ASS,SUPPORTED HOUSING PROGRAMME,347368,130248030,10-Feb-14,"2,186.04",Revenue,THE BRANDON TRUST,SP0005337
WANDSWORTH COUNCIL,ASC,SOCIAL SERVICES,VOL ASS,SUPPORTED HOUSING PROGRAMME,347369,130248030,10-Feb-14,"2,893.04",Revenue,THE BRANDON TRUST,SP0005337
WANDSWORTH COUNCIL,ASC,SOCIAL SERVICES,VOL ASS,SUPPORTED HOUSING PROGRAMME,347370,130248030,10-Feb-14,"1,380.64",Revenue,THE BRANDON TRUST,SP0005337
WANDSWORTH COUNCIL,ASC,SOCIAL SERVICES,VOL ASS,SUPPORTED HOUSING PROGRAMME,347371,130248030,10-Feb-14,"1,466.16",Revenue,THE BRANDON TRUST,SP0005337
WANDSWORTH COUNCIL,ASC,SOCIAL SERVICES,VOL ASS,SUPPORTED HOUSING PROGRAMME,347372,130248030,10-Feb-14,"2,298.88",Revenue,THE BRANDON TRUST,SP0005337
WANDSWORTH COUNCIL,ASC,SOCIAL SERVICES,VOL ASS,SUPPORTED HOUSING PROGRAMME,347373,130248030,10-Feb-14,"1,513.68",Revenue,THE BRANDON TRUST,SP0005337
WANDSWORTH COUNCIL,ASC,SOCIAL SERVICES,VOL ASS,SUPPORTED HOUSING PROGRAMME,347374,130248030,10-Feb-14,"1,513.68",Revenue,THE BRANDON TRUST,SP0005337
WANDSWORTH COUNCIL,ASC,SOCIAL SERVICES,VOL ASS,SUPPORTED HOUSING PROGRAMME,347375,130248030,10-Feb-14,"2,856.96",Revenue,THE BRANDON TRUST,SP0005337
WANDSWORTH COUNCIL,ASC,SOCIAL SERVICES,VOL ASS,SUPPORTED HOUSING PROGRAMME,347391,130248030,10-Feb-14,"1,674.84",Revenue,THE BRANDON TRUST,SP0005337
WANDSWORTH COUNCIL,ASC,SOCIAL SERVICES,VOL ASS,SUPPORTED HOUSING PROGRAMME,347392,130248030,10-Feb-14,"2,405.96",Revenue,THE BRANDON TRUST,SP0005337
WANDSWORTH COUNCIL,ASC,SOCIAL SERVICES,VOL ASS,SUPPORTED HOUSING PROGRAMME,347394,130248030,10-Feb-14,"2,459.52",Revenue,THE BRANDON TRUST,SP0005337
WANDSWORTH COUNCIL,ASC,SOCIAL SERVICES,VOL ASS,SUPPORTED HOUSING PROGRAMME,349104,130248030,12-Feb-14,"1,548.72",Revenue,THE BRANDON TRUST,SP0005337
WANDSWORTH COUNCIL,ASC,SOCIAL SERVICES,VOL ASS,SUPPORTED HOUSING PROGRAMME,349105,130248030,12-Feb-14,"2,658.24",Revenue,THE BRANDON TRUST,SP0005337
WANDSWORTH COUNCIL,ASC,SOCIAL SERVICES,VOL ASS,SUPPORTED HOUSING PROGRAMME,349106,130248030,12-Feb-14,"2,592.60",Revenue,THE BRANDON TRUST,SP0005337
WANDSWORTH COUNCIL,ASC,SOCIAL SERVICES,VOL ASS,SUPPORTED HOUSING PROGRAMME,349107,130248030,12-Feb-14,"2,724.48",Revenue,THE BRANDON TRUST,SP0005337
WANDSWORTH COUNCIL,ASC,SOCIAL SERVICES,VOL ASS,SUPPORTED HOUSING PROGRAMME,349108,130248030,12-Feb-14,"3,564.56",Revenue,THE BRANDON TRUST,SP0005337
WANDSWORTH COUNCIL,ASC,SOCIAL SERVICES,VOL ASS,SUPPORTED HOUSING PROGRAMME,349109,130248030,12-Feb-14,"3,416.80",Revenue,THE BRANDON TRUST,SP0005337
WANDSWORTH COUNCIL,ASC,SOCIAL SERVICES,VOL ASS,SUPPORTED HOUSING PROGRAMME,349110,130248030,12-Feb-14,"2,973.52",Revenue,THE BRANDON TRUST,SP0005337
WANDSWORTH COUNCIL,ASC,SOCIAL SERVICES,VOL ASS,SUPPORTED HOUSING PROGRAMME,349111,130248030,12-Feb-14,"2,848.72",Revenue,THE BRANDON TRUST,SP0005337
WANDSWORTH COUNCIL,ASC,SOCIAL SERVICES,VOL ASS,SUPPORTED HOUSING PROGRAMME,349112,130248030,12-Feb-14,"2,327.24",Revenue,THE BRANDON TRUST,SP0005337
WANDSWORTH COUNCIL,ASC,SOCIAL SERVICES,VOL ASS,SUPPORTED HOUSING PROGRAMME,349113,130248030,12-Feb-14,"2,327.24",Revenue,THE BRANDON TRUST,SP0005337
WANDSWORTH COUNCIL,ASC,SOCIAL SERVICES,VOL ASS,SUPPORTED HOUSING PROGRAMME,349114,130248030,12-Feb-14,"2,819.52",Revenue,THE BRANDON TRUST,SP0005337
WANDSWORTH COUNCIL,ASC,SOCIAL SERVICES,VOL ASS,SUPPORTED HOUSING PROGRAMME,349141,130248030,12-Feb-14,"1,034.48",Revenue,THE BRANDON TRUST,SP0005337
WANDSWORTH COUNCIL,ASC,SOCIAL SERVICES,VOL ASS,SUPPORTED HOUSING PROGRAMME,349147,130248030,12-Feb-14,"1,929.60",Revenue,THE BRANDON TRUST,SP0005337
WANDSWORTH COUNCIL,ASC,SOCIAL SERVICES,VOL ASS,SUPPORTED HOUSING PROGRAMME,349148,130248030,12-Feb-14,"2,327.04",Revenue,THE BRANDON TRUST,SP0005337
WANDSWORTH COUNCIL,ASC,SOCIAL SERVICES,VOL ASS,SUPPORTED HOUSING PROGRAMME,349149,130248030,12-Feb-14,"6,723.36",Revenue,THE BRANDON TRUST,SP0005337
WANDSWORTH COUNCIL,ASC,SOCIAL SERVICES,VOL ASS,SUPPORTED HOUSING PROGRAMME,349150,130248030,12-Feb-14,"1,477.60",Revenue,THE BRANDON TRUST,SP0005337
WANDSWORTH COUNCIL,ASC,SOCIAL SERVICES,VOL ASS,SUPPORTED HOUSING PROGRAMME,349151,130248030,12-Feb-14,"2,658.24",Revenue,THE BRANDON TRUST,SP0005337
WANDSWORTH COUNCIL,ASC,SOCIAL SERVICES,VOL ASS,SUPPORTED HOUSING PROGRAMME,349152,130248030,12-Feb-14,"3,883.68",Revenue,THE BRANDON TRUST,SP0005337
WANDSWORTH COUNCIL,ASC,SOCIAL SERVICES,VOL ASS,SUPPORTED HOUSING PROGRAMME,349153,130248030,12-Feb-14,"2,618.48",Revenue,THE BRANDON TRUST,SP0005337
WANDSWORTH COUNCIL,ASC,SOCIAL SERVICES,VOL ASS,SUPPORTED HOUSING PROGRAMME,352990,130248030,18-Feb-14,"4,772.00",Revenue,CARE UNLIMITED DOMCARE LIMITED,SP0005359
WANDSWORTH COUNCIL,ASC,SOCIAL SERVICES,VOL ASS,SUPPORTED HOUSING PROGRAMME,351986,130248030,17-Feb-14,"6,120.00",Revenue,RELIABLE PERSONNEL LTD,SP0005657
WANDSWORTH COUNCIL,ASC,SOCIAL SERVICES,VOL ASS,SUPPORTED HOUSING PROGRAMME,344408,130248030,05-Feb-14,"1,982.75",Revenue,HIGHER GREEN FARM LTD,SP0005842
WANDSWORTH COUNCIL,ASC,SOCIAL SERVICES,VOL ASS,SUPPORTED HOUSING PROGRAMME,358234,130248030,27-Feb-14,"1,982.75",Revenue,HIGHER GREEN FARM LTD,SP0005842
WANDSWORTH COUNCIL,ASC,SOCIAL SERVICES,VOL ASS,SUPPORTED HOUSING PROGRAMME,360267,130248030,28-Feb-14,"1,982.75",Revenue,HIGHER GREEN FARM LTD,SP0005842
WANDSWORTH COUNCIL,ASC,SOCIAL SERVICES,DIRECT,DIRECT PAYMENTS,20271500,130250380,25-Feb-14,"1,293.14",Revenue,REDACTED PERSONAL DATA,2000080
WANDSWORTH COUNCIL,ASC,SOCIAL SERVICES,DIRECT,DIRECT PAYMENTS,358612,130250380,27-Feb-14,613.76,Revenue, SHAW TRUST LTD,SP0005390
WANDSWORTH COUNCIL,ASC,SOCIAL SERVICES,CUSTOMER & CLIENT RECPTS - EXT,CL CONT EXT RESIDEN S28A 100%,346881,130280680,07-Feb-14,-486,Revenue,ELEANOR NURSING & SOCIAL CARE,SP0000110
WANDSWORTH COUNCIL,ASC,SOCIAL SERVICES,CUSTOMER & CLIENT RECPTS - EXT,CL CONT EXT RESIDEN S28A 100%,349071,130280680,12-Feb-14,-486,Revenue,ASHTON CARE,SP0000695
WANDSWORTH COUNCIL,ASC,SOCIAL SERVICES,CUSTOMER & CLIENT RECPTS - EXT,CL CONT EXT RESIDEN S28A 100%,345734,130280680,06-Feb-14,-538.08,Revenue,RALEIGH HOUSE LTD,SP0000760
WANDSWORTH COUNCIL,ASC,SOCIAL SERVICES,CUSTOMER & CLIENT RECPTS - EXT,CL CONT EXT RESIDEN S28A 100%,356087,130280680,24-Feb-14,-486,Revenue,RALEIGH HOUSE LTD,SP0000760
WANDSWORTH COUNCIL,ASC,SOCIAL SERVICES,CUSTOMER & CLIENT RECPTS - EXT,CL CONT EXT RESIDEN S28A 100%,345728,130280680,06-Feb-14,-538.08,Revenue,VOYAGE CARE LTD,SP0000761
WANDSWORTH COUNCIL,ASC,SOCIAL SERVICES,CUSTOMER & CLIENT RECPTS - EXT,CL CONT EXT RESIDEN S28A 100%,345729,130280680,06-Feb-14,-348.98,Revenue,VOYAGE CARE LTD,SP0000761
WANDSWORTH COUNCIL,ASC,SOCIAL SERVICES,CUSTOMER & CLIENT RECPTS - EXT,CL CONT EXT RESIDEN S28A 100%,345767,130280680,06-Feb-14,-348.98,Revenue,VOYAGE CARE LTD,SP0000761
WANDSWORTH COUNCIL,ASC,SOCIAL SERVICES,CUSTOMER & CLIENT RECPTS - EXT,CL CONT EXT RESIDEN S28A 100%,356069,130280680,24-Feb-14,-486,Revenue,VOYAGE CARE LTD,SP0000761
WANDSWORTH COUNCIL,ASC,SOCIAL SERVICES,CUSTOMER & CLIENT RECPTS - EXT,CL CONT EXT RESIDEN S28A 100%,356070,130280680,24-Feb-14,-315.2,Revenue,VOYAGE CARE LTD,SP0000761
WANDSWORTH COUNCIL,ASC,SOCIAL SERVICES,CUSTOMER & CLIENT RECPTS - EXT,CL CONT EXT RESIDEN S28A 100%,356083,130280680,24-Feb-14,-315.2,Revenue,VOYAGE CARE LTD,SP0000761
WANDSWORTH COUNCIL,ASC,SOCIAL SERVICES,CUSTOMER & CLIENT RECPTS - EXT,CL CONT EXT RESIDENTIAL RESP,20270994,130280690,21-Feb-14,"-1,122.38",Revenue,SOUTHSIDE PARTNERSHIP,2005209
WANDSWORTH COUNCIL,ASC,SOCIAL SERVICES,CUSTOMER & CLIENT RECPTS - EXT,CL CONT EXTERNAL RESIDENT S28A,343114,130280710,04-Feb-14,-315.2,Revenue,CMG HOMES LTD,SP0000075
WANDSWORTH COUNCIL,ASC,SOCIAL SERVICES,CUSTOMER & CLIENT RECPTS - EXT,CL CONT EXTERNAL RESIDENT S28A,360032,130280710,28-Feb-14,-315.2,Revenue,MACINTYRE CARE,SP0000473
WANDSWORTH COUNCIL,ASC,SOCIAL SERVICES,CUSTOMER & CLIENT RECPTS - EXT,CL CONT EXTERNAL RESIDENT S28A,360038,130280710,28-Feb-14,-486.01,Revenue,MACINTYRE CARE,SP0000473
WANDSWORTH COUNCIL,ASC,SOCIAL SERVICES,CUSTOMER & CLIENT RECPTS - EXT,CL CONT EXTERNAL RESIDENT S28A,360041,130280710,28-Feb-14,-315.2,Revenue,MACINTYRE CARE,SP0000473
WANDSWORTH COUNCIL,ASC,SOCIAL SERVICES,CUSTOMER & CLIENT RECPTS - EXT,CL CONT EXTERNAL RESIDENT S28A,346930,130280710,07-Feb-14,-315.2,Revenue,SURREY & BORDERS PARTNERSHIP NHS TRUST,SP0000501
WANDSWORTH COUNCIL,ASC,SOCIAL SERVICES,CUSTOMER & CLIENT RECPTS - EXT,CL CONT EXTERNAL RESIDENT S28A,357971,130280710,26-Feb-14,-490.36,Revenue,THE COMMUNITY CARE COMPANY UK LTD,SP0000576
WANDSWORTH COUNCIL,ASC,SOCIAL SERVICES,CUSTOMER & CLIENT RECPTS - EXT,CL CONT EXTERNAL RESIDENT S28A,356104,130280710,24-Feb-14,-317.98,Revenue,HEALTHLINC INDIVIDUAL CARE,SP0000617
WANDSWORTH COUNCIL,ASC,SOCIAL SERVICES,CUSTOMER & CLIENT RECPTS - EXT,CL CONT EXTERNAL RESIDENT S28A,360049,130280710,28-Feb-14,-287.2,Revenue,HEALTHLINC INDIVIDUAL CARE,SP0000617
WANDSWORTH COUNCIL,ASC,SOCIAL SERVICES,CUSTOMER & CLIENT RECPTS - EXT,CL CONT EXTERNAL RESIDENT S28A,349721,130280710,13-Feb-14,-315.2,Revenue,METROPOLITAN HOUSING TRUST,SP0000626
WANDSWORTH COUNCIL,ASC,SOCIAL SERVICES,CUSTOMER & CLIENT RECPTS - EXT,CL CONT EXTERNAL RESIDENT S28A,352801,130280710,18-Feb-14,-315.2,Revenue,METROPOLITAN HOUSING TRUST,SP0000626
WANDSWORTH COUNCIL,ASC,SOCIAL SERVICES,CUSTOMER & CLIENT RECPTS - EXT,CL CONT EXTERNAL RESIDENT S28A,352808,130280710,18-Feb-14,-315.2,Revenue,METROPOLITAN HOUSING TRUST,SP0000626
WANDSWORTH COUNCIL,ASC,SOCIAL SERVICES,CUSTOMER & CLIENT RECPTS - EXT,CL CONT EXTERNAL RESIDENT S28A,356102,130280710,25-Feb-14,-315.2,Revenue,METROPOLITAN HOUSING TRUST,SP0000626
WANDSWORTH COUNCIL,ASC,SOCIAL SERVICES,CUSTOMER & CLIENT RECPTS - EXT,CL CONT EXTERNAL RESIDENT S28A,356111,130280710,25-Feb-14,-315.2,Revenue,METROPOLITAN HOUSING TRUST,SP0000626
WANDSWORTH COUNCIL,ASC,SOCIAL SERVICES,CUSTOMER & CLIENT RECPTS - EXT,CL CONT EXTERNAL RESIDENTIAL,344567,130280720,05-Feb-14,-957.12,Revenue,THE LYLE PARK TRUST,SP0000070
WANDSWORTH COUNCIL,ASC,SOCIAL SERVICES,CUSTOMER & CLIENT RECPTS - EXT,CL CONT EXTERNAL RESIDENTIAL,343111,130280720,04-Feb-14,-315.2,Revenue,CMG HOMES LTD,SP0000075
WANDSWORTH COUNCIL,ASC,SOCIAL SERVICES,CUSTOMER & CLIENT RECPTS - EXT,CL CONT EXTERNAL RESIDENTIAL,343112,130280720,04-Feb-14,-315.2,Revenue,CMG HOMES LTD,SP0000075
WANDSWORTH COUNCIL,ASC,SOCIAL SERVICES,CUSTOMER & CLIENT RECPTS - EXT,CL CONT EXTERNAL RESIDENTIAL,343116,130280720,04-Feb-14,-315.2,Revenue,CMG HOMES LTD,SP0000075
WANDSWORTH COUNCIL,ASC,SOCIAL SERVICES,CUSTOMER & CLIENT RECPTS - EXT,CL CONT EXTERNAL RESIDENTIAL,343117,130280720,04-Feb-14,-315.2,Revenue,CMG HOMES LTD,SP0000075
WANDSWORTH COUNCIL,ASC,SOCIAL SERVICES,CUSTOMER & CLIENT RECPTS - EXT,CL CONT EXTERNAL RESIDENTIAL,343118,130280720,04-Feb-14,-486,Revenue,CMG HOMES LTD,SP0000075
WANDSWORTH COUNCIL,ASC,SOCIAL SERVICES,CUSTOMER & CLIENT RECPTS - EXT,CL CONT EXTERNAL RESIDENTIAL,343120,130280720,04-Feb-14,-352.6,Revenue,CMG HOMES LTD,SP0000075
WANDSWORTH COUNCIL,ASC,SOCIAL SERVICES,CUSTOMER & CLIENT RECPTS - EXT,CL CONT EXTERNAL RESIDENTIAL,343121,130280720,04-Feb-14,-315.2,Revenue,CMG HOMES LTD,SP0000075
WANDSWORTH COUNCIL,ASC,SOCIAL SERVICES,CUSTOMER & CLIENT RECPTS - EXT,CL CONT EXTERNAL RESIDENTIAL,343122,130280720,04-Feb-14,-315.2,Revenue,CMG HOMES LTD,SP0000075
WANDSWORTH COUNCIL,ASC,SOCIAL SERVICES,CUSTOMER & CLIENT RECPTS - EXT,CL CONT EXTERNAL RESIDENTIAL,360105,130280720,28-Feb-14,-352.6,Revenue,NATIONAL SOCIETY FOR EPILEPSY,SP0000120
WANDSWORTH COUNCIL,ASC,SOCIAL SERVICES,CUSTOMER & CLIENT RECPTS - EXT,CL CONT EXTERNAL RESIDENTIAL,344412,130280720,05-Feb-14,-315.2,Revenue,SANCTUARY CARE LTD,SP0000121
WANDSWORTH COUNCIL,ASC,SOCIAL SERVICES,CUSTOMER & CLIENT RECPTS - EXT,CL CONT EXTERNAL RESIDENTIAL,358184,130280720,27-Feb-14,-315.2,Revenue,FRANCES TAYLOR FOUNDATION,SP0000142
WANDSWORTH COUNCIL,ASC,SOCIAL SERVICES,CUSTOMER & CLIENT RECPTS - EXT,CL CONT EXTERNAL RESIDENTIAL,358185,130280720,27-Feb-14,-315.2,Revenue,FRANCES TAYLOR FOUNDATION,SP0000142
WANDSWORTH COUNCIL,ASC,SOCIAL SERVICES,CUSTOMER & CLIENT RECPTS - EXT,CL CONT EXTERNAL RESIDENTIAL,358186,130280720,27-Feb-14,-315.2,Revenue,FRANCES TAYLOR FOUNDATION,SP0000142
WANDSWORTH COUNCIL,ASC,SOCIAL SERVICES,CUSTOMER & CLIENT RECPTS - EXT,CL CONT EXTERNAL RESIDENTIAL,345722,130280720,06-Feb-14,-315.2,Revenue,THE CHESTNUTS,SP0000182
WANDSWORTH COUNCIL,ASC,SOCIAL SERVICES,CUSTOMER & CLIENT RECPTS - EXT,CL CONT EXTERNAL RESIDENTIAL,345724,130280720,06-Feb-14,-486,Revenue,THE CHESTNUTS,SP0000182
WANDSWORTH COUNCIL,ASC,SOCIAL SERVICES,CUSTOMER & CLIENT RECPTS - EXT,CL CONT EXTERNAL RESIDENTIAL,360131,130280720,28-Feb-14,-486,Revenue,THE CHESTNUTS,SP0000182
WANDSWORTH COUNCIL,ASC,SOCIAL SERVICES,CUSTOMER & CLIENT RECPTS - EXT,CL CONT EXTERNAL RESIDENTIAL,343150,130280720,04-Feb-14,-315.2,Revenue,ORCHARD VALE TRUST,SP0000214
WANDSWORTH COUNCIL,ASC,SOCIAL SERVICES,CUSTOMER & CLIENT RECPTS - EXT,CL CONT EXTERNAL RESIDENTIAL,344331,130280720,05-Feb-14,-315.2,Revenue,NAS SERVICES LIMITED,SP0000217
WANDSWORTH COUNCIL,ASC,SOCIAL SERVICES,CUSTOMER & CLIENT RECPTS - EXT,CL CONT EXTERNAL RESIDENTIAL,344332,130280720,05-Feb-14,-315.2,Revenue,NAS SERVICES LIMITED,SP0000217
WANDSWORTH COUNCIL,ASC,SOCIAL SERVICES,CUSTOMER & CLIENT RECPTS - EXT,CL CONT EXTERNAL RESIDENTIAL,344333,130280720,05-Feb-14,-315.2,Revenue,NAS SERVICES LIMITED,SP0000217
WANDSWORTH COUNCIL,ASC,SOCIAL SERVICES,CUSTOMER & CLIENT RECPTS - EXT,CL CONT EXTERNAL RESIDENTIAL,344334,130280720,05-Feb-14,-315.2,Revenue,NAS SERVICES LIMITED,SP0000217
WANDSWORTH COUNCIL,ASC,SOCIAL SERVICES,CUSTOMER & CLIENT RECPTS - EXT,CL CONT EXTERNAL RESIDENTIAL,344341,130280720,05-Feb-14,-315.2,Revenue,NAS SERVICES LIMITED,SP0000217
WANDSWORTH COUNCIL,ASC,SOCIAL SERVICES,CUSTOMER & CLIENT RECPTS - EXT,CL CONT EXTERNAL RESIDENTIAL,344342,130280720,05-Feb-14,-315.2,Revenue,NAS SERVICES LIMITED,SP0000217
WANDSWORTH COUNCIL,ASC,SOCIAL SERVICES,CUSTOMER & CLIENT RECPTS - EXT,CL CONT EXTERNAL RESIDENTIAL,348413,130280720,11-Feb-14,-311.4,Revenue,SPRING LAKE,SP0000223
WANDSWORTH COUNCIL,ASC,SOCIAL SERVICES,CUSTOMER & CLIENT RECPTS - EXT,CL CONT EXTERNAL RESIDENTIAL,348414,130280720,11-Feb-14,-349.4,Revenue,SPRING LAKE,SP0000223
WANDSWORTH COUNCIL,ASC,SOCIAL SERVICES,CUSTOMER & CLIENT RECPTS - EXT,CL CONT EXTERNAL RESIDENTIAL,348415,130280720,11-Feb-14,-349.4,Revenue,SPRING LAKE,SP0000223
WANDSWORTH COUNCIL,ASC,SOCIAL SERVICES,CUSTOMER & CLIENT RECPTS - EXT,CL CONT EXTERNAL RESIDENTIAL,355111,130280720,20-Feb-14,-315.2,Revenue,SPRING LAKE,SP0000223
WANDSWORTH COUNCIL,ASC,SOCIAL SERVICES,CUSTOMER & CLIENT RECPTS - EXT,CL CONT EXTERNAL RESIDENTIAL,355112,130280720,20-Feb-14,-352.6,Revenue,SPRING LAKE,SP0000223
WANDSWORTH COUNCIL,ASC,SOCIAL SERVICES,CUSTOMER & CLIENT RECPTS - EXT,CL CONT EXTERNAL RESIDENTIAL,352782,130280720,18-Feb-14,-605.56,Revenue,CAMERON LODGE LIMITED,SP0000271
WANDSWORTH COUNCIL,ASC,SOCIAL SERVICES,CUSTOMER & CLIENT RECPTS - EXT,CL CONT EXTERNAL RESIDENTIAL,360093,130280720,28-Feb-14,-352.6,Revenue,BROOKDALE CARE,SP0000282
WANDSWORTH COUNCIL,ASC,SOCIAL SERVICES,CUSTOMER & CLIENT RECPTS - EXT,CL CONT EXTERNAL RESIDENTIAL,347322,130280720,10-Feb-14,-315.2,Revenue,CRAEGMOOR FACILITIES CO LTD,SP0000306
WANDSWORTH COUNCIL,ASC,SOCIAL SERVICES,CUSTOMER & CLIENT RECPTS - EXT,CL CONT EXTERNAL RESIDENTIAL,345759,130280720,06-Feb-14,-348.97,Revenue,RESIDENTIAL COMMUNITY CARE,SP0000315
WANDSWORTH COUNCIL,ASC,SOCIAL SERVICES,CUSTOMER & CLIENT RECPTS - EXT,CL CONT EXTERNAL RESIDENTIAL,351745,130280720,17-Feb-14,-337.72,Revenue,RESIDENTIAL COMMUNITY CARE,SP0000315
WANDSWORTH COUNCIL,ASC,SOCIAL SERVICES,CUSTOMER & CLIENT RECPTS - EXT,CL CONT EXTERNAL RESIDENTIAL,356058,130280720,24-Feb-14,-315.2,Revenue,RESIDENTIAL COMMUNITY CARE,SP0000315
WANDSWORTH COUNCIL,ASC,SOCIAL SERVICES,CUSTOMER & CLIENT RECPTS - EXT,CL CONT EXTERNAL RESIDENTIAL,358195,130280720,27-Feb-14,-486,Revenue,OXENDEN HOUSE CARE HOME,SP0000322
WANDSWORTH COUNCIL,ASC,SOCIAL SERVICES,CUSTOMER & CLIENT RECPTS - EXT,CL CONT EXTERNAL RESIDENTIAL,352786,130280720,18-Feb-14,-348.98,Revenue,DOLPHIN HOMES LTD,SP0000331
WANDSWORTH COUNCIL,ASC,SOCIAL SERVICES,CUSTOMER & CLIENT RECPTS - EXT,CL CONT EXTERNAL RESIDENTIAL,360064,130280720,28-Feb-14,-315.2,Revenue,NORWOOD SCHOOLS LTD,SP0000332
WANDSWORTH COUNCIL,ASC,SOCIAL SERVICES,CUSTOMER & CLIENT RECPTS - EXT,CL CONT EXTERNAL RESIDENTIAL,360065,130280720,28-Feb-14,-315.2,Revenue,NORWOOD SCHOOLS LTD,SP0000332
WANDSWORTH COUNCIL,ASC,SOCIAL SERVICES,CUSTOMER & CLIENT RECPTS - EXT,CL CONT EXTERNAL RESIDENTIAL,358193,130280720,28-Feb-14,-486,Revenue,THE MANOR,SP0000340
WANDSWORTH COUNCIL,ASC,SOCIAL SERVICES,CUSTOMER & CLIENT RECPTS - EXT,CL CONT EXTERNAL RESIDENTIAL,356033,130280720,24-Feb-14,-259.48,Revenue,VOYAGE CARE LTD,SP0000366
WANDSWORTH COUNCIL,ASC,SOCIAL SERVICES,CUSTOMER & CLIENT RECPTS - EXT,CL CONT EXTERNAL RESIDENTIAL,356034,130280720,24-Feb-14,-391,Revenue,VOYAGE CARE LTD,SP0000366
WANDSWORTH COUNCIL,ASC,SOCIAL SERVICES,CUSTOMER & CLIENT RECPTS - EXT,CL CONT EXTERNAL RESIDENTIAL,356065,130280720,24-Feb-14,-352.6,Revenue,VOYAGE CARE LTD,SP0000366
WANDSWORTH COUNCIL,ASC,SOCIAL SERVICES,CUSTOMER & CLIENT RECPTS - EXT,CL CONT EXTERNAL RESIDENTIAL,356066,130280720,24-Feb-14,-352.6,Revenue,VOYAGE CARE LTD,SP0000366
WANDSWORTH COUNCIL,ASC,SOCIAL SERVICES,CUSTOMER & CLIENT RECPTS - EXT,CL CONT EXTERNAL RESIDENTIAL,343138,130280720,04-Feb-14,-347.64,Revenue,ST DAVIDS CARE IN THE COMMUNITY,SP0000379
WANDSWORTH COUNCIL,ASC,SOCIAL SERVICES,CUSTOMER & CLIENT RECPTS - EXT,CL CONT EXTERNAL RESIDENTIAL,343139,130280720,04-Feb-14,-348.98,Revenue,ST DAVIDS CARE IN THE COMMUNITY,SP0000379
WANDSWORTH COUNCIL,ASC,SOCIAL SERVICES,CUSTOMER & CLIENT RECPTS - EXT,CL CONT EXTERNAL RESIDENTIAL,356045,130280720,24-Feb-14,-315.2,Revenue,ST DAVIDS CARE IN THE COMMUNITY,SP0000379
WANDSWORTH COUNCIL,ASC,SOCIAL SERVICES,CUSTOMER & CLIENT RECPTS - EXT,CL CONT EXTERNAL RESIDENTIAL,356046,130280720,24-Feb-14,-315.2,Revenue,ST DAVIDS CARE IN THE COMMUNITY,SP0000379
WANDSWORTH COUNCIL,ASC,SOCIAL SERVICES,CUSTOMER & CLIENT RECPTS - EXT,CL CONT EXTERNAL RESIDENTIAL,356047,130280720,24-Feb-14,-315.2,Revenue,ST DAVIDS CARE IN THE COMMUNITY,SP0000379
WANDSWORTH COUNCIL,ASC,SOCIAL SERVICES,CUSTOMER & CLIENT RECPTS - EXT,CL CONT EXTERNAL RESIDENTIAL,360109,130280720,28-Feb-14,-315.2,Revenue,ESSEX CARE CONSORTIUM,SP0000387
WANDSWORTH COUNCIL,ASC,SOCIAL SERVICES,CUSTOMER & CLIENT RECPTS - EXT,CL CONT EXTERNAL RESIDENTIAL,355108,130280720,20-Feb-14,-315.2,Revenue,POTENSIAL LTD,SP0000395
WANDSWORTH COUNCIL,ASC,SOCIAL SERVICES,CUSTOMER & CLIENT RECPTS - EXT,CL CONT EXTERNAL RESIDENTIAL,349079,130280720,12-Feb-14,-315.2,Revenue,KENILWORTH RESIDENTIAL HOME,SP0000432
WANDSWORTH COUNCIL,ASC,SOCIAL SERVICES,CUSTOMER & CLIENT RECPTS - EXT,CL CONT EXTERNAL RESIDENTIAL,349080,130280720,12-Feb-14,-486,Revenue,KENILWORTH RESIDENTIAL HOME,SP0000432
WANDSWORTH COUNCIL,ASC,SOCIAL SERVICES,CUSTOMER & CLIENT RECPTS - EXT,CL CONT EXTERNAL RESIDENTIAL,356062,130280720,24-Feb-14,-352.6,Revenue,THE WELL HOUSE,SP0000448
WANDSWORTH COUNCIL,ASC,SOCIAL SERVICES,CUSTOMER & CLIENT RECPTS - EXT,CL CONT EXTERNAL RESIDENTIAL,356063,130280720,24-Feb-14,-315.2,Revenue,THE WELL HOUSE,SP0000448
WANDSWORTH COUNCIL,ASC,SOCIAL SERVICES,CUSTOMER & CLIENT RECPTS - EXT,CL CONT EXTERNAL RESIDENTIAL,360028,130280720,28-Feb-14,-315.2,Revenue,MACINTYRE CARE,SP0000473
WANDSWORTH COUNCIL,ASC,SOCIAL SERVICES,CUSTOMER & CLIENT RECPTS - EXT,CL CONT EXTERNAL RESIDENTIAL,360029,130280720,28-Feb-14,-486,Revenue,MACINTYRE CARE,SP0000473
WANDSWORTH COUNCIL,ASC,SOCIAL SERVICES,CUSTOMER & CLIENT RECPTS - EXT,CL CONT EXTERNAL RESIDENTIAL,360031,130280720,28-Feb-14,-315.2,Revenue,MACINTYRE CARE,SP0000473
WANDSWORTH COUNCIL,ASC,SOCIAL SERVICES,CUSTOMER & CLIENT RECPTS - EXT,CL CONT EXTERNAL RESIDENTIAL,360033,130280720,28-Feb-14,-352.6,Revenue,MACINTYRE CARE,SP0000473
WANDSWORTH COUNCIL,ASC,SOCIAL SERVICES,CUSTOMER & CLIENT RECPTS - EXT,CL CONT EXTERNAL RESIDENTIAL,360034,130280720,28-Feb-14,-315.2,Revenue,MACINTYRE CARE,SP0000473
WANDSWORTH COUNCIL,ASC,SOCIAL SERVICES,CUSTOMER & CLIENT RECPTS - EXT,CL CONT EXTERNAL RESIDENTIAL,360035,130280720,28-Feb-14,-315.2,Revenue,MACINTYRE CARE,SP0000473
WANDSWORTH COUNCIL,ASC,SOCIAL SERVICES,CUSTOMER & CLIENT RECPTS - EXT,CL CONT EXTERNAL RESIDENTIAL,360036,130280720,28-Feb-14,-315.2,Revenue,MACINTYRE CARE,SP0000473
WANDSWORTH COUNCIL,ASC,SOCIAL SERVICES,CUSTOMER & CLIENT RECPTS - EXT,CL CONT EXTERNAL RESIDENTIAL,360037,130280720,28-Feb-14,-486,Revenue,MACINTYRE CARE,SP0000473
WANDSWORTH COUNCIL,ASC,SOCIAL SERVICES,CUSTOMER & CLIENT RECPTS - EXT,CL CONT EXTERNAL RESIDENTIAL,360039,130280720,28-Feb-14,-486,Revenue,MACINTYRE CARE,SP0000473
WANDSWORTH COUNCIL,ASC,SOCIAL SERVICES,CUSTOMER & CLIENT RECPTS - EXT,CL CONT EXTERNAL RESIDENTIAL,360042,130280720,28-Feb-14,-315.2,Revenue,MACINTYRE CARE,SP0000473
WANDSWORTH COUNCIL,ASC,SOCIAL SERVICES,CUSTOMER & CLIENT RECPTS - EXT,CL CONT EXTERNAL RESIDENTIAL,360043,130280720,28-Feb-14,-325.48,Revenue,MACINTYRE CARE,SP0000473
WANDSWORTH COUNCIL,ASC,SOCIAL SERVICES,CUSTOMER & CLIENT RECPTS - EXT,CL CONT EXTERNAL RESIDENTIAL,360044,130280720,28-Feb-14,-500.08,Revenue,MACINTYRE CARE,SP0000473
WANDSWORTH COUNCIL,ASC,SOCIAL SERVICES,CUSTOMER & CLIENT RECPTS - EXT,CL CONT EXTERNAL RESIDENTIAL,360045,130280720,28-Feb-14,-315.2,Revenue,MACINTYRE CARE,SP0000473
WANDSWORTH COUNCIL,ASC,SOCIAL SERVICES,CUSTOMER & CLIENT RECPTS - EXT,CL CONT EXTERNAL RESIDENTIAL,360046,130280720,28-Feb-14,-315.2,Revenue,MACINTYRE CARE,SP0000473
WANDSWORTH COUNCIL,ASC,SOCIAL SERVICES,CUSTOMER & CLIENT RECPTS - EXT,CL CONT EXTERNAL RESIDENTIAL,360047,130280720,28-Feb-14,-315.2,Revenue,MACINTYRE CARE,SP0000473
WANDSWORTH COUNCIL,ASC,SOCIAL SERVICES,CUSTOMER & CLIENT RECPTS - EXT,CL CONT EXTERNAL RESIDENTIAL,360048,130280720,28-Feb-14,-315.2,Revenue,MACINTYRE CARE,SP0000473
WANDSWORTH COUNCIL,ASC,SOCIAL SERVICES,CUSTOMER & CLIENT RECPTS - EXT,CL CONT EXTERNAL RESIDENTIAL,346931,130280720,07-Feb-14,-486,Revenue,SURREY & BORDERS PARTNERSHIP NHS TRUST,SP0000501
WANDSWORTH COUNCIL,ASC,SOCIAL SERVICES,CUSTOMER & CLIENT RECPTS - EXT,CL CONT EXTERNAL RESIDENTIAL,343141,130280720,04-Feb-14,-348.98,Revenue,AIMS CARE PARTNERSHIP,SP0000561
WANDSWORTH COUNCIL,ASC,SOCIAL SERVICES,CUSTOMER & CLIENT RECPTS - EXT,CL CONT EXTERNAL RESIDENTIAL,356053,130280720,24-Feb-14,-315.2,Revenue,AIMS CARE PARTNERSHIP,SP0000561
WANDSWORTH COUNCIL,ASC,SOCIAL SERVICES,CUSTOMER & CLIENT RECPTS - EXT,CL CONT EXTERNAL RESIDENTIAL,345751,130280720,06-Feb-14,-348.98,Revenue,SEEABILITY,SP0000572
WANDSWORTH COUNCIL,ASC,SOCIAL SERVICES,CUSTOMER & CLIENT RECPTS - EXT,CL CONT EXTERNAL RESIDENTIAL,357972,130280720,26-Feb-14,-382.16,Revenue,THE COMMUNITY CARE COMPANY UK LTD,SP0000576
WANDSWORTH COUNCIL,ASC,SOCIAL SERVICES,CUSTOMER & CLIENT RECPTS - EXT,CL CONT EXTERNAL RESIDENTIAL,357973,130280720,26-Feb-14,-315.2,Revenue,THE COMMUNITY CARE COMPANY UK LTD,SP0000576
WANDSWORTH COUNCIL,ASC,SOCIAL SERVICES,CUSTOMER & CLIENT RECPTS - EXT,CL CONT EXTERNAL RESIDENTIAL,357974,130280720,26-Feb-14,-315.2,Revenue,THE COMMUNITY CARE COMPANY UK LTD,SP0000576
WANDSWORTH COUNCIL,ASC,SOCIAL SERVICES,CUSTOMER & CLIENT RECPTS - EXT,CL CONT EXTERNAL RESIDENTIAL,357975,130280720,26-Feb-14,-315.2,Revenue,THE COMMUNITY CARE COMPANY UK LTD,SP0000576
WANDSWORTH COUNCIL,ASC,SOCIAL SERVICES,CUSTOMER & CLIENT RECPTS - EXT,CL CONT EXTERNAL RESIDENTIAL,357976,130280720,26-Feb-14,-315.2,Revenue,THE COMMUNITY CARE COMPANY UK LTD,SP0000576
WANDSWORTH COUNCIL,ASC,SOCIAL SERVICES,CUSTOMER & CLIENT RECPTS - EXT,CL CONT EXTERNAL RESIDENTIAL,343127,130280720,04-Feb-14,-432.89,Revenue,THE REGARD PARTNERSHIP,SP0000588
WANDSWORTH COUNCIL,ASC,SOCIAL SERVICES,CUSTOMER & CLIENT RECPTS - EXT,CL CONT EXTERNAL RESIDENTIAL,343128,130280720,04-Feb-14,-432.89,Revenue,THE REGARD PARTNERSHIP,SP0000588
WANDSWORTH COUNCIL,ASC,SOCIAL SERVICES,CUSTOMER & CLIENT RECPTS - EXT,CL CONT EXTERNAL RESIDENTIAL,343129,130280720,04-Feb-14,-432.89,Revenue,THE REGARD PARTNERSHIP,SP0000588
WANDSWORTH COUNCIL,ASC,SOCIAL SERVICES,CUSTOMER & CLIENT RECPTS - EXT,CL CONT EXTERNAL RESIDENTIAL,343130,130280720,04-Feb-14,-348.98,Revenue,THE REGARD PARTNERSHIP,SP0000588
WANDSWORTH COUNCIL,ASC,SOCIAL SERVICES,CUSTOMER & CLIENT RECPTS - EXT,CL CONT EXTERNAL RESIDENTIAL,343131,130280720,04-Feb-14,-543.92,Revenue,THE REGARD PARTNERSHIP,SP0000588
WANDSWORTH COUNCIL,ASC,SOCIAL SERVICES,CUSTOMER & CLIENT RECPTS - EXT,CL CONT EXTERNAL RESIDENTIAL,343148,130280720,04-Feb-14,-432.89,Revenue,THE REGARD PARTNERSHIP,SP0000588
WANDSWORTH COUNCIL,ASC,SOCIAL SERVICES,CUSTOMER & CLIENT RECPTS - EXT,CL CONT EXTERNAL RESIDENTIAL,351736,130280720,17-Feb-14,-315.2,Revenue,THE REGARD PARTNERSHIP,SP0000588
WANDSWORTH COUNCIL,ASC,SOCIAL SERVICES,CUSTOMER & CLIENT RECPTS - EXT,CL CONT EXTERNAL RESIDENTIAL,346907,130280720,07-Feb-14,-315.2,Revenue,EVERGREEN PARTNERSHIP,SP0000597
WANDSWORTH COUNCIL,ASC,SOCIAL SERVICES,CUSTOMER & CLIENT RECPTS - EXT,CL CONT EXTERNAL RESIDENTIAL,346908,130280720,07-Feb-14,-315.2,Revenue,EVERGREEN PARTNERSHIP,SP0000597
WANDSWORTH COUNCIL,ASC,SOCIAL SERVICES,CUSTOMER & CLIENT RECPTS - EXT,CL CONT EXTERNAL RESIDENTIAL,346888,130280720,07-Feb-14,-315.2,Revenue,LAETUS LODGE,SP0000600
WANDSWORTH COUNCIL,ASC,SOCIAL SERVICES,CUSTOMER & CLIENT RECPTS - EXT,CL CONT EXTERNAL RESIDENTIAL,346890,130280720,07-Feb-14,-391,Revenue,LAETUS LODGE,SP0000600
WANDSWORTH COUNCIL,ASC,SOCIAL SERVICES,CUSTOMER & CLIENT RECPTS - EXT,CL CONT EXTERNAL RESIDENTIAL,346892,130280720,07-Feb-14,-238.64,Revenue,LAETUS LODGE,SP0000600
WANDSWORTH COUNCIL,ASC,SOCIAL SERVICES,CUSTOMER & CLIENT RECPTS - EXT,CL CONT EXTERNAL RESIDENTIAL,346893,130280720,07-Feb-14,-352.6,Revenue,LAETUS LODGE,SP0000600
WANDSWORTH COUNCIL,ASC,SOCIAL SERVICES,CUSTOMER & CLIENT RECPTS - EXT,CL CONT EXTERNAL RESIDENTIAL,346894,130280720,07-Feb-14,-315.2,Revenue,LAETUS LODGE,SP0000600
WANDSWORTH COUNCIL,ASC,SOCIAL SERVICES,CUSTOMER & CLIENT RECPTS - EXT,CL CONT EXTERNAL RESIDENTIAL,346895,130280720,07-Feb-14,-315.2,Revenue,LAETUS LODGE,SP0000600
WANDSWORTH COUNCIL,ASC,SOCIAL SERVICES,CUSTOMER & CLIENT RECPTS - EXT,CL CONT EXTERNAL RESIDENTIAL,343149,130280720,04-Feb-14,-380.6,Revenue,METROPOLITAN HOUSING TRUST,SP0000626
WANDSWORTH COUNCIL,ASC,SOCIAL SERVICES,CUSTOMER & CLIENT RECPTS - EXT,CL CONT EXTERNAL RESIDENTIAL,347319,130280720,10-Feb-14,-311.4,Revenue,METROPOLITAN HOUSING TRUST,SP0000626
WANDSWORTH COUNCIL,ASC,SOCIAL SERVICES,CUSTOMER & CLIENT RECPTS - EXT,CL CONT EXTERNAL RESIDENTIAL,347320,130280720,10-Feb-14,-476.8,Revenue,METROPOLITAN HOUSING TRUST,SP0000626
WANDSWORTH COUNCIL,ASC,SOCIAL SERVICES,CUSTOMER & CLIENT RECPTS - EXT,CL CONT EXTERNAL RESIDENTIAL,347321,130280720,10-Feb-14,-315.2,Revenue,METROPOLITAN HOUSING TRUST,SP0000626
WANDSWORTH COUNCIL,ASC,SOCIAL SERVICES,CUSTOMER & CLIENT RECPTS - EXT,CL CONT EXTERNAL RESIDENTIAL,349716,130280720,13-Feb-14,-380.6,Revenue,METROPOLITAN HOUSING TRUST,SP0000626
WANDSWORTH COUNCIL,ASC,SOCIAL SERVICES,CUSTOMER & CLIENT RECPTS - EXT,CL CONT EXTERNAL RESIDENTIAL,349717,130280720,13-Feb-14,-486,Revenue,METROPOLITAN HOUSING TRUST,SP0000626
WANDSWORTH COUNCIL,ASC,SOCIAL SERVICES,CUSTOMER & CLIENT RECPTS - EXT,CL CONT EXTERNAL RESIDENTIAL,349718,130280720,13-Feb-14,-315.2,Revenue,METROPOLITAN HOUSING TRUST,SP0000626
WANDSWORTH COUNCIL,ASC,SOCIAL SERVICES,CUSTOMER & CLIENT RECPTS - EXT,CL CONT EXTERNAL RESIDENTIAL,349719,130280720,13-Feb-14,-380.6,Revenue,METROPOLITAN HOUSING TRUST,SP0000626
WANDSWORTH COUNCIL,ASC,SOCIAL SERVICES,CUSTOMER & CLIENT RECPTS - EXT,CL CONT EXTERNAL RESIDENTIAL,349720,130280720,13-Feb-14,-315.2,Revenue,METROPOLITAN HOUSING TRUST,SP0000626
WANDSWORTH COUNCIL,ASC,SOCIAL SERVICES,CUSTOMER & CLIENT RECPTS - EXT,CL CONT EXTERNAL RESIDENTIAL,352787,130280720,18-Feb-14,-315.2,Revenue,METROPOLITAN HOUSING TRUST,SP0000626
WANDSWORTH COUNCIL,ASC,SOCIAL SERVICES,CUSTOMER & CLIENT RECPTS - EXT,CL CONT EXTERNAL RESIDENTIAL,352788,130280720,18-Feb-14,-486,Revenue,METROPOLITAN HOUSING TRUST,SP0000626
WANDSWORTH COUNCIL,ASC,SOCIAL SERVICES,CUSTOMER & CLIENT RECPTS - EXT,CL CONT EXTERNAL RESIDENTIAL,352789,130280720,18-Feb-14,-315.2,Revenue,METROPOLITAN HOUSING TRUST,SP0000626
WANDSWORTH COUNCIL,ASC,SOCIAL SERVICES,CUSTOMER & CLIENT RECPTS - EXT,CL CONT EXTERNAL RESIDENTIAL,352790,130280720,18-Feb-14,-486,Revenue,METROPOLITAN HOUSING TRUST,SP0000626
WANDSWORTH COUNCIL,ASC,SOCIAL SERVICES,CUSTOMER & CLIENT RECPTS - EXT,CL CONT EXTERNAL RESIDENTIAL,352791,130280720,18-Feb-14,-315.2,Revenue,METROPOLITAN HOUSING TRUST,SP0000626
WANDSWORTH COUNCIL,ASC,SOCIAL SERVICES,CUSTOMER & CLIENT RECPTS - EXT,CL CONT EXTERNAL RESIDENTIAL,352792,130280720,18-Feb-14,-315.2,Revenue,METROPOLITAN HOUSING TRUST,SP0000626
WANDSWORTH COUNCIL,ASC,SOCIAL SERVICES,CUSTOMER & CLIENT RECPTS - EXT,CL CONT EXTERNAL RESIDENTIAL,352793,130280720,18-Feb-14,-315.2,Revenue,METROPOLITAN HOUSING TRUST,SP0000626
WANDSWORTH COUNCIL,ASC,SOCIAL SERVICES,CUSTOMER & CLIENT RECPTS - EXT,CL CONT EXTERNAL RESIDENTIAL,352794,130280720,18-Feb-14,-315.2,Revenue,METROPOLITAN HOUSING TRUST,SP0000626
WANDSWORTH COUNCIL,ASC,SOCIAL SERVICES,CUSTOMER & CLIENT RECPTS - EXT,CL CONT EXTERNAL RESIDENTIAL,352795,130280720,18-Feb-14,-527.8,Revenue,METROPOLITAN HOUSING TRUST,SP0000626
WANDSWORTH COUNCIL,ASC,SOCIAL SERVICES,CUSTOMER & CLIENT RECPTS - EXT,CL CONT EXTERNAL RESIDENTIAL,352796,130280720,18-Feb-14,-380.6,Revenue,METROPOLITAN HOUSING TRUST,SP0000626
WANDSWORTH COUNCIL,ASC,SOCIAL SERVICES,CUSTOMER & CLIENT RECPTS - EXT,CL CONT EXTERNAL RESIDENTIAL,352797,130280720,18-Feb-14,-486,Revenue,METROPOLITAN HOUSING TRUST,SP0000626
WANDSWORTH COUNCIL,ASC,SOCIAL SERVICES,CUSTOMER & CLIENT RECPTS - EXT,CL CONT EXTERNAL RESIDENTIAL,352798,130280720,18-Feb-14,-315.2,Revenue,METROPOLITAN HOUSING TRUST,SP0000626
WANDSWORTH COUNCIL,ASC,SOCIAL SERVICES,CUSTOMER & CLIENT RECPTS - EXT,CL CONT EXTERNAL RESIDENTIAL,352799,130280720,18-Feb-14,-380.6,Revenue,METROPOLITAN HOUSING TRUST,SP0000626
WANDSWORTH COUNCIL,ASC,SOCIAL SERVICES,CUSTOMER & CLIENT RECPTS - EXT,CL CONT EXTERNAL RESIDENTIAL,352800,130280720,18-Feb-14,-315.2,Revenue,METROPOLITAN HOUSING TRUST,SP0000626
WANDSWORTH COUNCIL,ASC,SOCIAL SERVICES,CUSTOMER & CLIENT RECPTS - EXT,CL CONT EXTERNAL RESIDENTIAL,352803,130280720,18-Feb-14,-380.6,Revenue,METROPOLITAN HOUSING TRUST,SP0000626
WANDSWORTH COUNCIL,ASC,SOCIAL SERVICES,CUSTOMER & CLIENT RECPTS - EXT,CL CONT EXTERNAL RESIDENTIAL,352804,130280720,18-Feb-14,-486,Revenue,METROPOLITAN HOUSING TRUST,SP0000626
WANDSWORTH COUNCIL,ASC,SOCIAL SERVICES,CUSTOMER & CLIENT RECPTS - EXT,CL CONT EXTERNAL RESIDENTIAL,352805,130280720,18-Feb-14,-315.2,Revenue,METROPOLITAN HOUSING TRUST,SP0000626
WANDSWORTH COUNCIL,ASC,SOCIAL SERVICES,CUSTOMER & CLIENT RECPTS - EXT,CL CONT EXTERNAL RESIDENTIAL,352806,130280720,18-Feb-14,-380.6,Revenue,METROPOLITAN HOUSING TRUST,SP0000626
WANDSWORTH COUNCIL,ASC,SOCIAL SERVICES,CUSTOMER & CLIENT RECPTS - EXT,CL CONT EXTERNAL RESIDENTIAL,352807,130280720,18-Feb-14,-315.2,Revenue,METROPOLITAN HOUSING TRUST,SP0000626
WANDSWORTH COUNCIL,ASC,SOCIAL SERVICES,CUSTOMER & CLIENT RECPTS - EXT,CL CONT EXTERNAL RESIDENTIAL,356095,130280720,25-Feb-14,-315.2,Revenue,METROPOLITAN HOUSING TRUST,SP0000626
WANDSWORTH COUNCIL,ASC,SOCIAL SERVICES,CUSTOMER & CLIENT RECPTS - EXT,CL CONT EXTERNAL RESIDENTIAL,356096,130280720,25-Feb-14,-486,Revenue,METROPOLITAN HOUSING TRUST,SP0000626
WANDSWORTH COUNCIL,ASC,SOCIAL SERVICES,CUSTOMER & CLIENT RECPTS - EXT,CL CONT EXTERNAL RESIDENTIAL,356097,130280720,25-Feb-14,-315.2,Revenue,METROPOLITAN HOUSING TRUST,SP0000626
WANDSWORTH COUNCIL,ASC,SOCIAL SERVICES,CUSTOMER & CLIENT RECPTS - EXT,CL CONT EXTERNAL RESIDENTIAL,356098,130280720,25-Feb-14,-315.2,Revenue,METROPOLITAN HOUSING TRUST,SP0000626
WANDSWORTH COUNCIL,ASC,SOCIAL SERVICES,CUSTOMER & CLIENT RECPTS - EXT,CL CONT EXTERNAL RESIDENTIAL,356099,130280720,25-Feb-14,-486,Revenue,METROPOLITAN HOUSING TRUST,SP0000626
WANDSWORTH COUNCIL,ASC,SOCIAL SERVICES,CUSTOMER & CLIENT RECPTS - EXT,CL CONT EXTERNAL RESIDENTIAL,356101,130280720,25-Feb-14,-315.2,Revenue,METROPOLITAN HOUSING TRUST,SP0000626
WANDSWORTH COUNCIL,ASC,SOCIAL SERVICES,CUSTOMER & CLIENT RECPTS - EXT,CL CONT EXTERNAL RESIDENTIAL,356103,130280720,25-Feb-14,-315.2,Revenue,METROPOLITAN HOUSING TRUST,SP0000626
WANDSWORTH COUNCIL,ASC,SOCIAL SERVICES,CUSTOMER & CLIENT RECPTS - EXT,CL CONT EXTERNAL RESIDENTIAL,356105,130280720,25-Feb-14,-315.2,Revenue,METROPOLITAN HOUSING TRUST,SP0000626
WANDSWORTH COUNCIL,ASC,SOCIAL SERVICES,CUSTOMER & CLIENT RECPTS - EXT,CL CONT EXTERNAL RESIDENTIAL,356106,130280720,25-Feb-14,-486,Revenue,METROPOLITAN HOUSING TRUST,SP0000626
WANDSWORTH COUNCIL,ASC,SOCIAL SERVICES,CUSTOMER & CLIENT RECPTS - EXT,CL CONT EXTERNAL RESIDENTIAL,356107,130280720,25-Feb-14,-315.2,Revenue,METROPOLITAN HOUSING TRUST,SP0000626
WANDSWORTH COUNCIL,ASC,SOCIAL SERVICES,CUSTOMER & CLIENT RECPTS - EXT,CL CONT EXTERNAL RESIDENTIAL,356108,130280720,25-Feb-14,-486,Revenue,METROPOLITAN HOUSING TRUST,SP0000626
WANDSWORTH COUNCIL,ASC,SOCIAL SERVICES,CUSTOMER & CLIENT RECPTS - EXT,CL CONT EXTERNAL RESIDENTIAL,356110,130280720,25-Feb-14,-315.2,Revenue,METROPOLITAN HOUSING TRUST,SP0000626
WANDSWORTH COUNCIL,ASC,SOCIAL SERVICES,CUSTOMER & CLIENT RECPTS - EXT,CL CONT EXTERNAL RESIDENTIAL,356112,130280720,25-Feb-14,-315.2,Revenue,METROPOLITAN HOUSING TRUST,SP0000626
WANDSWORTH COUNCIL,ASC,SOCIAL SERVICES,CUSTOMER & CLIENT RECPTS - EXT,CL CONT EXTERNAL RESIDENTIAL,344328,130280720,05-Feb-14,-315.2,Revenue,LIVABILITY,SP0000669
WANDSWORTH COUNCIL,ASC,SOCIAL SERVICES,CUSTOMER & CLIENT RECPTS - EXT,CL CONT EXTERNAL RESIDENTIAL,356774,130280720,24-Feb-14,-315.2,Revenue,LIVABILITY,SP0000669
WANDSWORTH COUNCIL,ASC,SOCIAL SERVICES,CUSTOMER & CLIENT RECPTS - EXT,CL CONT EXTERNAL RESIDENTIAL,345717,130280720,14-Feb-14,-486,Revenue,COTTAGE & RURAL ENTERPRISES LTD,SP0000693
WANDSWORTH COUNCIL,ASC,SOCIAL SERVICES,CUSTOMER & CLIENT RECPTS - EXT,CL CONT EXTERNAL RESIDENTIAL,345718,130280720,14-Feb-14,-490.92,Revenue,COTTAGE & RURAL ENTERPRISES LTD,SP0000693
WANDSWORTH COUNCIL,ASC,SOCIAL SERVICES,CUSTOMER & CLIENT RECPTS - EXT,CL CONT EXTERNAL RESIDENTIAL,345719,130280720,14-Feb-14,-315.2,Revenue,COTTAGE & RURAL ENTERPRISES LTD,SP0000693
WANDSWORTH COUNCIL,ASC,SOCIAL SERVICES,CUSTOMER & CLIENT RECPTS - EXT,CL CONT EXTERNAL RESIDENTIAL,360115,130280720,28-Feb-14,-490.92,Revenue,COTTAGE & RURAL ENTERPRISES LTD,SP0000693
WANDSWORTH COUNCIL,ASC,SOCIAL SERVICES,CUSTOMER & CLIENT RECPTS - EXT,CL CONT EXTERNAL RESIDENTIAL,360116,130280720,28-Feb-14,-315.2,Revenue,COTTAGE & RURAL ENTERPRISES LTD,SP0000693
WANDSWORTH COUNCIL,ASC,SOCIAL SERVICES,CUSTOMER & CLIENT RECPTS - EXT,CL CONT EXTERNAL RESIDENTIAL,360117,130280720,28-Feb-14,-486,Revenue,COTTAGE & RURAL ENTERPRISES LTD,SP0000693
WANDSWORTH COUNCIL,ASC,SOCIAL SERVICES,CUSTOMER & CLIENT RECPTS - EXT,CL CONT EXTERNAL RESIDENTIAL,360134,130280720,28-Feb-14,-315.2,Revenue,THE MANOR HOUSE,SP0000728
WANDSWORTH COUNCIL,ASC,SOCIAL SERVICES,CUSTOMER & CLIENT RECPTS - EXT,CL CONT EXTERNAL RESIDENTIAL,345735,130280720,06-Feb-14,-538.08,Revenue,RALEIGH HOUSE LTD,SP0000760
WANDSWORTH COUNCIL,ASC,SOCIAL SERVICES,CUSTOMER & CLIENT RECPTS - EXT,CL CONT EXTERNAL RESIDENTIAL,356086,130280720,24-Feb-14,-486,Revenue,RALEIGH HOUSE LTD,SP0000760
WANDSWORTH COUNCIL,ASC,SOCIAL SERVICES,CUSTOMER & CLIENT RECPTS - EXT,CL CONT EXTERNAL RESIDENTIAL,345730,130280720,06-Feb-14,-538.08,Revenue,VOYAGE CARE LTD,SP0000761
WANDSWORTH COUNCIL,ASC,SOCIAL SERVICES,CUSTOMER & CLIENT RECPTS - EXT,CL CONT EXTERNAL RESIDENTIAL,345764,130280720,06-Feb-14,-348.98,Revenue,VOYAGE CARE LTD,SP0000761
WANDSWORTH COUNCIL,ASC,SOCIAL SERVICES,CUSTOMER & CLIENT RECPTS - EXT,CL CONT EXTERNAL RESIDENTIAL,345766,130280720,06-Feb-14,-224.83,Revenue,VOYAGE CARE LTD,SP0000761
WANDSWORTH COUNCIL,ASC,SOCIAL SERVICES,CUSTOMER & CLIENT RECPTS - EXT,CL CONT EXTERNAL RESIDENTIAL,356071,130280720,24-Feb-14,-486,Revenue,VOYAGE CARE LTD,SP0000761
WANDSWORTH COUNCIL,ASC,SOCIAL SERVICES,CUSTOMER & CLIENT RECPTS - EXT,CL CONT EXTERNAL RESIDENTIAL,356080,130280720,24-Feb-14,-315.2,Revenue,VOYAGE CARE LTD,SP0000761
WANDSWORTH COUNCIL,ASC,SOCIAL SERVICES,CUSTOMER & CLIENT RECPTS - EXT,CL CONT EXTERNAL RESIDENTIAL,356082,130280720,24-Feb-14,-203.08,Revenue,VOYAGE CARE LTD,SP0000761
WANDSWORTH COUNCIL,ASC,SOCIAL SERVICES,CUSTOMER & CLIENT RECPTS - EXT,CL CONT EXTERNAL RESIDENTIAL,351739,130280720,17-Feb-14,-315.2,Revenue,GLENCARE GROUP,SP0000791
WANDSWORTH COUNCIL,ASC,SOCIAL SERVICES,CUSTOMER & CLIENT RECPTS - EXT,CL CONT EXTERNAL RESIDENTIAL,351740,130280720,17-Feb-14,-315.2,Revenue,GLENCARE GROUP,SP0000791
WANDSWORTH COUNCIL,ASC,SOCIAL SERVICES,CUSTOMER & CLIENT RECPTS - EXT,CL CONT EXTERNAL RESIDENTIAL,346882,130280720,07-Feb-14,-315.2,Revenue,FREEWAYS TRUST LTD,SP0000793
WANDSWORTH COUNCIL,ASC,SOCIAL SERVICES,CUSTOMER & CLIENT RECPTS - EXT,CL CONT EXTERNAL RESIDENTIAL,347313,130280720,10-Feb-14,-300.27,Revenue,FREEWAYS TRUST LTD,SP0000793
WANDSWORTH COUNCIL,ASC,SOCIAL SERVICES,CUSTOMER & CLIENT RECPTS - EXT,CL CONT EXTERNAL RESIDENTIAL,347314,130280720,10-Feb-14,-311.4,Revenue,FREEWAYS TRUST LTD,SP0000793
WANDSWORTH COUNCIL,ASC,SOCIAL SERVICES,CUSTOMER & CLIENT RECPTS - EXT,CL CONT EXTERNAL RESIDENTIAL,347315,130280720,10-Feb-14,-311.4,Revenue,FREEWAYS TRUST LTD,SP0000793
WANDSWORTH COUNCIL,ASC,SOCIAL SERVICES,CUSTOMER & CLIENT RECPTS - EXT,CL CONT EXTERNAL RESIDENTIAL,347316,130280720,10-Feb-14,-315.2,Revenue,FREEWAYS TRUST LTD,SP0000793
WANDSWORTH COUNCIL,ASC,SOCIAL SERVICES,CUSTOMER & CLIENT RECPTS - EXT,CL CONT EXTERNAL RESIDENTIAL,346879,130280720,07-Feb-14,-315.2,Revenue,UNITED RESPONSE,SP0000797
WANDSWORTH COUNCIL,ASC,SOCIAL SERVICES,CUSTOMER & CLIENT RECPTS - EXT,CL CONT EXTERNAL RESIDENTIAL,360112,130280720,28-Feb-14,-315.2,Revenue,UNITED RESPONSE,SP0000797
WANDSWORTH COUNCIL,ASC,SOCIAL SERVICES,CUSTOMER & CLIENT RECPTS - EXT,CL CONT EXTERNAL RESIDENTIAL,345715,130280720,06-Feb-14,-337.71,Revenue,WESSEX AUTISTIC SOCIETY,SP0000805
WANDSWORTH COUNCIL,ASC,SOCIAL SERVICES,CUSTOMER & CLIENT RECPTS - EXT,CL CONT EXTERNAL RESIDENTIAL,360086,130280720,28-Feb-14,-315.2,Revenue,WESSEX AUTISTIC SOCIETY,SP0000805
WANDSWORTH COUNCIL,ASC,SOCIAL SERVICES,CUSTOMER & CLIENT RECPTS - EXT,CL CONT EXTERNAL RESIDENTIAL,352779,130280720,18-Feb-14,-348.98,Revenue,BEECH LODGE,SP0000807
WANDSWORTH COUNCIL,ASC,SOCIAL SERVICES,CUSTOMER & CLIENT RECPTS - EXT,CL CONT EXTERNAL RESIDENTIAL,352780,130280720,18-Feb-14,-348.98,Revenue,BEECH LODGE,SP0000807
WANDSWORTH COUNCIL,ASC,SOCIAL SERVICES,CUSTOMER & CLIENT RECPTS - EXT,CL CONT EXTERNAL RESIDENTIAL,352781,130280720,18-Feb-14,-348.98,Revenue,BEECH LODGE,SP0000807
WANDSWORTH COUNCIL,ASC,SOCIAL SERVICES,CUSTOMER & CLIENT RECPTS - EXT,CL CONT EXTERNAL RESIDENTIAL,360087,130280720,28-Feb-14,-315.2,Revenue,BEECH LODGE,SP0000807
WANDSWORTH COUNCIL,ASC,SOCIAL SERVICES,CUSTOMER & CLIENT RECPTS - EXT,CL CONT EXTERNAL RESIDENTIAL,360088,130280720,28-Feb-14,-315.2,Revenue,BEECH LODGE,SP0000807
WANDSWORTH COUNCIL,ASC,SOCIAL SERVICES,CUSTOMER & CLIENT RECPTS - EXT,CL CONT EXTERNAL RESIDENTIAL,360089,130280720,28-Feb-14,-315.2,Revenue,BEECH LODGE,SP0000807
WANDSWORTH COUNCIL,ASC,SOCIAL SERVICES,CUSTOMER & CLIENT RECPTS - EXT,CL CONT EXTERNAL RESIDENTIAL,343146,130280720,04-Feb-14,-390.37,Revenue,CHATSWORTH CARE,SP0000831
WANDSWORTH COUNCIL,ASC,SOCIAL SERVICES,CUSTOMER & CLIENT RECPTS - EXT,CL CONT EXTERNAL RESIDENTIAL,356060,130280720,24-Feb-14,-352.6,Revenue,CHATSWORTH CARE,SP0000831
WANDSWORTH COUNCIL,ASC,SOCIAL SERVICES,CUSTOMER & CLIENT RECPTS - EXT,CL CONT EXTERNAL RESIDENTIAL,358188,130280720,27-Feb-14,-315.2,Revenue,FIRCROFT,SP0000840
WANDSWORTH COUNCIL,ASC,SOCIAL SERVICES,CUSTOMER & CLIENT RECPTS - EXT,CL CONT EXTERNAL RESIDENTIAL,344330,130280720,05-Feb-14,-77.85,Revenue,ROYAL MENCAP SOCIETY,SP0000842
WANDSWORTH COUNCIL,ASC,SOCIAL SERVICES,CUSTOMER & CLIENT RECPTS - EXT,CL CONT EXTERNAL RESIDENTIAL,360058,130280720,28-Feb-14,-315.2,Revenue,ROYAL MENCAP SOCIETY,SP0000842
WANDSWORTH COUNCIL,ASC,SOCIAL SERVICES,CUSTOMER & CLIENT RECPTS - EXT,CL CONT EXTERNAL RESIDENTIAL,360059,130280720,28-Feb-14,-315.2,Revenue,ROYAL MENCAP SOCIETY,SP0000842
WANDSWORTH COUNCIL,ASC,SOCIAL SERVICES,CUSTOMER & CLIENT RECPTS - EXT,CL CONT EXTERNAL RESIDENTIAL,360060,130280720,28-Feb-14,-315.2,Revenue,ROYAL MENCAP SOCIETY,SP0000842
WANDSWORTH COUNCIL,ASC,SOCIAL SERVICES,CUSTOMER & CLIENT RECPTS - EXT,CL CONT EXTERNAL RESIDENTIAL,345755,130280720,06-Feb-14,-348.98,Revenue,STALLCOMBE HOUSE,SP0000843
WANDSWORTH COUNCIL,ASC,SOCIAL SERVICES,CUSTOMER & CLIENT RECPTS - EXT,CL CONT EXTERNAL RESIDENTIAL,356091,130280720,24-Feb-14,-315.2,Revenue,STALLCOMBE HOUSE,SP0000843
WANDSWORTH COUNCIL,ASC,SOCIAL SERVICES,CUSTOMER & CLIENT RECPTS - EXT,CL CONT EXTERNAL RESIDENTIAL,360111,130280720,28-Feb-14,-315.2,Revenue,ASHCROFT CARE SERVICES,SP0000872
WANDSWORTH COUNCIL,ASC,SOCIAL SERVICES,CUSTOMER & CLIENT RECPTS - EXT,CL CONT EXTERNAL RESIDENTIAL,346933,130280720,07-Feb-14,-315.2,Revenue,WINSLOW COURT,SP0000886
WANDSWORTH COUNCIL,ASC,SOCIAL SERVICES,CUSTOMER & CLIENT RECPTS - EXT,CL CONT EXTERNAL RESIDENTIAL,349072,130280720,12-Feb-14,-486,Revenue,PURBECK CARE LTD,SP0000913
WANDSWORTH COUNCIL,ASC,SOCIAL SERVICES,CUSTOMER & CLIENT RECPTS - EXT,CL CONT EXTERNAL RESIDENTIAL,343142,130280720,04-Feb-14,-390.37,Revenue,TRACS,SP0000914
WANDSWORTH COUNCIL,ASC,SOCIAL SERVICES,CUSTOMER & CLIENT RECPTS - EXT,CL CONT EXTERNAL RESIDENTIAL,356054,130280720,24-Feb-14,-352.6,Revenue,TRACS,SP0000914
WANDSWORTH COUNCIL,ASC,SOCIAL SERVICES,CUSTOMER & CLIENT RECPTS - EXT,CL CONT EXTERNAL RESIDENTIAL,360103,130280720,28-Feb-14,-315.2,Revenue,HILL PARK AUTISTIC TRUST,SP0000926
WANDSWORTH COUNCIL,ASC,SOCIAL SERVICES,CUSTOMER & CLIENT RECPTS - EXT,CL CONT EXTERNAL RESIDENTIAL,346906,130280720,07-Feb-14,-314,Revenue,REDACTED PERSONAL DATA,SP0000931
WANDSWORTH COUNCIL,ASC,SOCIAL SERVICES,CUSTOMER & CLIENT RECPTS - EXT,CL CONT EXTERNAL RESIDENTIAL,358191,130280720,27-Feb-14,-315.2,Revenue,MISSION CARE,SP0000958
WANDSWORTH COUNCIL,ASC,SOCIAL SERVICES,CUSTOMER & CLIENT RECPTS - EXT,CL CONT EXTERNAL RESIDENTIAL,360097,130280720,28-Feb-14,-315.2,Revenue,DOWNING (CHERTSEY ROAD) LTD,SP0000959
WANDSWORTH COUNCIL,ASC,SOCIAL SERVICES,CUSTOMER & CLIENT RECPTS - EXT,CL CONT EXTERNAL RESIDENTIAL,352783,130280720,18-Feb-14,-348.98,Revenue,CHERRY LODGE,SP0000965
WANDSWORTH COUNCIL,ASC,SOCIAL SERVICES,CUSTOMER & CLIENT RECPTS - EXT,CL CONT EXTERNAL RESIDENTIAL,360094,130280720,28-Feb-14,-315.2,Revenue,CHERRY LODGE,SP0000965
WANDSWORTH COUNCIL,ASC,SOCIAL SERVICES,CUSTOMER & CLIENT RECPTS - EXT,CL CONT EXTERNAL RESIDENTIAL,346932,130280720,07-Feb-14,-315.2,Revenue,RIDGEWOOD CARE SERVICES LTD,SP0000969
WANDSWORTH COUNCIL,ASC,SOCIAL SERVICES,CUSTOMER & CLIENT RECPTS - EXT,CL CONT EXTERNAL RESIDENTIAL,356057,130280720,24-Feb-14,-315.2,Revenue,RIDGEWOOD CARE SERVICES LTD,SP0000969
WANDSWORTH COUNCIL,ASC,SOCIAL SERVICES,CUSTOMER & CLIENT RECPTS - EXT,CL CONT EXTERNAL RESIDENTIAL,346880,130280720,07-Feb-14,-348.98,Revenue,LEONARD CHESHIRE,SP0000976
WANDSWORTH COUNCIL,ASC,SOCIAL SERVICES,CUSTOMER & CLIENT RECPTS - EXT,CL CONT EXTERNAL RESIDENTIAL,360096,130280720,28-Feb-14,-315.2,Revenue,CREDITON CARE & SUPPORT HOMES,SP0000998
WANDSWORTH COUNCIL,ASC,SOCIAL SERVICES,CUSTOMER & CLIENT RECPTS - EXT,CL CONT EXTERNAL RESIDENTIAL,352775,130280720,18-Feb-14,-315.2,Revenue,LOTUS CARE HOME LTD,SP0001006
WANDSWORTH COUNCIL,ASC,SOCIAL SERVICES,CUSTOMER & CLIENT RECPTS - EXT,CL CONT EXTERNAL RESIDENTIAL,345721,130280720,06-Feb-14,-315.2,Revenue,ALLIED CARE (MHS) LTD,SP0001069
WANDSWORTH COUNCIL,ASC,SOCIAL SERVICES,CUSTOMER & CLIENT RECPTS - EXT,CL CONT EXTERNAL RESIDENTIAL,360084,130280720,28-Feb-14,-235.44,Revenue,ALLIED CARE (MHS) LTD,SP0001069
WANDSWORTH COUNCIL,ASC,SOCIAL SERVICES,CUSTOMER & CLIENT RECPTS - EXT,CL CONT EXTERNAL RESIDENTIAL,360127,130280720,28-Feb-14,-315.2,Revenue,ALLIED CARE (MHS) LTD,SP0001069
WANDSWORTH COUNCIL,ASC,SOCIAL SERVICES,CUSTOMER & CLIENT RECPTS - EXT,CL CONT EXTERNAL RESIDENTIAL,343136,130280720,04-Feb-14,-348.98,Revenue,SAXON COURT,SP0001100
WANDSWORTH COUNCIL,ASC,SOCIAL SERVICES,CUSTOMER & CLIENT RECPTS - EXT,CL CONT EXTERNAL RESIDENTIAL,343137,130280720,04-Feb-14,-348.98,Revenue,SAXON COURT,SP0001100
WANDSWORTH COUNCIL,ASC,SOCIAL SERVICES,CUSTOMER & CLIENT RECPTS - EXT,CL CONT EXTERNAL RESIDENTIAL,356043,130280720,24-Feb-14,-315.2,Revenue,SAXON COURT,SP0001100
WANDSWORTH COUNCIL,ASC,SOCIAL SERVICES,CUSTOMER & CLIENT RECPTS - EXT,CL CONT EXTERNAL RESIDENTIAL,356044,130280720,24-Feb-14,-315.2,Revenue,SAXON COURT,SP0001100
WANDSWORTH COUNCIL,ASC,SOCIAL SERVICES,CUSTOMER & CLIENT RECPTS - EXT,CL CONT EXTERNAL RESIDENTIAL,345741,130280720,06-Feb-14,-348.98,Revenue,ILG LTD,SP0001103
WANDSWORTH COUNCIL,ASC,SOCIAL SERVICES,CUSTOMER & CLIENT RECPTS - EXT,CL CONT EXTERNAL RESIDENTIAL,356074,130280720,24-Feb-14,-315.2,Revenue,ILG LTD,SP0001103
WANDSWORTH COUNCIL,ASC,SOCIAL SERVICES,CUSTOMER & CLIENT RECPTS - EXT,CL CONT EXTERNAL RESIDENTIAL,346898,130280720,07-Feb-14,-352.6,Revenue,TOTTERDOWN,SP0001113
WANDSWORTH COUNCIL,ASC,SOCIAL SERVICES,CUSTOMER & CLIENT RECPTS - EXT,CL CONT EXTERNAL RESIDENTIAL,360090,130280720,28-Feb-14,-395.8,Revenue,SUSSEX HEALTH CARE,SP0001115
WANDSWORTH COUNCIL,ASC,SOCIAL SERVICES,CUSTOMER & CLIENT RECPTS - EXT,CL CONT EXTERNAL RESIDENTIAL,360135,130280720,28-Feb-14,-319.5,Revenue,MIGHOUSE RESIDENTIAL CARE HOME LTD,SP0001402
WANDSWORTH COUNCIL,ASC,SOCIAL SERVICES,CUSTOMER & CLIENT RECPTS - EXT,CL CONT EXTERNAL RESIDENTIAL,360119,130280720,28-Feb-14,-486,Revenue,CARE UNLIMITED GROUP LTD,SP0001575
